Workbook

Sheet Notice
D1: Notice

Sheet CS réf
C1: Condition de simulation
B4: occupation | C4: 17.7 | D4: l/h/élev
C5: 1.5 | D5: kg/m3
B6: Puissance produite | C6: 70 | D6: W/élève
B7: Production de vapeur | C7: 1.4 | D7: l/jour | E7: =C7/(24*3600) -> 1.62037037e-05 | F7: l/s = kg/s
H8: Air extérieur
B9: Surface de la pièce | D9: m² | H9: °C | I9: % | J9: kge/kgas
B10: Hauteur sous plafond | D10: m | H10: Température | I10: Humidité relative | J10: Humidité absolue
B11: V pièce= | C11: 1049 | D11: m3 | H11: -7 | I11: 80 | J11: =HUMSPE2(H11,I11) -> 0.001786533148
C12: 1.2 | D12: kg/m3
B13: kg air dans la pièce (constante) | C13: =C12*C11 -> 1258.8 | D13: kg air
B14: Cp air | C14: 1006 | D14: J/(kg.K)
B15: Cp eau | C15: 4186 | D15: J/(kg.K)
B17: débit à réguler
B19: Air neuf | C19: 5500 | D19: m3/h
B20: Taux de CO2 réglementaire | C20: 1700 | D20: ppm
B21: taux de CO2 dans l'air neuf | C21: 500 | D21: ppm
B24: Scénario d'occupation
B26: Taux d'occupation | C26: 1 | D26: 0.75 | E26: 0.5 | F26: 0.25 | K26: presence des eleves | L26: pause midi
B27: nombre d'eleve | C27: 352 | D27: =D26*$C$27 -> 264 | E27: =E26*$C$27 -> 176 | F27: =F26*$C$27 -> 88 | K27: ar | L27: pm
K28: dep | L28: rm
B29: Présence des élèves | I29: lundi | J29: de | K29: 08:00:00 | L29: 12:00:00
C30: de | D30: 08:00:00 | E30: à | F30: 18:00:00 | J30: à | K30: 18:00:00 | L30: 13:00:00
I31: mardi | J31: de | K31: 12:00:00 | L31: 12:00:00
B32: pause midi | J32: à | K32: 14:00:00 | L32: 12:00:00
C33: de | D33: 12:00:00 | E33: à | F33: 13:30:00 | I33: mercredi | J33: de | K33: 12:00:00 | L33: 12:00:00
J34: à | K34: 12:00:00 | L34: 12:00:00
I35: jeudi | J35: de | K35: 12:00:00 | L35: 12:00:00
B36: Scénario de ventilation | J36: à | K36: 12:00:00 | L36: 12:00:00
I37: vendredi | J37: de | K37: 12:00:00 | L37: 12:00:00
B38: planning de ventilation | J38: à | K38: 12:00:00 | L38: 12:00:00
C39: de | D39: 00:00:00 | E39: à | F39: 23:50:00 | I39: samedi | J39: de | K39: 12:00:00 | L39: 12:00:00
J40: à | K40: 12:00:00 | L40: 12:00:00
I41: dimanche | J41: de | K41: 12:00:00 | L41: 12:00:00
J42: à | K42: 12:00:00 | L42: 12:00:00
B43: Scénario de chauffage
B44: inoccupation | C44: 17 | D44: °C
B45: préchauffage | C45: 30 | D45: °C
B46: occupation | C46: 20 | D46: °C
C48: Température de soufflage | D48: plage horaire
B49: préchauffage | C49: =C45 -> 30 | D49: de | E49: 07:30:00 | F49: à | G49: 08:00:00
B50: occupation | C50: =C46 -> 20 | D50: de | E50: 08:00:00 | F50: à | G50: 18:00:00
B51: pause midi | C51: =C46 -> 20 | D51: de | E51: 12:00:00 | F51: à | G51: 13:30:00
C54: entrée | D54: sortie
B55: Températures d'eau | C55: 85 | D55: 65
B57: Déperdition
B58: temperature dans l'amphie | C58: 17 | E58: u*S | F58: =C63*C69 -> 5243.03 | G58: W/K
B59: température sous comble | C59: 15 | D59: °C | E59: P = U*S*DT
B60: landa beton | C60: 1.3 | E60: =C63*C69*(C58-C59) -> 10486.06 | F60: W
B61: épaisseur | C61: 0.2 | E61: t
B62: r = (E/lambda | C62: =C61/C60 -> 0.1538461538
B63: u = 1/R | C63: =1/C62 -> 6.5 | D63: W/m²/K
B66: surface de murs | C66: 257 | D66: m2
B67: surface de plancher haut | C67: 272.8 | D67: m2
B68: surface de plancher bas | C68: 276.82 | D68: m2
C69: =SUM(C66:C68) -> 806.62
B71: deperdituin
B76: equipement
B78: debit variable
B81: echangeur de chaleur | C81: oui
B82: registre | C82: oui
B84: tepérature de free cooling
C85: 20

Sheet Graph réf

Sheet debit réf
D2: presence des eleves | E2: pause midi
D3: ar | E3: pm
D4: dep | E4: rm
B5: lundi | C5: de | D5: 08:00:00 | E5: 12:00:00
C6: à | D6: 18:00:00 | E6: 13:00:00 | H6: B5:E18 nommé Champ
B7: mardi | C7: de | D7: 12:00:00 | E7: 12:00:00 | H7: B5:B18 nommé jour
C8: à | D8: 14:00:00 | E8: 12:00:00 | H8: reste à savoir comment on procède poiur inclure le début de la pause 12h et la fin dans le calcul
B9: mercredi | C9: de | D9: 12:00:00 | E9: 12:00:00 | H9: soit on enlève le =dans un des items de la formule
C10: à | D10: 12:00:00 | E10: 12:00:00 | H10: soit on écrit 11:59 dans la colonne D ou E au choix
B11: jeudi | C11: de | D11: 12:00:00 | E11: 12:00:00 | H11: car on ne peut pas à la fois inclure ou éliminer la même valeur
C12: à | D12: 12:00:00 | E12: 12:00:00 | H12: les lignes "occupé" sont en vert dans la colonne D
B13: vendredi | C13: de | D13: 12:00:00 | E13: 12:00:00 | H13: question:
C14: à | D14: 12:00:00 | E14: 12:00:00 | H14: si les horaires de disponibilté (ar, pm,dep,rm) sont figés, pourquoi placer des heures en colonne C en dehors de ces fourchettes????
B15: samedi | C15: de | D15: 12:00:00 | E15: 12:00:00
C16: à | D16: 12:00:00 | E16: 12:00:00 | H16: Pour le calcul direct du taux d'occupation,il faudrait donner des infos sur les régles de calcul
B17: dimanche | C17: de | D17: 12:00:00 | E17: 12:00:00
C18: à | D18: 12:00:00 | E18: 12:00:00
D21: Debir constant
D22: occupation
C23: 5 min
C24: Heure | D24: occupation 100%
A25: LUNDI | B25: 1 | C25: 00:00:00 | D25: =IF(OR(AND(C25>=INDEX(Champ,MATCH(A25,Jour,0),3),C25<=INDEX(Champ,MATCH(A25,Jour,0),4)),AND(C25>=INDEX(Champ,MATCH(A25,Jour,0)+1,4),C25<=INDEX(Champ,MATCH(A25,Jour,0)+1,3))),"occupé","") -> 
A26: LUNDI | B26: 1 | C26: 00:10:00 | D26: =IF(OR(AND(C26>=INDEX(Champ,MATCH(A26,Jour,0),3),C26<=INDEX(Champ,MATCH(A26,Jour,0),4)),AND(C26>=INDEX(Champ,MATCH(A26,Jour,0)+1,4),C26<=INDEX(Champ,MATCH(A26,Jour,0)+1,3))),"occupé","") -> 
A27: LUNDI | B27: 1 | C27: 00:20:00 | D27: =IF(OR(AND(C27>=INDEX(Champ,MATCH(A27,Jour,0),3),C27<=INDEX(Champ,MATCH(A27,Jour,0),4)),AND(C27>=INDEX(Champ,MATCH(A27,Jour,0)+1,4),C27<=INDEX(Champ,MATCH(A27,Jour,0)+1,3))),"occupé","") -> 
A28: LUNDI | B28: 1 | C28: 00:30:00 | D28: =IF(OR(AND(C28>=INDEX(Champ,MATCH(A28,Jour,0),3),C28<=INDEX(Champ,MATCH(A28,Jour,0),4)),AND(C28>=INDEX(Champ,MATCH(A28,Jour,0)+1,4),C28<=INDEX(Champ,MATCH(A28,Jour,0)+1,3))),"occupé","") -> 
A29: LUNDI | B29: 1 | C29: 00:40:00 | D29: =IF(OR(AND(C29>=INDEX(Champ,MATCH(A29,Jour,0),3),C29<=INDEX(Champ,MATCH(A29,Jour,0),4)),AND(C29>=INDEX(Champ,MATCH(A29,Jour,0)+1,4),C29<=INDEX(Champ,MATCH(A29,Jour,0)+1,3))),"occupé","") -> 
A30: LUNDI | B30: 1 | C30: 00:50:00 | D30: =IF(OR(AND(C30>=INDEX(Champ,MATCH(A30,Jour,0),3),C30<=INDEX(Champ,MATCH(A30,Jour,0),4)),AND(C30>=INDEX(Champ,MATCH(A30,Jour,0)+1,4),C30<=INDEX(Champ,MATCH(A30,Jour,0)+1,3))),"occupé","") -> 
A31: LUNDI | B31: 2 | C31: 01:00:00 | D31: =IF(OR(AND(C31>=INDEX(Champ,MATCH(A31,Jour,0),3),C31<=INDEX(Champ,MATCH(A31,Jour,0),4)),AND(C31>=INDEX(Champ,MATCH(A31,Jour,0)+1,4),C31<=INDEX(Champ,MATCH(A31,Jour,0)+1,3))),"occupé","") -> 
A32: LUNDI | B32: 2 | C32: 01:10:00 | D32: =IF(OR(AND(C32>=INDEX(Champ,MATCH(A32,Jour,0),3),C32<=INDEX(Champ,MATCH(A32,Jour,0),4)),AND(C32>=INDEX(Champ,MATCH(A32,Jour,0)+1,4),C32<=INDEX(Champ,MATCH(A32,Jour,0)+1,3))),"occupé","") -> 
A33: LUNDI | B33: 2 | C33: 01:20:00 | D33: =IF(OR(AND(C33>=INDEX(Champ,MATCH(A33,Jour,0),3),C33<=INDEX(Champ,MATCH(A33,Jour,0),4)),AND(C33>=INDEX(Champ,MATCH(A33,Jour,0)+1,4),C33<=INDEX(Champ,MATCH(A33,Jour,0)+1,3))),"occupé","") -> 
A34: LUNDI | B34: 2 | C34: 01:30:00 | D34: =IF(OR(AND(C34>=INDEX(Champ,MATCH(A34,Jour,0),3),C34<=INDEX(Champ,MATCH(A34,Jour,0),4)),AND(C34>=INDEX(Champ,MATCH(A34,Jour,0)+1,4),C34<=INDEX(Champ,MATCH(A34,Jour,0)+1,3))),"occupé","") -> 
A35: LUNDI | B35: 2 | C35: 01:40:00 | D35: =IF(OR(AND(C35>=INDEX(Champ,MATCH(A35,Jour,0),3),C35<=INDEX(Champ,MATCH(A35,Jour,0),4)),AND(C35>=INDEX(Champ,MATCH(A35,Jour,0)+1,4),C35<=INDEX(Champ,MATCH(A35,Jour,0)+1,3))),"occupé","") -> 
A36: LUNDI | B36: 2 | C36: 01:50:00 | D36: =IF(OR(AND(C36>=INDEX(Champ,MATCH(A36,Jour,0),3),C36<=INDEX(Champ,MATCH(A36,Jour,0),4)),AND(C36>=INDEX(Champ,MATCH(A36,Jour,0)+1,4),C36<=INDEX(Champ,MATCH(A36,Jour,0)+1,3))),"occupé","") -> 
A37: LUNDI | B37: 3 | C37: 02:00:00 | D37: =IF(OR(AND(C37>=INDEX(Champ,MATCH(A37,Jour,0),3),C37<=INDEX(Champ,MATCH(A37,Jour,0),4)),AND(C37>=INDEX(Champ,MATCH(A37,Jour,0)+1,4),C37<=INDEX(Champ,MATCH(A37,Jour,0)+1,3))),"occupé","") -> 
A38: LUNDI | B38: 3 | C38: 02:10:00 | D38: =IF(OR(AND(C38>=INDEX(Champ,MATCH(A38,Jour,0),3),C38<=INDEX(Champ,MATCH(A38,Jour,0),4)),AND(C38>=INDEX(Champ,MATCH(A38,Jour,0)+1,4),C38<=INDEX(Champ,MATCH(A38,Jour,0)+1,3))),"occupé","") -> 
A39: LUNDI | B39: 3 | C39: 02:20:00 | D39: =IF(OR(AND(C39>=INDEX(Champ,MATCH(A39,Jour,0),3),C39<=INDEX(Champ,MATCH(A39,Jour,0),4)),AND(C39>=INDEX(Champ,MATCH(A39,Jour,0)+1,4),C39<=INDEX(Champ,MATCH(A39,Jour,0)+1,3))),"occupé","") -> 
A40: LUNDI | B40: 3 | C40: 02:30:00 | D40: =IF(OR(AND(C40>=INDEX(Champ,MATCH(A40,Jour,0),3),C40<=INDEX(Champ,MATCH(A40,Jour,0),4)),AND(C40>=INDEX(Champ,MATCH(A40,Jour,0)+1,4),C40<=INDEX(Champ,MATCH(A40,Jour,0)+1,3))),"occupé","") -> 
A41: LUNDI | B41: 3 | C41: 02:40:00 | D41: =IF(OR(AND(C41>=INDEX(Champ,MATCH(A41,Jour,0),3),C41<=INDEX(Champ,MATCH(A41,Jour,0),4)),AND(C41>=INDEX(Champ,MATCH(A41,Jour,0)+1,4),C41<=INDEX(Champ,MATCH(A41,Jour,0)+1,3))),"occupé","") -> 
A42: LUNDI | B42: 3 | C42: 02:50:00 | D42: =IF(OR(AND(C42>=INDEX(Champ,MATCH(A42,Jour,0),3),C42<=INDEX(Champ,MATCH(A42,Jour,0),4)),AND(C42>=INDEX(Champ,MATCH(A42,Jour,0)+1,4),C42<=INDEX(Champ,MATCH(A42,Jour,0)+1,3))),"occupé","") -> 
A43: LUNDI | B43: 4 | C43: 03:00:00 | D43: =IF(OR(AND(C43>=INDEX(Champ,MATCH(A43,Jour,0),3),C43<=INDEX(Champ,MATCH(A43,Jour,0),4)),AND(C43>=INDEX(Champ,MATCH(A43,Jour,0)+1,4),C43<=INDEX(Champ,MATCH(A43,Jour,0)+1,3))),"occupé","") -> 
A44: LUNDI | B44: 4 | C44: 03:10:00 | D44: =IF(OR(AND(C44>=INDEX(Champ,MATCH(A44,Jour,0),3),C44<=INDEX(Champ,MATCH(A44,Jour,0),4)),AND(C44>=INDEX(Champ,MATCH(A44,Jour,0)+1,4),C44<=INDEX(Champ,MATCH(A44,Jour,0)+1,3))),"occupé","") -> 
A45: LUNDI | B45: 4 | C45: 03:20:00 | D45: =IF(OR(AND(C45>=INDEX(Champ,MATCH(A45,Jour,0),3),C45<=INDEX(Champ,MATCH(A45,Jour,0),4)),AND(C45>=INDEX(Champ,MATCH(A45,Jour,0)+1,4),C45<=INDEX(Champ,MATCH(A45,Jour,0)+1,3))),"occupé","") -> 
A46: LUNDI | B46: 4 | C46: 03:30:00 | D46: =IF(OR(AND(C46>=INDEX(Champ,MATCH(A46,Jour,0),3),C46<=INDEX(Champ,MATCH(A46,Jour,0),4)),AND(C46>=INDEX(Champ,MATCH(A46,Jour,0)+1,4),C46<=INDEX(Champ,MATCH(A46,Jour,0)+1,3))),"occupé","") -> 
A47: LUNDI | B47: 4 | C47: 03:40:00 | D47: =IF(OR(AND(C47>=INDEX(Champ,MATCH(A47,Jour,0),3),C47<=INDEX(Champ,MATCH(A47,Jour,0),4)),AND(C47>=INDEX(Champ,MATCH(A47,Jour,0)+1,4),C47<=INDEX(Champ,MATCH(A47,Jour,0)+1,3))),"occupé","") -> 
A48: LUNDI | B48: 4 | C48: 03:50:00 | D48: =IF(OR(AND(C48>=INDEX(Champ,MATCH(A48,Jour,0),3),C48<=INDEX(Champ,MATCH(A48,Jour,0),4)),AND(C48>=INDEX(Champ,MATCH(A48,Jour,0)+1,4),C48<=INDEX(Champ,MATCH(A48,Jour,0)+1,3))),"occupé","") -> 
A49: LUNDI | B49: 5 | C49: 04:00:00 | D49: =IF(OR(AND(C49>=INDEX(Champ,MATCH(A49,Jour,0),3),C49<=INDEX(Champ,MATCH(A49,Jour,0),4)),AND(C49>=INDEX(Champ,MATCH(A49,Jour,0)+1,4),C49<=INDEX(Champ,MATCH(A49,Jour,0)+1,3))),"occupé","") -> 
A50: LUNDI | B50: 5 | C50: 04:10:00 | D50: =IF(OR(AND(C50>=INDEX(Champ,MATCH(A50,Jour,0),3),C50<=INDEX(Champ,MATCH(A50,Jour,0),4)),AND(C50>=INDEX(Champ,MATCH(A50,Jour,0)+1,4),C50<=INDEX(Champ,MATCH(A50,Jour,0)+1,3))),"occupé","") -> 
A51: LUNDI | B51: 5 | C51: 04:20:00 | D51: =IF(OR(AND(C51>=INDEX(Champ,MATCH(A51,Jour,0),3),C51<=INDEX(Champ,MATCH(A51,Jour,0),4)),AND(C51>=INDEX(Champ,MATCH(A51,Jour,0)+1,4),C51<=INDEX(Champ,MATCH(A51,Jour,0)+1,3))),"occupé","") -> 
A52: LUNDI | B52: 5 | C52: 04:30:00 | D52: =IF(OR(AND(C52>=INDEX(Champ,MATCH(A52,Jour,0),3),C52<=INDEX(Champ,MATCH(A52,Jour,0),4)),AND(C52>=INDEX(Champ,MATCH(A52,Jour,0)+1,4),C52<=INDEX(Champ,MATCH(A52,Jour,0)+1,3))),"occupé","") -> 
A53: LUNDI | B53: 5 | C53: 04:40:00 | D53: =IF(OR(AND(C53>=INDEX(Champ,MATCH(A53,Jour,0),3),C53<=INDEX(Champ,MATCH(A53,Jour,0),4)),AND(C53>=INDEX(Champ,MATCH(A53,Jour,0)+1,4),C53<=INDEX(Champ,MATCH(A53,Jour,0)+1,3))),"occupé","") -> 
A54: LUNDI | B54: 5 | C54: 04:50:00 | D54: =IF(OR(AND(C54>=INDEX(Champ,MATCH(A54,Jour,0),3),C54<=INDEX(Champ,MATCH(A54,Jour,0),4)),AND(C54>=INDEX(Champ,MATCH(A54,Jour,0)+1,4),C54<=INDEX(Champ,MATCH(A54,Jour,0)+1,3))),"occupé","") -> 
A55: LUNDI | B55: 6 | C55: 05:00:00 | D55: =IF(OR(AND(C55>=INDEX(Champ,MATCH(A55,Jour,0),3),C55<=INDEX(Champ,MATCH(A55,Jour,0),4)),AND(C55>=INDEX(Champ,MATCH(A55,Jour,0)+1,4),C55<=INDEX(Champ,MATCH(A55,Jour,0)+1,3))),"occupé","") -> 
A56: LUNDI | B56: 6 | C56: 05:10:00 | D56: =IF(OR(AND(C56>=INDEX(Champ,MATCH(A56,Jour,0),3),C56<=INDEX(Champ,MATCH(A56,Jour,0),4)),AND(C56>=INDEX(Champ,MATCH(A56,Jour,0)+1,4),C56<=INDEX(Champ,MATCH(A56,Jour,0)+1,3))),"occupé","") -> 
A57: LUNDI | B57: 6 | C57: 05:20:00 | D57: =IF(OR(AND(C57>=INDEX(Champ,MATCH(A57,Jour,0),3),C57<=INDEX(Champ,MATCH(A57,Jour,0),4)),AND(C57>=INDEX(Champ,MATCH(A57,Jour,0)+1,4),C57<=INDEX(Champ,MATCH(A57,Jour,0)+1,3))),"occupé","") -> 
A58: LUNDI | B58: 6 | C58: 05:30:00 | D58: =IF(OR(AND(C58>=INDEX(Champ,MATCH(A58,Jour,0),3),C58<=INDEX(Champ,MATCH(A58,Jour,0),4)),AND(C58>=INDEX(Champ,MATCH(A58,Jour,0)+1,4),C58<=INDEX(Champ,MATCH(A58,Jour,0)+1,3))),"occupé","") -> 
A59: LUNDI | B59: 6 | C59: 05:40:00 | D59: =IF(OR(AND(C59>=INDEX(Champ,MATCH(A59,Jour,0),3),C59<=INDEX(Champ,MATCH(A59,Jour,0),4)),AND(C59>=INDEX(Champ,MATCH(A59,Jour,0)+1,4),C59<=INDEX(Champ,MATCH(A59,Jour,0)+1,3))),"occupé","") -> 
A60: LUNDI | B60: 6 | C60: 05:50:00 | D60: =IF(OR(AND(C60>=INDEX(Champ,MATCH(A60,Jour,0),3),C60<=INDEX(Champ,MATCH(A60,Jour,0),4)),AND(C60>=INDEX(Champ,MATCH(A60,Jour,0)+1,4),C60<=INDEX(Champ,MATCH(A60,Jour,0)+1,3))),"occupé","") -> 
A61: LUNDI | B61: 7 | C61: 06:00:00 | D61: =IF(OR(AND(C61>=INDEX(Champ,MATCH(A61,Jour,0),3),C61<=INDEX(Champ,MATCH(A61,Jour,0),4)),AND(C61>=INDEX(Champ,MATCH(A61,Jour,0)+1,4),C61<=INDEX(Champ,MATCH(A61,Jour,0)+1,3))),"occupé","") -> 
A62: LUNDI | B62: 7 | C62: 06:10:00 | D62: =IF(OR(AND(C62>=INDEX(Champ,MATCH(A62,Jour,0),3),C62<=INDEX(Champ,MATCH(A62,Jour,0),4)),AND(C62>=INDEX(Champ,MATCH(A62,Jour,0)+1,4),C62<=INDEX(Champ,MATCH(A62,Jour,0)+1,3))),"occupé","") -> 
A63: LUNDI | B63: 7 | C63: 06:20:00 | D63: =IF(OR(AND(C63>=INDEX(Champ,MATCH(A63,Jour,0),3),C63<=INDEX(Champ,MATCH(A63,Jour,0),4)),AND(C63>=INDEX(Champ,MATCH(A63,Jour,0)+1,4),C63<=INDEX(Champ,MATCH(A63,Jour,0)+1,3))),"occupé","") -> 
A64: LUNDI | B64: 7 | C64: 06:30:00 | D64: =IF(OR(AND(C64>=INDEX(Champ,MATCH(A64,Jour,0),3),C64<=INDEX(Champ,MATCH(A64,Jour,0),4)),AND(C64>=INDEX(Champ,MATCH(A64,Jour,0)+1,4),C64<=INDEX(Champ,MATCH(A64,Jour,0)+1,3))),"occupé","") -> 
A65: LUNDI | B65: 7 | C65: 06:40:00 | D65: =IF(OR(AND(C65>=INDEX(Champ,MATCH(A65,Jour,0),3),C65<=INDEX(Champ,MATCH(A65,Jour,0),4)),AND(C65>=INDEX(Champ,MATCH(A65,Jour,0)+1,4),C65<=INDEX(Champ,MATCH(A65,Jour,0)+1,3))),"occupé","") -> 
A66: LUNDI | B66: 7 | C66: 06:50:00 | D66: =IF(OR(AND(C66>=INDEX(Champ,MATCH(A66,Jour,0),3),C66<=INDEX(Champ,MATCH(A66,Jour,0),4)),AND(C66>=INDEX(Champ,MATCH(A66,Jour,0)+1,4),C66<=INDEX(Champ,MATCH(A66,Jour,0)+1,3))),"occupé","") -> 
A67: LUNDI | B67: 8 | C67: 07:00:00 | D67: =IF(OR(AND(C67>=INDEX(Champ,MATCH(A67,Jour,0),3),C67<=INDEX(Champ,MATCH(A67,Jour,0),4)),AND(C67>=INDEX(Champ,MATCH(A67,Jour,0)+1,4),C67<=INDEX(Champ,MATCH(A67,Jour,0)+1,3))),"occupé","") -> 
A68: LUNDI | B68: 8 | C68: 07:10:00 | D68: =IF(OR(AND(C68>=INDEX(Champ,MATCH(A68,Jour,0),3),C68<=INDEX(Champ,MATCH(A68,Jour,0),4)),AND(C68>=INDEX(Champ,MATCH(A68,Jour,0)+1,4),C68<=INDEX(Champ,MATCH(A68,Jour,0)+1,3))),"occupé","") -> 
A69: LUNDI | B69: 8 | C69: 07:20:00 | D69: =IF(OR(AND(C69>=INDEX(Champ,MATCH(A69,Jour,0),3),C69<=INDEX(Champ,MATCH(A69,Jour,0),4)),AND(C69>=INDEX(Champ,MATCH(A69,Jour,0)+1,4),C69<=INDEX(Champ,MATCH(A69,Jour,0)+1,3))),"occupé","") -> 
A70: LUNDI | B70: 8 | C70: 07:30:00 | D70: =IF(OR(AND(C70>=INDEX(Champ,MATCH(A70,Jour,0),3),C70<=INDEX(Champ,MATCH(A70,Jour,0),4)),AND(C70>=INDEX(Champ,MATCH(A70,Jour,0)+1,4),C70<=INDEX(Champ,MATCH(A70,Jour,0)+1,3))),"occupé","") -> 
A71: LUNDI | B71: 8 | C71: 07:40:00 | D71: =IF(OR(AND(C71>=INDEX(Champ,MATCH(A71,Jour,0),3),C71<=INDEX(Champ,MATCH(A71,Jour,0),4)),AND(C71>=INDEX(Champ,MATCH(A71,Jour,0)+1,4),C71<=INDEX(Champ,MATCH(A71,Jour,0)+1,3))),"occupé","") -> 
A72: LUNDI | B72: 8 | C72: 07:50:00 | D72: =IF(OR(AND(C72>=INDEX(Champ,MATCH(A72,Jour,0),3),C72<=INDEX(Champ,MATCH(A72,Jour,0),4)),AND(C72>=INDEX(Champ,MATCH(A72,Jour,0)+1,4),C72<=INDEX(Champ,MATCH(A72,Jour,0)+1,3))),"occupé","") -> 
A73: Lundi | B73: 9 | C73: 08:00:00 | D73: =IF(OR(AND(C73>=INDEX(Champ,MATCH(A73,Jour,0),3),C73<=INDEX(Champ,MATCH(A73,Jour,0),4)),AND(C73>=INDEX(Champ,MATCH(A73,Jour,0)+1,4),C73<=INDEX(Champ,MATCH(A73,Jour,0)+1,3))),"occupé","") -> occupé
A74: LUNDI | B74: 9 | C74: 08:10:00 | D74: =IF(OR(AND(C74>=INDEX(Champ,MATCH(A74,Jour,0),3),C74<=INDEX(Champ,MATCH(A74,Jour,0),4)),AND(C74>=INDEX(Champ,MATCH(A74,Jour,0)+1,4),C74<=INDEX(Champ,MATCH(A74,Jour,0)+1,3))),"occupé","") -> occupé
A75: LUNDI | B75: 9 | C75: 08:20:00 | D75: =IF(OR(AND(C75>=INDEX(Champ,MATCH(A75,Jour,0),3),C75<=INDEX(Champ,MATCH(A75,Jour,0),4)),AND(C75>=INDEX(Champ,MATCH(A75,Jour,0)+1,4),C75<=INDEX(Champ,MATCH(A75,Jour,0)+1,3))),"occupé","") -> occupé
A76: LUNDI | B76: 9 | C76: 08:30:00 | D76: =IF(OR(AND(C76>=INDEX(Champ,MATCH(A76,Jour,0),3),C76<=INDEX(Champ,MATCH(A76,Jour,0),4)),AND(C76>=INDEX(Champ,MATCH(A76,Jour,0)+1,4),C76<=INDEX(Champ,MATCH(A76,Jour,0)+1,3))),"occupé","") -> occupé
A77: LUNDI | B77: 9 | C77: 08:40:00 | D77: =IF(OR(AND(C77>=INDEX(Champ,MATCH(A77,Jour,0),3),C77<=INDEX(Champ,MATCH(A77,Jour,0),4)),AND(C77>=INDEX(Champ,MATCH(A77,Jour,0)+1,4),C77<=INDEX(Champ,MATCH(A77,Jour,0)+1,3))),"occupé","") -> occupé
A78: LUNDI | B78: 9 | C78: 08:50:00 | D78: =IF(OR(AND(C78>=INDEX(Champ,MATCH(A78,Jour,0),3),C78<=INDEX(Champ,MATCH(A78,Jour,0),4)),AND(C78>=INDEX(Champ,MATCH(A78,Jour,0)+1,4),C78<=INDEX(Champ,MATCH(A78,Jour,0)+1,3))),"occupé","") -> occupé
A79: LUNDI | B79: 10 | C79: 09:00:00 | D79: =IF(OR(AND(C79>=INDEX(Champ,MATCH(A79,Jour,0),3),C79<=INDEX(Champ,MATCH(A79,Jour,0),4)),AND(C79>=INDEX(Champ,MATCH(A79,Jour,0)+1,4),C79<=INDEX(Champ,MATCH(A79,Jour,0)+1,3))),"occupé","") -> occupé
A80: LUNDI | B80: 10 | C80: 09:10:00 | D80: =IF(OR(AND(C80>=INDEX(Champ,MATCH(A80,Jour,0),3),C80<=INDEX(Champ,MATCH(A80,Jour,0),4)),AND(C80>=INDEX(Champ,MATCH(A80,Jour,0)+1,4),C80<=INDEX(Champ,MATCH(A80,Jour,0)+1,3))),"occupé","") -> occupé
A81: LUNDI | B81: 10 | C81: 09:20:00 | D81: =IF(OR(AND(C81>=INDEX(Champ,MATCH(A81,Jour,0),3),C81<=INDEX(Champ,MATCH(A81,Jour,0),4)),AND(C81>=INDEX(Champ,MATCH(A81,Jour,0)+1,4),C81<=INDEX(Champ,MATCH(A81,Jour,0)+1,3))),"occupé","") -> occupé
A82: LUNDI | B82: 10 | C82: 09:30:00 | D82: =IF(OR(AND(C82>=INDEX(Champ,MATCH(A82,Jour,0),3),C82<=INDEX(Champ,MATCH(A82,Jour,0),4)),AND(C82>=INDEX(Champ,MATCH(A82,Jour,0)+1,4),C82<=INDEX(Champ,MATCH(A82,Jour,0)+1,3))),"occupé","") -> occupé
A83: LUNDI | B83: 10 | C83: 09:40:00 | D83: =IF(OR(AND(C83>=INDEX(Champ,MATCH(A83,Jour,0),3),C83<=INDEX(Champ,MATCH(A83,Jour,0),4)),AND(C83>=INDEX(Champ,MATCH(A83,Jour,0)+1,4),C83<=INDEX(Champ,MATCH(A83,Jour,0)+1,3))),"occupé","") -> occupé
A84: LUNDI | B84: 10 | C84: 09:50:00 | D84: =IF(OR(AND(C84>=INDEX(Champ,MATCH(A84,Jour,0),3),C84<=INDEX(Champ,MATCH(A84,Jour,0),4)),AND(C84>=INDEX(Champ,MATCH(A84,Jour,0)+1,4),C84<=INDEX(Champ,MATCH(A84,Jour,0)+1,3))),"occupé","") -> occupé
A85: LUNDI | B85: 11 | C85: 10:00:00 | D85: =IF(OR(AND(C85>=INDEX(Champ,MATCH(A85,Jour,0),3),C85<=INDEX(Champ,MATCH(A85,Jour,0),4)),AND(C85>=INDEX(Champ,MATCH(A85,Jour,0)+1,4),C85<=INDEX(Champ,MATCH(A85,Jour,0)+1,3))),"occupé","") -> occupé
A86: LUNDI | B86: 11 | C86: 10:10:00 | D86: =IF(OR(AND(C86>=INDEX(Champ,MATCH(A86,Jour,0),3),C86<=INDEX(Champ,MATCH(A86,Jour,0),4)),AND(C86>=INDEX(Champ,MATCH(A86,Jour,0)+1,4),C86<=INDEX(Champ,MATCH(A86,Jour,0)+1,3))),"occupé","") -> occupé
A87: LUNDI | B87: 11 | C87: 10:20:00 | D87: =IF(OR(AND(C87>=INDEX(Champ,MATCH(A87,Jour,0),3),C87<=INDEX(Champ,MATCH(A87,Jour,0),4)),AND(C87>=INDEX(Champ,MATCH(A87,Jour,0)+1,4),C87<=INDEX(Champ,MATCH(A87,Jour,0)+1,3))),"occupé","") -> occupé
A88: LUNDI | B88: 11 | C88: 10:30:00 | D88: =IF(OR(AND(C88>=INDEX(Champ,MATCH(A88,Jour,0),3),C88<=INDEX(Champ,MATCH(A88,Jour,0),4)),AND(C88>=INDEX(Champ,MATCH(A88,Jour,0)+1,4),C88<=INDEX(Champ,MATCH(A88,Jour,0)+1,3))),"occupé","") -> occupé
A89: LUNDI | B89: 11 | C89: 10:40:00 | D89: =IF(OR(AND(C89>=INDEX(Champ,MATCH(A89,Jour,0),3),C89<=INDEX(Champ,MATCH(A89,Jour,0),4)),AND(C89>=INDEX(Champ,MATCH(A89,Jour,0)+1,4),C89<=INDEX(Champ,MATCH(A89,Jour,0)+1,3))),"occupé","") -> occupé
A90: LUNDI | B90: 11 | C90: 10:50:00 | D90: =IF(OR(AND(C90>=INDEX(Champ,MATCH(A90,Jour,0),3),C90<=INDEX(Champ,MATCH(A90,Jour,0),4)),AND(C90>=INDEX(Champ,MATCH(A90,Jour,0)+1,4),C90<=INDEX(Champ,MATCH(A90,Jour,0)+1,3))),"occupé","") -> occupé
A91: LUNDI | B91: 12 | C91: 11:00:00 | D91: =IF(OR(AND(C91>=INDEX(Champ,MATCH(A91,Jour,0),3),C91<=INDEX(Champ,MATCH(A91,Jour,0),4)),AND(C91>=INDEX(Champ,MATCH(A91,Jour,0)+1,4),C91<=INDEX(Champ,MATCH(A91,Jour,0)+1,3))),"occupé","") -> occupé
A92: LUNDI | B92: 12 | C92: 11:10:00 | D92: =IF(OR(AND(C92>=INDEX(Champ,MATCH(A92,Jour,0),3),C92<=INDEX(Champ,MATCH(A92,Jour,0),4)),AND(C92>=INDEX(Champ,MATCH(A92,Jour,0)+1,4),C92<=INDEX(Champ,MATCH(A92,Jour,0)+1,3))),"occupé","") -> occupé
A93: LUNDI | B93: 12 | C93: 11:20:00 | D93: =IF(OR(AND(C93>=INDEX(Champ,MATCH(A93,Jour,0),3),C93<=INDEX(Champ,MATCH(A93,Jour,0),4)),AND(C93>=INDEX(Champ,MATCH(A93,Jour,0)+1,4),C93<=INDEX(Champ,MATCH(A93,Jour,0)+1,3))),"occupé","") -> occupé
A94: LUNDI | B94: 12 | C94: 11:30:00 | D94: =IF(OR(AND(C94>=INDEX(Champ,MATCH(A94,Jour,0),3),C94<=INDEX(Champ,MATCH(A94,Jour,0),4)),AND(C94>=INDEX(Champ,MATCH(A94,Jour,0)+1,4),C94<=INDEX(Champ,MATCH(A94,Jour,0)+1,3))),"occupé","") -> occupé
A95: LUNDI | B95: 12 | C95: 11:40:00 | D95: =IF(OR(AND(C95>=INDEX(Champ,MATCH(A95,Jour,0),3),C95<=INDEX(Champ,MATCH(A95,Jour,0),4)),AND(C95>=INDEX(Champ,MATCH(A95,Jour,0)+1,4),C95<=INDEX(Champ,MATCH(A95,Jour,0)+1,3))),"occupé","") -> occupé
A96: LUNDI | B96: 12 | C96: 11:50:00 | D96: =IF(OR(AND(C96>=INDEX(Champ,MATCH(A96,Jour,0),3),C96<=INDEX(Champ,MATCH(A96,Jour,0),4)),AND(C96>=INDEX(Champ,MATCH(A96,Jour,0)+1,4),C96<=INDEX(Champ,MATCH(A96,Jour,0)+1,3))),"occupé","") -> occupé
A97: LUNDI | B97: 13 | C97: 12:00:00 | D97: =IF(OR(AND(C97>=INDEX(Champ,MATCH(A97,Jour,0),3),C97<=INDEX(Champ,MATCH(A97,Jour,0),4)),AND(C97>=INDEX(Champ,MATCH(A97,Jour,0)+1,4),C97<=INDEX(Champ,MATCH(A97,Jour,0)+1,3))),"occupé","") -> occupé
A98: LUNDI | B98: 13 | C98: 12:10:00 | D98: =IF(OR(AND(C98>=INDEX(Champ,MATCH(A98,Jour,0),3),C98<=INDEX(Champ,MATCH(A98,Jour,0),4)),AND(C98>=INDEX(Champ,MATCH(A98,Jour,0)+1,4),C98<=INDEX(Champ,MATCH(A98,Jour,0)+1,3))),"occupé","") -> 
A99: LUNDI | B99: 13 | C99: 12:20:00 | D99: =IF(OR(AND(C99>=INDEX(Champ,MATCH(A99,Jour,0),3),C99<=INDEX(Champ,MATCH(A99,Jour,0),4)),AND(C99>=INDEX(Champ,MATCH(A99,Jour,0)+1,4),C99<=INDEX(Champ,MATCH(A99,Jour,0)+1,3))),"occupé","") -> 
A100: LUNDI | B100: 13 | C100: 12:30:00 | D100: =IF(OR(AND(C100>=INDEX(Champ,MATCH(A100,Jour,0),3),C100<=INDEX(Champ,MATCH(A100,Jour,0),4)),AND(C100>=INDEX(Champ,MATCH(A100,Jour,0)+1,4),C100<=INDEX(Champ,MATCH(A100,Jour,0)+1,3))),"occupé","") -> 
A101: LUNDI | B101: 13 | C101: 12:40:00 | D101: =IF(OR(AND(C101>=INDEX(Champ,MATCH(A101,Jour,0),3),C101<=INDEX(Champ,MATCH(A101,Jour,0),4)),AND(C101>=INDEX(Champ,MATCH(A101,Jour,0)+1,4),C101<=INDEX(Champ,MATCH(A101,Jour,0)+1,3))),"occupé","") -> 
A102: LUNDI | B102: 13 | C102: 12:50:00 | D102: =IF(OR(AND(C102>=INDEX(Champ,MATCH(A102,Jour,0),3),C102<=INDEX(Champ,MATCH(A102,Jour,0),4)),AND(C102>=INDEX(Champ,MATCH(A102,Jour,0)+1,4),C102<=INDEX(Champ,MATCH(A102,Jour,0)+1,3))),"occupé","") -> 
A103: LUNDI | B103: 14 | C103: 13:00:00 | D103: =IF(OR(AND(C103>=INDEX(Champ,MATCH(A103,Jour,0),3),C103<=INDEX(Champ,MATCH(A103,Jour,0),4)),AND(C103>=INDEX(Champ,MATCH(A103,Jour,0)+1,4),C103<=INDEX(Champ,MATCH(A103,Jour,0)+1,3))),"occupé","") -> occupé
A104: LUNDI | B104: 14 | C104: 13:10:00 | D104: =IF(OR(AND(C104>=INDEX(Champ,MATCH(A104,Jour,0),3),C104<=INDEX(Champ,MATCH(A104,Jour,0),4)),AND(C104>=INDEX(Champ,MATCH(A104,Jour,0)+1,4),C104<=INDEX(Champ,MATCH(A104,Jour,0)+1,3))),"occupé","") -> occupé
A105: LUNDI | B105: 14 | C105: 13:20:00 | D105: =IF(OR(AND(C105>=INDEX(Champ,MATCH(A105,Jour,0),3),C105<=INDEX(Champ,MATCH(A105,Jour,0),4)),AND(C105>=INDEX(Champ,MATCH(A105,Jour,0)+1,4),C105<=INDEX(Champ,MATCH(A105,Jour,0)+1,3))),"occupé","") -> occupé
A106: LUNDI | B106: 14 | C106: 13:30:00 | D106: =IF(OR(AND(C106>=INDEX(Champ,MATCH(A106,Jour,0),3),C106<=INDEX(Champ,MATCH(A106,Jour,0),4)),AND(C106>=INDEX(Champ,MATCH(A106,Jour,0)+1,4),C106<=INDEX(Champ,MATCH(A106,Jour,0)+1,3))),"occupé","") -> occupé
A107: LUNDI | B107: 14 | C107: 13:40:00 | D107: =IF(OR(AND(C107>=INDEX(Champ,MATCH(A107,Jour,0),3),C107<=INDEX(Champ,MATCH(A107,Jour,0),4)),AND(C107>=INDEX(Champ,MATCH(A107,Jour,0)+1,4),C107<=INDEX(Champ,MATCH(A107,Jour,0)+1,3))),"occupé","") -> occupé
A108: LUNDI | B108: 14 | C108: 13:50:00 | D108: =IF(OR(AND(C108>=INDEX(Champ,MATCH(A108,Jour,0),3),C108<=INDEX(Champ,MATCH(A108,Jour,0),4)),AND(C108>=INDEX(Champ,MATCH(A108,Jour,0)+1,4),C108<=INDEX(Champ,MATCH(A108,Jour,0)+1,3))),"occupé","") -> occupé
A109: LUNDI | B109: 15 | C109: 14:00:00 | D109: =IF(OR(AND(C109>=INDEX(Champ,MATCH(A109,Jour,0),3),C109<=INDEX(Champ,MATCH(A109,Jour,0),4)),AND(C109>=INDEX(Champ,MATCH(A109,Jour,0)+1,4),C109<=INDEX(Champ,MATCH(A109,Jour,0)+1,3))),"occupé","") -> occupé
A110: LUNDI | B110: 15 | C110: 14:10:00 | D110: =IF(OR(AND(C110>=INDEX(Champ,MATCH(A110,Jour,0),3),C110<=INDEX(Champ,MATCH(A110,Jour,0),4)),AND(C110>=INDEX(Champ,MATCH(A110,Jour,0)+1,4),C110<=INDEX(Champ,MATCH(A110,Jour,0)+1,3))),"occupé","") -> occupé
A111: LUNDI | B111: 15 | C111: 14:20:00 | D111: =IF(OR(AND(C111>=INDEX(Champ,MATCH(A111,Jour,0),3),C111<=INDEX(Champ,MATCH(A111,Jour,0),4)),AND(C111>=INDEX(Champ,MATCH(A111,Jour,0)+1,4),C111<=INDEX(Champ,MATCH(A111,Jour,0)+1,3))),"occupé","") -> occupé
A112: LUNDI | B112: 15 | C112: 14:30:00 | D112: =IF(OR(AND(C112>=INDEX(Champ,MATCH(A112,Jour,0),3),C112<=INDEX(Champ,MATCH(A112,Jour,0),4)),AND(C112>=INDEX(Champ,MATCH(A112,Jour,0)+1,4),C112<=INDEX(Champ,MATCH(A112,Jour,0)+1,3))),"occupé","") -> occupé
A113: LUNDI | B113: 15 | C113: 14:40:00 | D113: =IF(OR(AND(C113>=INDEX(Champ,MATCH(A113,Jour,0),3),C113<=INDEX(Champ,MATCH(A113,Jour,0),4)),AND(C113>=INDEX(Champ,MATCH(A113,Jour,0)+1,4),C113<=INDEX(Champ,MATCH(A113,Jour,0)+1,3))),"occupé","") -> occupé
A114: LUNDI | B114: 15 | C114: 14:50:00 | D114: =IF(OR(AND(C114>=INDEX(Champ,MATCH(A114,Jour,0),3),C114<=INDEX(Champ,MATCH(A114,Jour,0),4)),AND(C114>=INDEX(Champ,MATCH(A114,Jour,0)+1,4),C114<=INDEX(Champ,MATCH(A114,Jour,0)+1,3))),"occupé","") -> occupé
A115: LUNDI | B115: 16 | C115: 15:00:00 | D115: =IF(OR(AND(C115>=INDEX(Champ,MATCH(A115,Jour,0),3),C115<=INDEX(Champ,MATCH(A115,Jour,0),4)),AND(C115>=INDEX(Champ,MATCH(A115,Jour,0)+1,4),C115<=INDEX(Champ,MATCH(A115,Jour,0)+1,3))),"occupé","") -> occupé
A116: LUNDI | B116: 16 | C116: 15:10:00 | D116: =IF(OR(AND(C116>=INDEX(Champ,MATCH(A116,Jour,0),3),C116<=INDEX(Champ,MATCH(A116,Jour,0),4)),AND(C116>=INDEX(Champ,MATCH(A116,Jour,0)+1,4),C116<=INDEX(Champ,MATCH(A116,Jour,0)+1,3))),"occupé","") -> occupé
A117: LUNDI | B117: 16 | C117: 15:20:00 | D117: =IF(OR(AND(C117>=INDEX(Champ,MATCH(A117,Jour,0),3),C117<=INDEX(Champ,MATCH(A117,Jour,0),4)),AND(C117>=INDEX(Champ,MATCH(A117,Jour,0)+1,4),C117<=INDEX(Champ,MATCH(A117,Jour,0)+1,3))),"occupé","") -> occupé
A118: LUNDI | B118: 16 | C118: 15:30:00 | D118: =IF(OR(AND(C118>=INDEX(Champ,MATCH(A118,Jour,0),3),C118<=INDEX(Champ,MATCH(A118,Jour,0),4)),AND(C118>=INDEX(Champ,MATCH(A118,Jour,0)+1,4),C118<=INDEX(Champ,MATCH(A118,Jour,0)+1,3))),"occupé","") -> occupé
A119: LUNDI | B119: 16 | C119: 15:40:00 | D119: =IF(OR(AND(C119>=INDEX(Champ,MATCH(A119,Jour,0),3),C119<=INDEX(Champ,MATCH(A119,Jour,0),4)),AND(C119>=INDEX(Champ,MATCH(A119,Jour,0)+1,4),C119<=INDEX(Champ,MATCH(A119,Jour,0)+1,3))),"occupé","") -> occupé
A120: LUNDI | B120: 16 | C120: 15:50:00 | D120: =IF(OR(AND(C120>=INDEX(Champ,MATCH(A120,Jour,0),3),C120<=INDEX(Champ,MATCH(A120,Jour,0),4)),AND(C120>=INDEX(Champ,MATCH(A120,Jour,0)+1,4),C120<=INDEX(Champ,MATCH(A120,Jour,0)+1,3))),"occupé","") -> occupé
A121: LUNDI | B121: 17 | C121: 16:00:00 | D121: =IF(OR(AND(C121>=INDEX(Champ,MATCH(A121,Jour,0),3),C121<=INDEX(Champ,MATCH(A121,Jour,0),4)),AND(C121>=INDEX(Champ,MATCH(A121,Jour,0)+1,4),C121<=INDEX(Champ,MATCH(A121,Jour,0)+1,3))),"occupé","") -> occupé
A122: LUNDI | B122: 17 | C122: 16:10:00 | D122: =IF(OR(AND(C122>=INDEX(Champ,MATCH(A122,Jour,0),3),C122<=INDEX(Champ,MATCH(A122,Jour,0),4)),AND(C122>=INDEX(Champ,MATCH(A122,Jour,0)+1,4),C122<=INDEX(Champ,MATCH(A122,Jour,0)+1,3))),"occupé","") -> occupé
A123: LUNDI | B123: 17 | C123: 16:20:00 | D123: =IF(OR(AND(C123>=INDEX(Champ,MATCH(A123,Jour,0),3),C123<=INDEX(Champ,MATCH(A123,Jour,0),4)),AND(C123>=INDEX(Champ,MATCH(A123,Jour,0)+1,4),C123<=INDEX(Champ,MATCH(A123,Jour,0)+1,3))),"occupé","") -> occupé
A124: LUNDI | B124: 17 | C124: 16:30:00 | D124: =IF(OR(AND(C124>=INDEX(Champ,MATCH(A124,Jour,0),3),C124<=INDEX(Champ,MATCH(A124,Jour,0),4)),AND(C124>=INDEX(Champ,MATCH(A124,Jour,0)+1,4),C124<=INDEX(Champ,MATCH(A124,Jour,0)+1,3))),"occupé","") -> occupé
A125: LUNDI | B125: 17 | C125: 16:40:00 | D125: =IF(OR(AND(C125>=INDEX(Champ,MATCH(A125,Jour,0),3),C125<=INDEX(Champ,MATCH(A125,Jour,0),4)),AND(C125>=INDEX(Champ,MATCH(A125,Jour,0)+1,4),C125<=INDEX(Champ,MATCH(A125,Jour,0)+1,3))),"occupé","") -> occupé
A126: LUNDI | B126: 17 | C126: 16:50:00 | D126: =IF(OR(AND(C126>=INDEX(Champ,MATCH(A126,Jour,0),3),C126<=INDEX(Champ,MATCH(A126,Jour,0),4)),AND(C126>=INDEX(Champ,MATCH(A126,Jour,0)+1,4),C126<=INDEX(Champ,MATCH(A126,Jour,0)+1,3))),"occupé","") -> occupé
A127: LUNDI | B127: 18 | C127: 17:00:00 | D127: =IF(OR(AND(C127>=INDEX(Champ,MATCH(A127,Jour,0),3),C127<=INDEX(Champ,MATCH(A127,Jour,0),4)),AND(C127>=INDEX(Champ,MATCH(A127,Jour,0)+1,4),C127<=INDEX(Champ,MATCH(A127,Jour,0)+1,3))),"occupé","") -> occupé
A128: LUNDI | B128: 18 | C128: 17:10:00 | D128: =IF(OR(AND(C128>=INDEX(Champ,MATCH(A128,Jour,0),3),C128<=INDEX(Champ,MATCH(A128,Jour,0),4)),AND(C128>=INDEX(Champ,MATCH(A128,Jour,0)+1,4),C128<=INDEX(Champ,MATCH(A128,Jour,0)+1,3))),"occupé","") -> occupé
A129: LUNDI | B129: 18 | C129: 17:20:00 | D129: =IF(OR(AND(C129>=INDEX(Champ,MATCH(A129,Jour,0),3),C129<=INDEX(Champ,MATCH(A129,Jour,0),4)),AND(C129>=INDEX(Champ,MATCH(A129,Jour,0)+1,4),C129<=INDEX(Champ,MATCH(A129,Jour,0)+1,3))),"occupé","") -> occupé
A130: LUNDI | B130: 18 | C130: 17:30:00 | D130: =IF(OR(AND(C130>=INDEX(Champ,MATCH(A130,Jour,0),3),C130<=INDEX(Champ,MATCH(A130,Jour,0),4)),AND(C130>=INDEX(Champ,MATCH(A130,Jour,0)+1,4),C130<=INDEX(Champ,MATCH(A130,Jour,0)+1,3))),"occupé","") -> occupé
A131: LUNDI | B131: 18 | C131: 17:40:00 | D131: =IF(OR(AND(C131>=INDEX(Champ,MATCH(A131,Jour,0),3),C131<=INDEX(Champ,MATCH(A131,Jour,0),4)),AND(C131>=INDEX(Champ,MATCH(A131,Jour,0)+1,4),C131<=INDEX(Champ,MATCH(A131,Jour,0)+1,3))),"occupé","") -> occupé
A132: LUNDI | B132: 18 | C132: 17:50:00 | D132: =IF(OR(AND(C132>=INDEX(Champ,MATCH(A132,Jour,0),3),C132<=INDEX(Champ,MATCH(A132,Jour,0),4)),AND(C132>=INDEX(Champ,MATCH(A132,Jour,0)+1,4),C132<=INDEX(Champ,MATCH(A132,Jour,0)+1,3))),"occupé","") -> occupé
A133: LUNDI | B133: 19 | C133: 18:00:00 | D133: =IF(OR(AND(C133>=INDEX(Champ,MATCH(A133,Jour,0),3),C133<=INDEX(Champ,MATCH(A133,Jour,0),4)),AND(C133>=INDEX(Champ,MATCH(A133,Jour,0)+1,4),C133<=INDEX(Champ,MATCH(A133,Jour,0)+1,3))),"occupé","") -> occupé
A134: LUNDI | B134: 19 | C134: 18:10:00 | D134: =IF(OR(AND(C134>=INDEX(Champ,MATCH(A134,Jour,0),3),C134<=INDEX(Champ,MATCH(A134,Jour,0),4)),AND(C134>=INDEX(Champ,MATCH(A134,Jour,0)+1,4),C134<=INDEX(Champ,MATCH(A134,Jour,0)+1,3))),"occupé","") -> 
A135: LUNDI | B135: 19 | C135: 18:20:00 | D135: =IF(OR(AND(C135>=INDEX(Champ,MATCH(A135,Jour,0),3),C135<=INDEX(Champ,MATCH(A135,Jour,0),4)),AND(C135>=INDEX(Champ,MATCH(A135,Jour,0)+1,4),C135<=INDEX(Champ,MATCH(A135,Jour,0)+1,3))),"occupé","") -> 
A136: LUNDI | B136: 19 | C136: 18:30:00 | D136: =IF(OR(AND(C136>=INDEX(Champ,MATCH(A136,Jour,0),3),C136<=INDEX(Champ,MATCH(A136,Jour,0),4)),AND(C136>=INDEX(Champ,MATCH(A136,Jour,0)+1,4),C136<=INDEX(Champ,MATCH(A136,Jour,0)+1,3))),"occupé","") -> 
A137: LUNDI | B137: 19 | C137: 18:40:00 | D137: =IF(OR(AND(C137>=INDEX(Champ,MATCH(A137,Jour,0),3),C137<=INDEX(Champ,MATCH(A137,Jour,0),4)),AND(C137>=INDEX(Champ,MATCH(A137,Jour,0)+1,4),C137<=INDEX(Champ,MATCH(A137,Jour,0)+1,3))),"occupé","") -> 
A138: LUNDI | B138: 19 | C138: 18:50:00 | D138: =IF(OR(AND(C138>=INDEX(Champ,MATCH(A138,Jour,0),3),C138<=INDEX(Champ,MATCH(A138,Jour,0),4)),AND(C138>=INDEX(Champ,MATCH(A138,Jour,0)+1,4),C138<=INDEX(Champ,MATCH(A138,Jour,0)+1,3))),"occupé","") -> 
A139: LUNDI | B139: 20 | C139: 19:00:00 | D139: =IF(OR(AND(C139>=INDEX(Champ,MATCH(A139,Jour,0),3),C139<=INDEX(Champ,MATCH(A139,Jour,0),4)),AND(C139>=INDEX(Champ,MATCH(A139,Jour,0)+1,4),C139<=INDEX(Champ,MATCH(A139,Jour,0)+1,3))),"occupé","") -> 
A140: LUNDI | B140: 20 | C140: 19:10:00 | D140: =IF(OR(AND(C140>=INDEX(Champ,MATCH(A140,Jour,0),3),C140<=INDEX(Champ,MATCH(A140,Jour,0),4)),AND(C140>=INDEX(Champ,MATCH(A140,Jour,0)+1,4),C140<=INDEX(Champ,MATCH(A140,Jour,0)+1,3))),"occupé","") -> 
A141: LUNDI | B141: 20 | C141: 19:20:00 | D141: =IF(OR(AND(C141>=INDEX(Champ,MATCH(A141,Jour,0),3),C141<=INDEX(Champ,MATCH(A141,Jour,0),4)),AND(C141>=INDEX(Champ,MATCH(A141,Jour,0)+1,4),C141<=INDEX(Champ,MATCH(A141,Jour,0)+1,3))),"occupé","") -> 
A142: LUNDI | B142: 20 | C142: 19:30:00 | D142: =IF(OR(AND(C142>=INDEX(Champ,MATCH(A142,Jour,0),3),C142<=INDEX(Champ,MATCH(A142,Jour,0),4)),AND(C142>=INDEX(Champ,MATCH(A142,Jour,0)+1,4),C142<=INDEX(Champ,MATCH(A142,Jour,0)+1,3))),"occupé","") -> 
A143: LUNDI | B143: 20 | C143: 19:40:00 | D143: =IF(OR(AND(C143>=INDEX(Champ,MATCH(A143,Jour,0),3),C143<=INDEX(Champ,MATCH(A143,Jour,0),4)),AND(C143>=INDEX(Champ,MATCH(A143,Jour,0)+1,4),C143<=INDEX(Champ,MATCH(A143,Jour,0)+1,3))),"occupé","") -> 
A144: LUNDI | B144: 20 | C144: 19:50:00 | D144: =IF(OR(AND(C144>=INDEX(Champ,MATCH(A144,Jour,0),3),C144<=INDEX(Champ,MATCH(A144,Jour,0),4)),AND(C144>=INDEX(Champ,MATCH(A144,Jour,0)+1,4),C144<=INDEX(Champ,MATCH(A144,Jour,0)+1,3))),"occupé","") -> 
A145: LUNDI | B145: 21 | C145: 20:00:00 | D145: =IF(OR(AND(C145>=INDEX(Champ,MATCH(A145,Jour,0),3),C145<=INDEX(Champ,MATCH(A145,Jour,0),4)),AND(C145>=INDEX(Champ,MATCH(A145,Jour,0)+1,4),C145<=INDEX(Champ,MATCH(A145,Jour,0)+1,3))),"occupé","") -> 
A146: LUNDI | B146: 21 | C146: 20:10:00 | D146: =IF(OR(AND(C146>=INDEX(Champ,MATCH(A146,Jour,0),3),C146<=INDEX(Champ,MATCH(A146,Jour,0),4)),AND(C146>=INDEX(Champ,MATCH(A146,Jour,0)+1,4),C146<=INDEX(Champ,MATCH(A146,Jour,0)+1,3))),"occupé","") -> 
A147: LUNDI | B147: 21 | C147: 20:20:00 | D147: =IF(OR(AND(C147>=INDEX(Champ,MATCH(A147,Jour,0),3),C147<=INDEX(Champ,MATCH(A147,Jour,0),4)),AND(C147>=INDEX(Champ,MATCH(A147,Jour,0)+1,4),C147<=INDEX(Champ,MATCH(A147,Jour,0)+1,3))),"occupé","") -> 
A148: LUNDI | B148: 21 | C148: 20:30:00 | D148: =IF(OR(AND(C148>=INDEX(Champ,MATCH(A148,Jour,0),3),C148<=INDEX(Champ,MATCH(A148,Jour,0),4)),AND(C148>=INDEX(Champ,MATCH(A148,Jour,0)+1,4),C148<=INDEX(Champ,MATCH(A148,Jour,0)+1,3))),"occupé","") -> 
A149: LUNDI | B149: 21 | C149: 20:40:00 | D149: =IF(OR(AND(C149>=INDEX(Champ,MATCH(A149,Jour,0),3),C149<=INDEX(Champ,MATCH(A149,Jour,0),4)),AND(C149>=INDEX(Champ,MATCH(A149,Jour,0)+1,4),C149<=INDEX(Champ,MATCH(A149,Jour,0)+1,3))),"occupé","") -> 
A150: LUNDI | B150: 21 | C150: 20:50:00 | D150: =IF(OR(AND(C150>=INDEX(Champ,MATCH(A150,Jour,0),3),C150<=INDEX(Champ,MATCH(A150,Jour,0),4)),AND(C150>=INDEX(Champ,MATCH(A150,Jour,0)+1,4),C150<=INDEX(Champ,MATCH(A150,Jour,0)+1,3))),"occupé","") -> 
A151: LUNDI | B151: 22 | C151: 21:00:00 | D151: =IF(OR(AND(C151>=INDEX(Champ,MATCH(A151,Jour,0),3),C151<=INDEX(Champ,MATCH(A151,Jour,0),4)),AND(C151>=INDEX(Champ,MATCH(A151,Jour,0)+1,4),C151<=INDEX(Champ,MATCH(A151,Jour,0)+1,3))),"occupé","") -> 
A152: LUNDI | B152: 22 | C152: 21:10:00 | D152: =IF(OR(AND(C152>=INDEX(Champ,MATCH(A152,Jour,0),3),C152<=INDEX(Champ,MATCH(A152,Jour,0),4)),AND(C152>=INDEX(Champ,MATCH(A152,Jour,0)+1,4),C152<=INDEX(Champ,MATCH(A152,Jour,0)+1,3))),"occupé","") -> 
A153: LUNDI | B153: 22 | C153: 21:20:00 | D153: =IF(OR(AND(C153>=INDEX(Champ,MATCH(A153,Jour,0),3),C153<=INDEX(Champ,MATCH(A153,Jour,0),4)),AND(C153>=INDEX(Champ,MATCH(A153,Jour,0)+1,4),C153<=INDEX(Champ,MATCH(A153,Jour,0)+1,3))),"occupé","") -> 
A154: LUNDI | B154: 22 | C154: 21:30:00 | D154: =IF(OR(AND(C154>=INDEX(Champ,MATCH(A154,Jour,0),3),C154<=INDEX(Champ,MATCH(A154,Jour,0),4)),AND(C154>=INDEX(Champ,MATCH(A154,Jour,0)+1,4),C154<=INDEX(Champ,MATCH(A154,Jour,0)+1,3))),"occupé","") -> 
A155: LUNDI | B155: 22 | C155: 21:40:00 | D155: =IF(OR(AND(C155>=INDEX(Champ,MATCH(A155,Jour,0),3),C155<=INDEX(Champ,MATCH(A155,Jour,0),4)),AND(C155>=INDEX(Champ,MATCH(A155,Jour,0)+1,4),C155<=INDEX(Champ,MATCH(A155,Jour,0)+1,3))),"occupé","") -> 
A156: LUNDI | B156: 22 | C156: 21:50:00 | D156: =IF(OR(AND(C156>=INDEX(Champ,MATCH(A156,Jour,0),3),C156<=INDEX(Champ,MATCH(A156,Jour,0),4)),AND(C156>=INDEX(Champ,MATCH(A156,Jour,0)+1,4),C156<=INDEX(Champ,MATCH(A156,Jour,0)+1,3))),"occupé","") -> 
A157: LUNDI | B157: 23 | C157: 22:00:00 | D157: =IF(OR(AND(C157>=INDEX(Champ,MATCH(A157,Jour,0),3),C157<=INDEX(Champ,MATCH(A157,Jour,0),4)),AND(C157>=INDEX(Champ,MATCH(A157,Jour,0)+1,4),C157<=INDEX(Champ,MATCH(A157,Jour,0)+1,3))),"occupé","") -> 
A158: LUNDI | B158: 23 | C158: 22:10:00 | D158: =IF(OR(AND(C158>=INDEX(Champ,MATCH(A158,Jour,0),3),C158<=INDEX(Champ,MATCH(A158,Jour,0),4)),AND(C158>=INDEX(Champ,MATCH(A158,Jour,0)+1,4),C158<=INDEX(Champ,MATCH(A158,Jour,0)+1,3))),"occupé","") -> 
A159: LUNDI | B159: 23 | C159: 22:20:00 | D159: =IF(OR(AND(C159>=INDEX(Champ,MATCH(A159,Jour,0),3),C159<=INDEX(Champ,MATCH(A159,Jour,0),4)),AND(C159>=INDEX(Champ,MATCH(A159,Jour,0)+1,4),C159<=INDEX(Champ,MATCH(A159,Jour,0)+1,3))),"occupé","") -> 
A160: LUNDI | B160: 23 | C160: 22:30:00 | D160: =IF(OR(AND(C160>=INDEX(Champ,MATCH(A160,Jour,0),3),C160<=INDEX(Champ,MATCH(A160,Jour,0),4)),AND(C160>=INDEX(Champ,MATCH(A160,Jour,0)+1,4),C160<=INDEX(Champ,MATCH(A160,Jour,0)+1,3))),"occupé","") -> 
A161: LUNDI | B161: 23 | C161: 22:40:00 | D161: =IF(OR(AND(C161>=INDEX(Champ,MATCH(A161,Jour,0),3),C161<=INDEX(Champ,MATCH(A161,Jour,0),4)),AND(C161>=INDEX(Champ,MATCH(A161,Jour,0)+1,4),C161<=INDEX(Champ,MATCH(A161,Jour,0)+1,3))),"occupé","") -> 
A162: LUNDI | B162: 23 | C162: 22:50:00 | D162: =IF(OR(AND(C162>=INDEX(Champ,MATCH(A162,Jour,0),3),C162<=INDEX(Champ,MATCH(A162,Jour,0),4)),AND(C162>=INDEX(Champ,MATCH(A162,Jour,0)+1,4),C162<=INDEX(Champ,MATCH(A162,Jour,0)+1,3))),"occupé","") -> 
A163: LUNDI | B163: 24 | C163: 23:00:00 | D163: =IF(OR(AND(C163>=INDEX(Champ,MATCH(A163,Jour,0),3),C163<=INDEX(Champ,MATCH(A163,Jour,0),4)),AND(C163>=INDEX(Champ,MATCH(A163,Jour,0)+1,4),C163<=INDEX(Champ,MATCH(A163,Jour,0)+1,3))),"occupé","") -> 
A164: LUNDI | B164: 24 | C164: 23:10:00 | D164: =IF(OR(AND(C164>=INDEX(Champ,MATCH(A164,Jour,0),3),C164<=INDEX(Champ,MATCH(A164,Jour,0),4)),AND(C164>=INDEX(Champ,MATCH(A164,Jour,0)+1,4),C164<=INDEX(Champ,MATCH(A164,Jour,0)+1,3))),"occupé","") -> 
A165: LUNDI | B165: 24 | C165: 23:20:00 | D165: =IF(OR(AND(C165>=INDEX(Champ,MATCH(A165,Jour,0),3),C165<=INDEX(Champ,MATCH(A165,Jour,0),4)),AND(C165>=INDEX(Champ,MATCH(A165,Jour,0)+1,4),C165<=INDEX(Champ,MATCH(A165,Jour,0)+1,3))),"occupé","") -> 
A166: LUNDI | B166: 24 | C166: 23:30:00 | D166: =IF(OR(AND(C166>=INDEX(Champ,MATCH(A166,Jour,0),3),C166<=INDEX(Champ,MATCH(A166,Jour,0),4)),AND(C166>=INDEX(Champ,MATCH(A166,Jour,0)+1,4),C166<=INDEX(Champ,MATCH(A166,Jour,0)+1,3))),"occupé","") -> 
A167: LUNDI | B167: 24 | C167: 23:40:00 | D167: =IF(OR(AND(C167>=INDEX(Champ,MATCH(A167,Jour,0),3),C167<=INDEX(Champ,MATCH(A167,Jour,0),4)),AND(C167>=INDEX(Champ,MATCH(A167,Jour,0)+1,4),C167<=INDEX(Champ,MATCH(A167,Jour,0)+1,3))),"occupé","") -> 
A168: LUNDI | B168: 24 | C168: 23:50:00 | D168: =IF(OR(AND(C168>=INDEX(Champ,MATCH(A168,Jour,0),3),C168<=INDEX(Champ,MATCH(A168,Jour,0),4)),AND(C168>=INDEX(Champ,MATCH(A168,Jour,0)+1,4),C168<=INDEX(Champ,MATCH(A168,Jour,0)+1,3))),"occupé","") -> 
A169: MARDI | B169: 1 | C169: 00:00:00 | D169: =IF(OR(AND(C169>=INDEX(Champ,MATCH(A169,Jour,0),3),C169<=INDEX(Champ,MATCH(A169,Jour,0),4)),AND(C169>=INDEX(Champ,MATCH(A169,Jour,0)+1,4),C169<=INDEX(Champ,MATCH(A169,Jour,0)+1,3))),"occupé","") -> 
A170: MARDI | B170: 1 | C170: 00:10:00 | D170: =IF(OR(AND(C170>=INDEX(Champ,MATCH(A170,Jour,0),3),C170<=INDEX(Champ,MATCH(A170,Jour,0),4)),AND(C170>=INDEX(Champ,MATCH(A170,Jour,0)+1,4),C170<=INDEX(Champ,MATCH(A170,Jour,0)+1,3))),"occupé","") -> 
A171: MARDI | B171: 1 | C171: 00:20:00 | D171: =IF(OR(AND(C171>=INDEX(Champ,MATCH(A171,Jour,0),3),C171<=INDEX(Champ,MATCH(A171,Jour,0),4)),AND(C171>=INDEX(Champ,MATCH(A171,Jour,0)+1,4),C171<=INDEX(Champ,MATCH(A171,Jour,0)+1,3))),"occupé","") -> 
A172: MARDI | B172: 1 | C172: 00:30:00 | D172: =IF(OR(AND(C172>=INDEX(Champ,MATCH(A172,Jour,0),3),C172<=INDEX(Champ,MATCH(A172,Jour,0),4)),AND(C172>=INDEX(Champ,MATCH(A172,Jour,0)+1,4),C172<=INDEX(Champ,MATCH(A172,Jour,0)+1,3))),"occupé","") -> 
A173: MARDI | B173: 1 | C173: 00:40:00 | D173: =IF(OR(AND(C173>=INDEX(Champ,MATCH(A173,Jour,0),3),C173<=INDEX(Champ,MATCH(A173,Jour,0),4)),AND(C173>=INDEX(Champ,MATCH(A173,Jour,0)+1,4),C173<=INDEX(Champ,MATCH(A173,Jour,0)+1,3))),"occupé","") -> 
A174: MARDI | B174: 1 | C174: 00:50:00 | D174: =IF(OR(AND(C174>=INDEX(Champ,MATCH(A174,Jour,0),3),C174<=INDEX(Champ,MATCH(A174,Jour,0),4)),AND(C174>=INDEX(Champ,MATCH(A174,Jour,0)+1,4),C174<=INDEX(Champ,MATCH(A174,Jour,0)+1,3))),"occupé","") -> 
A175: MARDI | B175: 2 | C175: 01:00:00 | D175: =IF(OR(AND(C175>=INDEX(Champ,MATCH(A175,Jour,0),3),C175<=INDEX(Champ,MATCH(A175,Jour,0),4)),AND(C175>=INDEX(Champ,MATCH(A175,Jour,0)+1,4),C175<=INDEX(Champ,MATCH(A175,Jour,0)+1,3))),"occupé","") -> 
A176: MARDI | B176: 2 | C176: 01:10:00 | D176: =IF(OR(AND(C176>=INDEX(Champ,MATCH(A176,Jour,0),3),C176<=INDEX(Champ,MATCH(A176,Jour,0),4)),AND(C176>=INDEX(Champ,MATCH(A176,Jour,0)+1,4),C176<=INDEX(Champ,MATCH(A176,Jour,0)+1,3))),"occupé","") -> 
A177: MARDI | B177: 2 | C177: 01:20:00 | D177: =IF(OR(AND(C177>=INDEX(Champ,MATCH(A177,Jour,0),3),C177<=INDEX(Champ,MATCH(A177,Jour,0),4)),AND(C177>=INDEX(Champ,MATCH(A177,Jour,0)+1,4),C177<=INDEX(Champ,MATCH(A177,Jour,0)+1,3))),"occupé","") -> 
A178: MARDI | B178: 2 | C178: 01:30:00 | D178: =IF(OR(AND(C178>=INDEX(Champ,MATCH(A178,Jour,0),3),C178<=INDEX(Champ,MATCH(A178,Jour,0),4)),AND(C178>=INDEX(Champ,MATCH(A178,Jour,0)+1,4),C178<=INDEX(Champ,MATCH(A178,Jour,0)+1,3))),"occupé","") -> 
A179: MARDI | B179: 2 | C179: 01:40:00 | D179: =IF(OR(AND(C179>=INDEX(Champ,MATCH(A179,Jour,0),3),C179<=INDEX(Champ,MATCH(A179,Jour,0),4)),AND(C179>=INDEX(Champ,MATCH(A179,Jour,0)+1,4),C179<=INDEX(Champ,MATCH(A179,Jour,0)+1,3))),"occupé","") -> 
A180: MARDI | B180: 2 | C180: 01:50:00 | D180: =IF(OR(AND(C180>=INDEX(Champ,MATCH(A180,Jour,0),3),C180<=INDEX(Champ,MATCH(A180,Jour,0),4)),AND(C180>=INDEX(Champ,MATCH(A180,Jour,0)+1,4),C180<=INDEX(Champ,MATCH(A180,Jour,0)+1,3))),"occupé","") -> 
A181: MARDI | B181: 3 | C181: 02:00:00 | D181: =IF(OR(AND(C181>=INDEX(Champ,MATCH(A181,Jour,0),3),C181<=INDEX(Champ,MATCH(A181,Jour,0),4)),AND(C181>=INDEX(Champ,MATCH(A181,Jour,0)+1,4),C181<=INDEX(Champ,MATCH(A181,Jour,0)+1,3))),"occupé","") -> 
A182: MARDI | B182: 3 | C182: 02:10:00 | D182: =IF(OR(AND(C182>=INDEX(Champ,MATCH(A182,Jour,0),3),C182<=INDEX(Champ,MATCH(A182,Jour,0),4)),AND(C182>=INDEX(Champ,MATCH(A182,Jour,0)+1,4),C182<=INDEX(Champ,MATCH(A182,Jour,0)+1,3))),"occupé","") -> 
A183: MARDI | B183: 3 | C183: 02:20:00 | D183: =IF(OR(AND(C183>=INDEX(Champ,MATCH(A183,Jour,0),3),C183<=INDEX(Champ,MATCH(A183,Jour,0),4)),AND(C183>=INDEX(Champ,MATCH(A183,Jour,0)+1,4),C183<=INDEX(Champ,MATCH(A183,Jour,0)+1,3))),"occupé","") -> 
A184: MARDI | B184: 3 | C184: 02:30:00 | D184: =IF(OR(AND(C184>=INDEX(Champ,MATCH(A184,Jour,0),3),C184<=INDEX(Champ,MATCH(A184,Jour,0),4)),AND(C184>=INDEX(Champ,MATCH(A184,Jour,0)+1,4),C184<=INDEX(Champ,MATCH(A184,Jour,0)+1,3))),"occupé","") -> 
A185: MARDI | B185: 3 | C185: 02:40:00 | D185: =IF(OR(AND(C185>=INDEX(Champ,MATCH(A185,Jour,0),3),C185<=INDEX(Champ,MATCH(A185,Jour,0),4)),AND(C185>=INDEX(Champ,MATCH(A185,Jour,0)+1,4),C185<=INDEX(Champ,MATCH(A185,Jour,0)+1,3))),"occupé","") -> 
A186: MARDI | B186: 3 | C186: 02:50:00 | D186: =IF(OR(AND(C186>=INDEX(Champ,MATCH(A186,Jour,0),3),C186<=INDEX(Champ,MATCH(A186,Jour,0),4)),AND(C186>=INDEX(Champ,MATCH(A186,Jour,0)+1,4),C186<=INDEX(Champ,MATCH(A186,Jour,0)+1,3))),"occupé","") -> 
A187: MARDI | B187: 4 | C187: 03:00:00 | D187: =IF(OR(AND(C187>=INDEX(Champ,MATCH(A187,Jour,0),3),C187<=INDEX(Champ,MATCH(A187,Jour,0),4)),AND(C187>=INDEX(Champ,MATCH(A187,Jour,0)+1,4),C187<=INDEX(Champ,MATCH(A187,Jour,0)+1,3))),"occupé","") -> 
A188: MARDI | B188: 4 | C188: 03:10:00 | D188: =IF(OR(AND(C188>=INDEX(Champ,MATCH(A188,Jour,0),3),C188<=INDEX(Champ,MATCH(A188,Jour,0),4)),AND(C188>=INDEX(Champ,MATCH(A188,Jour,0)+1,4),C188<=INDEX(Champ,MATCH(A188,Jour,0)+1,3))),"occupé","") -> 
A189: MARDI | B189: 4 | C189: 03:20:00 | D189: =IF(OR(AND(C189>=INDEX(Champ,MATCH(A189,Jour,0),3),C189<=INDEX(Champ,MATCH(A189,Jour,0),4)),AND(C189>=INDEX(Champ,MATCH(A189,Jour,0)+1,4),C189<=INDEX(Champ,MATCH(A189,Jour,0)+1,3))),"occupé","") -> 
A190: MARDI | B190: 4 | C190: 03:30:00 | D190: =IF(OR(AND(C190>=INDEX(Champ,MATCH(A190,Jour,0),3),C190<=INDEX(Champ,MATCH(A190,Jour,0),4)),AND(C190>=INDEX(Champ,MATCH(A190,Jour,0)+1,4),C190<=INDEX(Champ,MATCH(A190,Jour,0)+1,3))),"occupé","") -> 
A191: MARDI | B191: 4 | C191: 03:40:00 | D191: =IF(OR(AND(C191>=INDEX(Champ,MATCH(A191,Jour,0),3),C191<=INDEX(Champ,MATCH(A191,Jour,0),4)),AND(C191>=INDEX(Champ,MATCH(A191,Jour,0)+1,4),C191<=INDEX(Champ,MATCH(A191,Jour,0)+1,3))),"occupé","") -> 
A192: MARDI | B192: 4 | C192: 03:50:00 | D192: =IF(OR(AND(C192>=INDEX(Champ,MATCH(A192,Jour,0),3),C192<=INDEX(Champ,MATCH(A192,Jour,0),4)),AND(C192>=INDEX(Champ,MATCH(A192,Jour,0)+1,4),C192<=INDEX(Champ,MATCH(A192,Jour,0)+1,3))),"occupé","") -> 
A193: MARDI | B193: 5 | C193: 04:00:00 | D193: =IF(OR(AND(C193>=INDEX(Champ,MATCH(A193,Jour,0),3),C193<=INDEX(Champ,MATCH(A193,Jour,0),4)),AND(C193>=INDEX(Champ,MATCH(A193,Jour,0)+1,4),C193<=INDEX(Champ,MATCH(A193,Jour,0)+1,3))),"occupé","") -> 
A194: MARDI | B194: 5 | C194: 04:10:00 | D194: =IF(OR(AND(C194>=INDEX(Champ,MATCH(A194,Jour,0),3),C194<=INDEX(Champ,MATCH(A194,Jour,0),4)),AND(C194>=INDEX(Champ,MATCH(A194,Jour,0)+1,4),C194<=INDEX(Champ,MATCH(A194,Jour,0)+1,3))),"occupé","") -> 
A195: MARDI | B195: 5 | C195: 04:20:00 | D195: =IF(OR(AND(C195>=INDEX(Champ,MATCH(A195,Jour,0),3),C195<=INDEX(Champ,MATCH(A195,Jour,0),4)),AND(C195>=INDEX(Champ,MATCH(A195,Jour,0)+1,4),C195<=INDEX(Champ,MATCH(A195,Jour,0)+1,3))),"occupé","") -> 
A196: MARDI | B196: 5 | C196: 04:30:00 | D196: =IF(OR(AND(C196>=INDEX(Champ,MATCH(A196,Jour,0),3),C196<=INDEX(Champ,MATCH(A196,Jour,0),4)),AND(C196>=INDEX(Champ,MATCH(A196,Jour,0)+1,4),C196<=INDEX(Champ,MATCH(A196,Jour,0)+1,3))),"occupé","") -> 
A197: MARDI | B197: 5 | C197: 04:40:00 | D197: =IF(OR(AND(C197>=INDEX(Champ,MATCH(A197,Jour,0),3),C197<=INDEX(Champ,MATCH(A197,Jour,0),4)),AND(C197>=INDEX(Champ,MATCH(A197,Jour,0)+1,4),C197<=INDEX(Champ,MATCH(A197,Jour,0)+1,3))),"occupé","") -> 
A198: MARDI | B198: 5 | C198: 04:50:00 | D198: =IF(OR(AND(C198>=INDEX(Champ,MATCH(A198,Jour,0),3),C198<=INDEX(Champ,MATCH(A198,Jour,0),4)),AND(C198>=INDEX(Champ,MATCH(A198,Jour,0)+1,4),C198<=INDEX(Champ,MATCH(A198,Jour,0)+1,3))),"occupé","") -> 
A199: MARDI | B199: 6 | C199: 05:00:00 | D199: =IF(OR(AND(C199>=INDEX(Champ,MATCH(A199,Jour,0),3),C199<=INDEX(Champ,MATCH(A199,Jour,0),4)),AND(C199>=INDEX(Champ,MATCH(A199,Jour,0)+1,4),C199<=INDEX(Champ,MATCH(A199,Jour,0)+1,3))),"occupé","") -> 
A200: MARDI | B200: 6 | C200: 05:10:00 | D200: =IF(OR(AND(C200>=INDEX(Champ,MATCH(A200,Jour,0),3),C200<=INDEX(Champ,MATCH(A200,Jour,0),4)),AND(C200>=INDEX(Champ,MATCH(A200,Jour,0)+1,4),C200<=INDEX(Champ,MATCH(A200,Jour,0)+1,3))),"occupé","") -> 
A201: MARDI | B201: 6 | C201: 05:20:00 | D201: =IF(OR(AND(C201>=INDEX(Champ,MATCH(A201,Jour,0),3),C201<=INDEX(Champ,MATCH(A201,Jour,0),4)),AND(C201>=INDEX(Champ,MATCH(A201,Jour,0)+1,4),C201<=INDEX(Champ,MATCH(A201,Jour,0)+1,3))),"occupé","") -> 
A202: MARDI | B202: 6 | C202: 05:30:00 | D202: =IF(OR(AND(C202>=INDEX(Champ,MATCH(A202,Jour,0),3),C202<=INDEX(Champ,MATCH(A202,Jour,0),4)),AND(C202>=INDEX(Champ,MATCH(A202,Jour,0)+1,4),C202<=INDEX(Champ,MATCH(A202,Jour,0)+1,3))),"occupé","") -> 
A203: MARDI | B203: 6 | C203: 05:40:00 | D203: =IF(OR(AND(C203>=INDEX(Champ,MATCH(A203,Jour,0),3),C203<=INDEX(Champ,MATCH(A203,Jour,0),4)),AND(C203>=INDEX(Champ,MATCH(A203,Jour,0)+1,4),C203<=INDEX(Champ,MATCH(A203,Jour,0)+1,3))),"occupé","") -> 
... 829 more rows

Sheet recapitulatif etat initial
E1: 352 | J1: =E1*0.75 -> 264 | O1: =0.5*$E$1 -> 176 | T1: =0.25*$E$1 -> 88
A2: température extérieure | B2: température de soufflage | C2: débit | E2: Occupation 100% | F2: température | G2: humidité | H2: conso batterie chaude | I2: conso électrique | J2: Occupation 75% | K2: température | L2: humidité | M2: conso batterie chaude | N2: conso électrique | O2: Occupation 50% | P2: température | Q2: humidité | R2: conso batterie chaude | S2: conso électrique | T2: Occupation 25% | U2: température | V2: humidité | W2: conso batterie chaude | X2: conso électrique | Y2: taux réglementaire CO2
A3: 6 | B3: 17 | C3: 458.3333333 | D3: 00:00:00 | E3: 500 | F3: 15 | G3: 43.80617314 | J3: 500 | K3: 15 | L3: 43.80617314 | O3: 500 | P3: 15 | Q3: 43.80617314 | T3: 500 | U3: 15 | V3: 43.80617314 | Y3: =CO2Lim -> 1700
A4: 6 | B4: 17 | C4: 458.3333333 | D4: 00:05:00 | E4: 500 | F4: 15.87024507 | G4: 41.42059873 | J4: 500 | K4: 15.87024507 | L4: 41.42059873 | O4: 500 | P4: 15.87024507 | Q4: 41.42059873 | T4: 500 | U4: 15.87024507 | V4: 41.42059873 | Y4: 1700
A5: 6.1 | B5: 17 | C5: 458.3333333 | D5: 00:10:00 | E5: 500 | F5: 16.35823871 | G5: 40.2688758 | J5: 500 | K5: 16.35823871 | L5: 40.2688758 | O5: 500 | P5: 16.35823871 | Q5: 40.2688758 | T5: 500 | U5: 16.35823871 | V5: 40.2688758 | Y5: 1700
A6: 6.1 | B6: 17 | C6: 458.3333333 | D6: 00:15:00 | E6: 500 | F6: 16.63188324 | G6: 39.63928271 | J6: 500 | K6: 16.63188324 | L6: 39.63928271 | O6: 500 | P6: 16.63188324 | Q6: 39.63928271 | T6: 500 | U6: 16.63188324 | V6: 39.63928271 | Y6: 1700
A7: 6.2 | B7: 17 | C7: 458.3333333 | D7: 00:20:00 | E7: 500 | F7: 16.78533057 | G7: 39.41078075 | J7: 500 | K7: 16.78533057 | L7: 39.41078075 | O7: 500 | P7: 16.78533057 | Q7: 39.41078075 | T7: 500 | U7: 16.78533057 | V7: 39.41078075 | Y7: 1700
A8: 6.2 | B8: 17 | C8: 458.3333333 | D8: 00:25:00 | E8: 500 | F8: 16.87137682 | G8: 39.2835093 | J8: 500 | K8: 16.87137682 | L8: 39.2835093 | O8: 500 | P8: 16.87137682 | Q8: 39.2835093 | T8: 500 | U8: 16.87137682 | V8: 39.2835093 | Y8: 1700
A9: 6.2 | B9: 17 | C9: 458.3333333 | D9: 00:30:00 | E9: 500 | F9: 16.91962762 | G9: 39.21250014 | J9: 500 | K9: 16.91962762 | L9: 39.21250014 | O9: 500 | P9: 16.91962762 | Q9: 39.21250014 | T9: 500 | U9: 16.91962762 | V9: 39.21250014 | Y9: 1700
A10: 6.2 | B10: 17 | C10: 458.3333333 | D10: 00:35:00 | E10: 500 | F10: 16.94668447 | G10: 39.17284418 | J10: 500 | K10: 16.94668447 | L10: 39.17284418 | O10: 500 | P10: 16.94668447 | Q10: 39.17284418 | T10: 500 | U10: 16.94668447 | V10: 39.17284418 | Y10: 1700
A11: 6.2 | B11: 17 | C11: 458.3333333 | D11: 00:40:00 | E11: 500 | F11: 16.96185671 | G11: 39.15068632 | J11: 500 | K11: 16.96185671 | L11: 39.15068632 | O11: 500 | P11: 16.96185671 | Q11: 39.15068632 | T11: 500 | U11: 16.96185671 | V11: 39.15068632 | Y11: 1700
A12: 6.2 | B12: 17 | C12: 458.3333333 | D12: 00:45:00 | E12: 500 | F12: 16.97036461 | G12: 39.13830211 | J12: 500 | K12: 16.97036461 | L12: 39.13830211 | O12: 500 | P12: 16.97036461 | Q12: 39.13830211 | T12: 500 | U12: 16.97036461 | V12: 39.13830211 | Y12: 1700
A13: 6.2 | B13: 17 | C13: 458.3333333 | D13: 00:50:00 | E13: 500 | F13: 16.97513545 | G13: 39.13137946 | J13: 500 | K13: 16.97513545 | L13: 39.13137946 | O13: 500 | P13: 16.97513545 | Q13: 39.13137946 | T13: 500 | U13: 16.97513545 | V13: 39.13137946 | Y13: 1700
A14: 6.2 | B14: 17 | C14: 458.3333333 | D14: 00:55:00 | E14: 500 | F14: 16.97781072 | G14: 39.12750949 | J14: 500 | K14: 16.97781072 | L14: 39.12750949 | O14: 500 | P14: 16.97781072 | Q14: 39.12750949 | T14: 500 | U14: 16.97781072 | V14: 39.12750949 | Y14: 1700
A15: 6.2 | B15: 17 | C15: 458.3333333 | D15: 01:00:00 | E15: 500 | F15: 16.97931089 | G15: 39.12534599 | J15: 500 | K15: 16.97931089 | L15: 39.12534599 | O15: 500 | P15: 16.97931089 | Q15: 39.12534599 | T15: 500 | U15: 16.97931089 | V15: 39.12534599 | Y15: 1700
A16: 6.2 | B16: 17 | C16: 458.3333333 | D16: 01:05:00 | E16: 500 | F16: 16.98015211 | G16: 39.12413648 | J16: 500 | K16: 16.98015211 | L16: 39.12413648 | O16: 500 | P16: 16.98015211 | Q16: 39.12413648 | T16: 500 | U16: 16.98015211 | V16: 39.12413648 | Y16: 1700
A17: 6.2 | B17: 17 | C17: 458.3333333 | D17: 01:10:00 | E17: 500 | F17: 16.98062383 | G17: 39.12346031 | J17: 500 | K17: 16.98062383 | L17: 39.12346031 | O17: 500 | P17: 16.98062383 | Q17: 39.12346031 | T17: 500 | U17: 16.98062383 | V17: 39.12346031 | Y17: 1700
A18: 6.2 | B18: 17 | C18: 458.3333333 | D18: 01:15:00 | E18: 500 | F18: 16.98088835 | G18: 39.1230823 | J18: 500 | K18: 16.98088835 | L18: 39.1230823 | O18: 500 | P18: 16.98088835 | Q18: 39.1230823 | T18: 500 | U18: 16.98088835 | V18: 39.1230823 | Y18: 1700
A19: 6.3 | B19: 17 | C19: 458.3333333 | D19: 01:20:00 | E19: 500 | F19: 16.98103668 | G19: 39.24159967 | J19: 500 | K19: 16.98103668 | L19: 39.24159967 | O19: 500 | P19: 16.98103668 | Q19: 39.24159967 | T19: 500 | U19: 16.98103668 | V19: 39.24159967 | Y19: 1700
A20: 6.3 | B20: 17 | C20: 458.3333333 | D20: 01:25:00 | E20: 500 | F20: 16.98111986 | G20: 39.30833142 | J20: 500 | K20: 16.98111986 | L20: 39.30833142 | O20: 500 | P20: 16.98111986 | Q20: 39.30833142 | T20: 500 | U20: 16.98111986 | V20: 39.30833142 | Y20: 1700
A21: 6.3 | B21: 17 | C21: 458.3333333 | D21: 01:30:00 | E21: 500 | F21: 16.9811665 | G21: 39.34590587 | J21: 500 | K21: 16.9811665 | L21: 39.34590587 | O21: 500 | P21: 16.9811665 | Q21: 39.34590587 | T21: 500 | U21: 16.9811665 | V21: 39.34590587 | Y21: 1700
A22: 6.3 | B22: 17 | C22: 458.3333333 | D22: 01:35:00 | E22: 500 | F22: 16.98119266 | G22: 39.36706307 | J22: 500 | K22: 16.98119266 | L22: 39.36706307 | O22: 500 | P22: 16.98119266 | Q22: 39.36706307 | T22: 500 | U22: 16.98119266 | V22: 39.36706307 | Y22: 1700
A23: 6.3 | B23: 17 | C23: 458.3333333 | D23: 01:40:00 | E23: 500 | F23: 16.98120732 | G23: 39.37897623 | J23: 500 | K23: 16.98120732 | L23: 39.37897623 | O23: 500 | P23: 16.98120732 | Q23: 39.37897623 | T23: 500 | U23: 16.98120732 | V23: 39.37897623 | Y23: 1700 | AA23: Consommations d'énergies
A24: 6.3 | B24: 17 | C24: 458.3333333 | D24: 01:45:00 | E24: 500 | F24: 16.98121555 | G24: 39.38568429 | J24: 500 | K24: 16.98121555 | L24: 39.38568429 | O24: 500 | P24: 16.98121555 | Q24: 39.38568429 | T24: 500 | U24: 16.98121555 | V24: 39.38568429 | Y24: 1700
A25: 6.4 | B25: 17 | C25: 458.3333333 | D25: 01:50:00 | E25: 500 | F25: 16.98122016 | G25: 39.50891666 | J25: 500 | K25: 16.98122016 | L25: 39.50891666 | O25: 500 | P25: 16.98122016 | Q25: 39.50891666 | T25: 500 | U25: 16.98122016 | V25: 39.50891666 | Y25: 1700 | AA25: batterie Chaude | AB25: ='debit réf'!#REF! ->  | AC25: Kwh
A26: 6.4 | B26: 17 | C26: 458.3333333 | D26: 01:55:00 | E26: 500 | F26: 16.98122275 | G26: 39.57830325 | J26: 500 | K26: 16.98122275 | L26: 39.57830325 | O26: 500 | P26: 16.98122275 | Q26: 39.57830325 | T26: 500 | U26: 16.98122275 | V26: 39.57830325 | Y26: 1700 | AA26: Ventilateur | AB26: ='debit réf'!#REF! ->  | AC26: Wh
A27: 6.4 | B27: 17 | C27: 458.3333333 | D27: 02:00:00 | E27: 500 | F27: 16.9812242 | G27: 39.61737235 | J27: 500 | K27: 16.9812242 | L27: 39.61737235 | O27: 500 | P27: 16.9812242 | Q27: 39.61737235 | T27: 500 | U27: 16.9812242 | V27: 39.61737235 | Y27: 1700
A28: 6.4 | B28: 17 | C28: 458.3333333 | D28: 02:05:00 | E28: 500 | F28: 16.98122501 | G28: 39.63937097 | J28: 500 | K28: 16.98122501 | L28: 39.63937097 | O28: 500 | P28: 16.98122501 | Q28: 39.63937097 | T28: 500 | U28: 16.98122501 | V28: 39.63937097 | Y28: 1700
A29: 6.4 | B29: 17 | C29: 458.3333333 | D29: 02:10:00 | E29: 500 | F29: 16.98122547 | G29: 39.65175778 | J29: 500 | K29: 16.98122547 | L29: 39.65175778 | O29: 500 | P29: 16.98122547 | Q29: 39.65175778 | T29: 500 | U29: 16.98122547 | V29: 39.65175778 | Y29: 1700
A30: 6.4 | B30: 17 | C30: 458.3333333 | D30: 02:15:00 | E30: 500 | F30: 16.98122572 | G30: 39.65873247 | J30: 500 | K30: 16.98122572 | L30: 39.65873247 | O30: 500 | P30: 16.98122572 | Q30: 39.65873247 | T30: 500 | U30: 16.98122572 | V30: 39.65873247 | Y30: 1700
A31: 6.4 | B31: 17 | C31: 458.3333333 | D31: 02:20:00 | E31: 500 | F31: 16.98122587 | G31: 39.66265975 | J31: 500 | K31: 16.98122587 | L31: 39.66265975 | O31: 500 | P31: 16.98122587 | Q31: 39.66265975 | T31: 500 | U31: 16.98122587 | V31: 39.66265975 | Y31: 1700
A32: 6.4 | B32: 17 | C32: 458.3333333 | D32: 02:25:00 | E32: 500 | F32: 16.98122595 | G32: 39.6648711 | J32: 500 | K32: 16.98122595 | L32: 39.6648711 | O32: 500 | P32: 16.98122595 | Q32: 39.6648711 | T32: 500 | U32: 16.98122595 | V32: 39.6648711 | Y32: 1700
A33: 6.3 | B33: 17 | C33: 458.3333333 | D33: 02:30:00 | E33: 500 | F33: 16.98122599 | G33: 39.54666839 | J33: 500 | K33: 16.98122599 | L33: 39.54666839 | O33: 500 | P33: 16.98122599 | Q33: 39.54666839 | T33: 500 | U33: 16.98122599 | V33: 39.54666839 | Y33: 1700
A34: 6.3 | B34: 17 | C34: 458.3333333 | D34: 02:35:00 | E34: 500 | F34: 16.98122602 | G34: 39.48010891 | J34: 500 | K34: 16.98122602 | L34: 39.48010891 | O34: 500 | P34: 16.98122602 | Q34: 39.48010891 | T34: 500 | U34: 16.98122602 | V34: 39.48010891 | Y34: 1700
A35: 6.3 | B35: 17 | C35: 458.3333333 | D35: 02:40:00 | E35: 500 | F35: 16.98122603 | G35: 39.44263011 | J35: 500 | K35: 16.98122603 | L35: 39.44263011 | O35: 500 | P35: 16.98122603 | Q35: 39.44263011 | T35: 500 | U35: 16.98122603 | V35: 39.44263011 | Y35: 1700
A36: 6.3 | B36: 17 | C36: 458.3333333 | D36: 02:45:00 | E36: 500 | F36: 16.98122604 | G36: 39.42152647 | J36: 500 | K36: 16.98122604 | L36: 39.42152647 | O36: 500 | P36: 16.98122604 | Q36: 39.42152647 | T36: 500 | U36: 16.98122604 | V36: 39.42152647 | Y36: 1700
A37: 6.3 | B37: 17 | C37: 458.3333333 | D37: 02:50:00 | E37: 500 | F37: 16.98122604 | G37: 39.40964343 | J37: 500 | K37: 16.98122604 | L37: 39.40964343 | O37: 500 | P37: 16.98122604 | Q37: 39.40964343 | T37: 500 | U37: 16.98122604 | V37: 39.40964343 | Y37: 1700
A38: 6.3 | B38: 17 | C38: 458.3333333 | D38: 02:55:00 | E38: 500 | F38: 16.98122604 | G38: 39.40295236 | J38: 500 | K38: 16.98122604 | L38: 39.40295236 | O38: 500 | P38: 16.98122604 | Q38: 39.40295236 | T38: 500 | U38: 16.98122604 | V38: 39.40295236 | Y38: 1700
A39: 6.3 | B39: 17 | C39: 458.3333333 | D39: 03:00:00 | E39: 500 | F39: 16.98122605 | G39: 39.39918477 | J39: 500 | K39: 16.98122605 | L39: 39.39918477 | O39: 500 | P39: 16.98122605 | Q39: 39.39918477 | T39: 500 | U39: 16.98122605 | V39: 39.39918477 | Y39: 1700
A40: 6.3 | B40: 17 | C40: 458.3333333 | D40: 03:05:00 | E40: 500 | F40: 16.98122605 | G40: 39.39706333 | J40: 500 | K40: 16.98122605 | L40: 39.39706333 | O40: 500 | P40: 16.98122605 | Q40: 39.39706333 | T40: 500 | U40: 16.98122605 | V40: 39.39706333 | Y40: 1700
A41: 6.3 | B41: 17 | C41: 458.3333333 | D41: 03:10:00 | E41: 500 | F41: 16.98122605 | G41: 39.39586879 | J41: 500 | K41: 16.98122605 | L41: 39.39586879 | O41: 500 | P41: 16.98122605 | Q41: 39.39586879 | T41: 500 | U41: 16.98122605 | V41: 39.39586879 | Y41: 1700
A42: 6.3 | B42: 17 | C42: 458.3333333 | D42: 03:15:00 | E42: 500 | F42: 16.98122605 | G42: 39.39519618 | J42: 500 | K42: 16.98122605 | L42: 39.39519618 | O42: 500 | P42: 16.98122605 | Q42: 39.39519618 | T42: 500 | U42: 16.98122605 | V42: 39.39519618 | Y42: 1700
A43: 6.3 | B43: 17 | C43: 458.3333333 | D43: 03:20:00 | E43: 500 | F43: 16.98122605 | G43: 39.39481745 | J43: 500 | K43: 16.98122605 | L43: 39.39481745 | O43: 500 | P43: 16.98122605 | Q43: 39.39481745 | T43: 500 | U43: 16.98122605 | V43: 39.39481745 | Y43: 1700
A44: 6.3 | B44: 17 | C44: 458.3333333 | D44: 03:25:00 | E44: 500 | F44: 16.98122605 | G44: 39.39460419 | J44: 500 | K44: 16.98122605 | L44: 39.39460419 | O44: 500 | P44: 16.98122605 | Q44: 39.39460419 | T44: 500 | U44: 16.98122605 | V44: 39.39460419 | Y44: 1700
A45: 6.3 | B45: 17 | C45: 458.3333333 | D45: 03:30:00 | E45: 500 | F45: 16.98122605 | G45: 39.39448411 | J45: 500 | K45: 16.98122605 | L45: 39.39448411 | O45: 500 | P45: 16.98122605 | Q45: 39.39448411 | T45: 500 | U45: 16.98122605 | V45: 39.39448411 | Y45: 1700
A46: 6.3 | B46: 17 | C46: 458.3333333 | D46: 03:35:00 | E46: 500 | F46: 16.98122605 | G46: 39.3944165 | J46: 500 | K46: 16.98122605 | L46: 39.3944165 | O46: 500 | P46: 16.98122605 | Q46: 39.3944165 | T46: 500 | U46: 16.98122605 | V46: 39.3944165 | Y46: 1700
A47: 6.2 | B47: 17 | C47: 458.3333333 | D47: 03:40:00 | E47: 500 | F47: 16.98122605 | G47: 39.27565821 | J47: 500 | K47: 16.98122605 | L47: 39.27565821 | O47: 500 | P47: 16.98122605 | Q47: 39.27565821 | T47: 500 | U47: 16.98122605 | V47: 39.27565821 | Y47: 1700
A48: 6.2 | B48: 17 | C48: 458.3333333 | D48: 03:45:00 | E48: 500 | F48: 16.98122605 | G48: 39.20878588 | J48: 500 | K48: 16.98122605 | L48: 39.20878588 | O48: 500 | P48: 16.98122605 | Q48: 39.20878588 | T48: 500 | U48: 16.98122605 | V48: 39.20878588 | Y48: 1700
A49: 6.2 | B49: 17 | C49: 458.3333333 | D49: 03:50:00 | E49: 500 | F49: 16.98122605 | G49: 39.17113091 | J49: 500 | K49: 16.98122605 | L49: 39.17113091 | O49: 500 | P49: 16.98122605 | Q49: 39.17113091 | T49: 500 | U49: 16.98122605 | V49: 39.17113091 | Y49: 1700
A50: 6.2 | B50: 17 | C50: 458.3333333 | D50: 03:55:00 | E50: 500 | F50: 16.98122605 | G50: 39.14992806 | J50: 500 | K50: 16.98122605 | L50: 39.14992806 | O50: 500 | P50: 16.98122605 | Q50: 39.14992806 | T50: 500 | U50: 16.98122605 | V50: 39.14992806 | Y50: 1700
A51: 6.2 | B51: 17 | C51: 458.3333333 | D51: 04:00:00 | E51: 500 | F51: 16.98122605 | G51: 39.13798917 | J51: 500 | K51: 16.98122605 | L51: 39.13798917 | O51: 500 | P51: 16.98122605 | Q51: 39.13798917 | T51: 500 | U51: 16.98122605 | V51: 39.13798917 | Y51: 1700
A52: 6.2 | B52: 17 | C52: 458.3333333 | D52: 04:05:00 | E52: 500 | F52: 16.98122605 | G52: 39.13126664 | J52: 500 | K52: 16.98122605 | L52: 39.13126664 | O52: 500 | P52: 16.98122605 | Q52: 39.13126664 | T52: 500 | U52: 16.98122605 | V52: 39.13126664 | Y52: 1700
A53: 6.2 | B53: 17 | C53: 458.3333333 | D53: 04:10:00 | E53: 500 | F53: 16.98122605 | G53: 39.12748134 | J53: 500 | K53: 16.98122605 | L53: 39.12748134 | O53: 500 | P53: 16.98122605 | Q53: 39.12748134 | T53: 500 | U53: 16.98122605 | V53: 39.12748134 | Y53: 1700
A54: 6.2 | B54: 17 | C54: 458.3333333 | D54: 04:15:00 | E54: 500 | F54: 16.98122605 | G54: 39.12534993 | J54: 500 | K54: 16.98122605 | L54: 39.12534993 | O54: 500 | P54: 16.98122605 | Q54: 39.12534993 | T54: 500 | U54: 16.98122605 | V54: 39.12534993 | Y54: 1700
A55: 6.2 | B55: 17 | C55: 458.3333333 | D55: 04:20:00 | E55: 500 | F55: 16.98122605 | G55: 39.12414978 | J55: 500 | K55: 16.98122605 | L55: 39.12414978 | O55: 500 | P55: 16.98122605 | Q55: 39.12414978 | T55: 500 | U55: 16.98122605 | V55: 39.12414978 | Y55: 1700
A56: 6.2 | B56: 17 | C56: 458.3333333 | D56: 04:25:00 | E56: 500 | F56: 16.98122605 | G56: 39.12347401 | J56: 500 | K56: 16.98122605 | L56: 39.12347401 | O56: 500 | P56: 16.98122605 | Q56: 39.12347401 | T56: 500 | U56: 16.98122605 | V56: 39.12347401 | Y56: 1700
A57: 6.2 | B57: 17 | C57: 458.3333333 | D57: 04:30:00 | E57: 500 | F57: 16.98122605 | G57: 39.12309349 | J57: 500 | K57: 16.98122605 | L57: 39.12309349 | O57: 500 | P57: 16.98122605 | Q57: 39.12309349 | T57: 500 | U57: 16.98122605 | V57: 39.12309349 | Y57: 1700
A58: 6.2 | B58: 17 | C58: 458.3333333 | D58: 04:35:00 | E58: 500 | F58: 16.98122605 | G58: 39.12287924 | J58: 500 | K58: 16.98122605 | L58: 39.12287924 | O58: 500 | P58: 16.98122605 | Q58: 39.12287924 | T58: 500 | U58: 16.98122605 | V58: 39.12287924 | Y58: 1700
A59: 6.2 | B59: 17 | C59: 458.3333333 | D59: 04:40:00 | E59: 500 | F59: 16.98122605 | G59: 39.12275859 | J59: 500 | K59: 16.98122605 | L59: 39.12275859 | O59: 500 | P59: 16.98122605 | Q59: 39.12275859 | T59: 500 | U59: 16.98122605 | V59: 39.12275859 | Y59: 1700
A60: 6.2 | B60: 17 | C60: 458.3333333 | D60: 04:45:00 | E60: 500 | F60: 16.98122605 | G60: 39.12269066 | J60: 500 | K60: 16.98122605 | L60: 39.12269066 | O60: 500 | P60: 16.98122605 | Q60: 39.12269066 | T60: 500 | U60: 16.98122605 | V60: 39.12269066 | Y60: 1700
A61: 6.2 | B61: 17 | C61: 458.3333333 | D61: 04:50:00 | E61: 500 | F61: 16.98122605 | G61: 39.12265241 | J61: 500 | K61: 16.98122605 | L61: 39.12265241 | O61: 500 | P61: 16.98122605 | Q61: 39.12265241 | T61: 500 | U61: 16.98122605 | V61: 39.12265241 | Y61: 1700
A62: 6.2 | B62: 17 | C62: 458.3333333 | D62: 04:55:00 | E62: 500 | F62: 16.98122605 | G62: 39.12263087 | J62: 500 | K62: 16.98122605 | L62: 39.12263087 | O62: 500 | P62: 16.98122605 | Q62: 39.12263087 | T62: 500 | U62: 16.98122605 | V62: 39.12263087 | Y62: 1700
A63: 6.2 | B63: 17 | C63: 458.3333333 | D63: 05:00:00 | E63: 500 | F63: 16.98122605 | G63: 39.12261874 | J63: 500 | K63: 16.98122605 | L63: 39.12261874 | O63: 500 | P63: 16.98122605 | Q63: 39.12261874 | T63: 500 | U63: 16.98122605 | V63: 39.12261874 | Y63: 1700
A64: 6.2 | B64: 17 | C64: 458.3333333 | D64: 05:05:00 | E64: 500 | F64: 16.98122605 | G64: 39.12261192 | J64: 500 | K64: 16.98122605 | L64: 39.12261192 | O64: 500 | P64: 16.98122605 | Q64: 39.12261192 | T64: 500 | U64: 16.98122605 | V64: 39.12261192 | Y64: 1700
A65: 6.2 | B65: 17 | C65: 458.3333333 | D65: 05:10:00 | E65: 500 | F65: 16.98122605 | G65: 39.12260807 | J65: 500 | K65: 16.98122605 | L65: 39.12260807 | O65: 500 | P65: 16.98122605 | Q65: 39.12260807 | T65: 500 | U65: 16.98122605 | V65: 39.12260807 | Y65: 1700
A66: 6.2 | B66: 17 | C66: 458.3333333 | D66: 05:15:00 | E66: 500 | F66: 16.98122605 | G66: 39.12260591 | J66: 500 | K66: 16.98122605 | L66: 39.12260591 | O66: 500 | P66: 16.98122605 | Q66: 39.12260591 | T66: 500 | U66: 16.98122605 | V66: 39.12260591 | Y66: 1700
A67: 6.2 | B67: 17 | C67: 458.3333333 | D67: 05:20:00 | E67: 500 | F67: 16.98122605 | G67: 39.12260469 | J67: 500 | K67: 16.98122605 | L67: 39.12260469 | O67: 500 | P67: 16.98122605 | Q67: 39.12260469 | T67: 500 | U67: 16.98122605 | V67: 39.12260469 | Y67: =CO2Lim -> 1700
A68: 6.2 | B68: 17 | C68: 458.3333333 | D68: 05:25:00 | E68: 500 | F68: 16.98122605 | G68: 39.122604 | J68: 500 | K68: 16.98122605 | L68: 39.122604 | O68: 500 | P68: 16.98122605 | Q68: 39.122604 | T68: 500 | U68: 16.98122605 | V68: 39.122604 | Y68: 1700
A69: 6.2 | B69: 17 | C69: 458.3333333 | D69: 05:30:00 | E69: 500 | F69: 16.98122605 | G69: 39.12260361 | J69: 500 | K69: 16.98122605 | L69: 39.12260361 | O69: 500 | P69: 16.98122605 | Q69: 39.12260361 | T69: 500 | U69: 16.98122605 | V69: 39.12260361 | Y69: 1700
A70: 6.2 | B70: 17 | C70: 458.3333333 | D70: 05:35:00 | E70: 500 | F70: 16.98122605 | G70: 39.1226034 | J70: 500 | K70: 16.98122605 | L70: 39.1226034 | O70: 500 | P70: 16.98122605 | Q70: 39.1226034 | T70: 500 | U70: 16.98122605 | V70: 39.1226034 | Y70: 1700
A71: 6.1 | B71: 17 | C71: 458.3333333 | D71: 05:40:00 | E71: 500 | F71: 16.98122605 | G71: 39.00460682 | J71: 500 | K71: 16.98122605 | L71: 39.00460682 | O71: 500 | P71: 16.98122605 | Q71: 39.00460682 | T71: 500 | U71: 16.98122605 | V71: 39.00460682 | Y71: 1700
A72: 6.1 | B72: 17 | C72: 458.3333333 | D72: 05:45:00 | E72: 500 | F72: 16.98122605 | G72: 38.93816342 | J72: 500 | K72: 16.98122605 | L72: 38.93816342 | O72: 500 | P72: 16.98122605 | Q72: 38.93816342 | T72: 500 | U72: 16.98122605 | V72: 38.93816342 | Y72: 1700
A73: 6.1 | B73: 17 | C73: 458.3333333 | D73: 05:50:00 | E73: 500 | F73: 16.98122605 | G73: 38.90074998 | J73: 500 | K73: 16.98122605 | L73: 38.90074998 | O73: 500 | P73: 16.98122605 | Q73: 38.90074998 | T73: 500 | U73: 16.98122605 | V73: 38.90074998 | Y73: 1700
A74: 6.1 | B74: 17 | C74: 458.3333333 | D74: 05:55:00 | E74: 500 | F74: 16.98122605 | G74: 38.87968314 | J74: 500 | K74: 16.98122605 | L74: 38.87968314 | O74: 500 | P74: 16.98122605 | Q74: 38.87968314 | T74: 500 | U74: 16.98122605 | V74: 38.87968314 | Y74: 1700
A75: 6.1 | B75: 17 | C75: 458.3333333 | D75: 06:00:00 | E75: 500 | F75: 16.98122605 | G75: 38.86782083 | J75: 500 | K75: 16.98122605 | L75: 38.86782083 | O75: 500 | P75: 16.98122605 | Q75: 38.86782083 | T75: 500 | U75: 16.98122605 | V75: 38.86782083 | Y75: 1700
A76: 6.1 | B76: 17 | C76: 458.3333333 | D76: 06:05:00 | E76: 500 | F76: 16.98122605 | G76: 38.86114142 | J76: 500 | K76: 16.98122605 | L76: 38.86114142 | O76: 500 | P76: 16.98122605 | Q76: 38.86114142 | T76: 500 | U76: 16.98122605 | V76: 38.86114142 | Y76: 1700
A77: 6.1 | B77: 17 | C77: 458.3333333 | D77: 06:10:00 | E77: 500 | F77: 16.98122605 | G77: 38.8573804 | J77: 500 | K77: 16.98122605 | L77: 38.8573804 | O77: 500 | P77: 16.98122605 | Q77: 38.8573804 | T77: 500 | U77: 16.98122605 | V77: 38.8573804 | Y77: 1700
A78: 6.1 | B78: 17 | C78: 458.3333333 | D78: 06:15:00 | E78: 500 | F78: 16.98122605 | G78: 38.85526266 | J78: 500 | K78: 16.98122605 | L78: 38.85526266 | O78: 500 | P78: 16.98122605 | Q78: 38.85526266 | T78: 500 | U78: 16.98122605 | V78: 38.85526266 | Y78: 1700
A79: 6 | B79: 17 | C79: 458.3333333 | D79: 06:20:00 | E79: 500 | F79: 16.98122605 | G79: 38.7367938 | J79: 500 | K79: 16.98122605 | L79: 38.7367938 | O79: 500 | P79: 16.98122605 | Q79: 38.7367938 | T79: 500 | U79: 16.98122605 | V79: 38.7367938 | Y79: 1700
A80: 6 | B80: 17 | C80: 458.3333333 | D80: 06:25:00 | E80: 500 | F80: 16.98122605 | G80: 38.67008445 | J80: 500 | K80: 16.98122605 | L80: 38.67008445 | O80: 500 | P80: 16.98122605 | Q80: 38.67008445 | T80: 500 | U80: 16.98122605 | V80: 38.67008445 | Y80: 1700
A81: 6 | B81: 17 | C81: 458.3333333 | D81: 06:30:00 | E81: 500 | F81: 16.98122605 | G81: 38.63252125 | J81: 500 | K81: 16.98122605 | L81: 38.63252125 | O81: 500 | P81: 16.98122605 | Q81: 38.63252125 | T81: 500 | U81: 16.98122605 | V81: 38.63252125 | Y81: 1700
A82: 6 | B82: 17 | C82: 458.3333333 | D82: 06:35:00 | E82: 500 | F82: 16.98122605 | G82: 38.61137008 | J82: 500 | K82: 16.98122605 | L82: 38.61137008 | O82: 500 | P82: 16.98122605 | Q82: 38.61137008 | T82: 500 | U82: 16.98122605 | V82: 38.61137008 | Y82: 1700
A83: 5.9 | B83: 17 | C83: 458.3333333 | D83: 06:40:00 | E83: 500 | F83: 16.98122605 | G83: 38.4829007 | J83: 500 | K83: 16.98122605 | L83: 38.4829007 | O83: 500 | P83: 16.98122605 | Q83: 38.4829007 | T83: 500 | U83: 16.98122605 | V83: 38.4829007 | Y83: 1700
A84: 5.9 | B84: 17 | C84: 458.3333333 | D84: 06:45:00 | E84: 500 | F84: 16.98122605 | G84: 38.41055987 | J84: 500 | K84: 16.98122605 | L84: 38.41055987 | O84: 500 | P84: 16.98122605 | Q84: 38.41055987 | T84: 500 | U84: 16.98122605 | V84: 38.41055987 | Y84: 1700
A85: 5.7 | B85: 17 | C85: 458.3333333 | D85: 06:50:00 | E85: 500 | F85: 16.98122605 | G85: 38.13884994 | J85: 500 | K85: 16.98122605 | L85: 38.13884994 | O85: 500 | P85: 16.98122605 | Q85: 38.13884994 | T85: 500 | U85: 16.98122605 | V85: 38.13884994 | Y85: 1700
A86: 5.7 | B86: 17 | C86: 458.3333333 | D86: 06:55:00 | E86: 500 | F86: 16.98122605 | G86: 37.98584403 | J86: 500 | K86: 16.98122605 | L86: 37.98584403 | O86: 500 | P86: 16.98122605 | Q86: 37.98584403 | T86: 500 | U86: 16.98122605 | V86: 37.98584403 | Y86: 1700
A87: 5.7 | B87: 17 | C87: 458.3333333 | D87: 07:00:00 | E87: 500 | F87: 16.98122605 | G87: 37.89968609 | J87: 500 | K87: 16.98122605 | L87: 37.89968609 | O87: 500 | P87: 16.98122605 | Q87: 37.89968609 | T87: 500 | U87: 16.98122605 | V87: 37.89968609 | Y87: 1700
A88: 5.7 | B88: 17 | C88: 458.3333333 | D88: 07:05:00 | E88: 500 | F88: 16.98122605 | G88: 37.85117136 | J88: 500 | K88: 16.98122605 | L88: 37.85117136 | O88: 500 | P88: 16.98122605 | Q88: 37.85117136 | T88: 500 | U88: 16.98122605 | V88: 37.85117136 | Y88: 1700
A89: 5.6 | B89: 17 | C89: 458.3333333 | D89: 07:10:00 | E89: 500 | F89: 16.98122605 | G89: 37.70942085 | J89: 500 | K89: 16.98122605 | L89: 37.70942085 | O89: 500 | P89: 16.98122605 | Q89: 37.70942085 | T89: 500 | U89: 16.98122605 | V89: 37.70942085 | Y89: 1700
A90: 5.6 | B90: 17 | C90: 458.3333333 | D90: 07:15:00 | E90: 500 | F90: 16.98122605 | G90: 37.62960112 | J90: 500 | K90: 16.98122605 | L90: 37.62960112 | O90: 500 | P90: 16.98122605 | Q90: 37.62960112 | T90: 500 | U90: 16.98122605 | V90: 37.62960112 | Y90: 1700
A91: 5.6 | B91: 17 | C91: 458.3333333 | D91: 07:20:00 | E91: 500 | F91: 16.98122605 | G91: 37.58465546 | J91: 500 | K91: 16.98122605 | L91: 37.58465546 | O91: 500 | P91: 16.98122605 | Q91: 37.58465546 | T91: 500 | U91: 16.98122605 | V91: 37.58465546 | Y91: 1700
A92: 5.6 | B92: 17 | C92: 458.3333333 | D92: 07:25:00 | E92: 500 | F92: 16.98122605 | G92: 37.5593473 | J92: 500 | K92: 16.98122605 | L92: 37.5593473 | O92: 500 | P92: 16.98122605 | Q92: 37.5593473 | T92: 500 | U92: 16.98122605 | V92: 37.5593473 | Y92: 1700
A93: 5.6 | B93: 30 | C93: 458.3333333 | D93: 07:30:00 | E93: 500 | F93: 22.63781899 | G93: 26.40709493 | J93: 500 | K93: 22.63781899 | L93: 26.40709493 | O93: 500 | P93: 22.63781899 | Q93: 26.40709493 | T93: 500 | U93: 22.63781899 | V93: 26.40709493 | Y93: 1700
A94: 5.6 | B94: 30 | C94: 458.3333333 | D94: 07:35:00 | E94: 500 | F94: 25.80977768 | G94: 21.81534416 | J94: 500 | K94: 25.80977768 | L94: 21.81534416 | O94: 500 | P94: 25.80977768 | Q94: 21.81534416 | T94: 500 | U94: 25.80977768 | V94: 21.81534416 | Y94: 1700
A95: 5.6 | B95: 30 | C95: 458.3333333 | D95: 07:40:00 | E95: 500 | F95: 27.58846708 | G95: 19.63807744 | J95: 500 | K95: 27.58846708 | L95: 19.63807744 | O95: 500 | P95: 27.58846708 | Q95: 19.63807744 | T95: 500 | U95: 27.58846708 | V95: 19.63807744 | Y95: 1700
A96: 5.6 | B96: 30 | C96: 458.3333333 | D96: 07:45:00 | E96: 500 | F96: 28.58587476 | G96: 18.52492431 | J96: 500 | K96: 28.58587476 | L96: 18.52492431 | O96: 500 | P96: 28.58587476 | Q96: 18.52492431 | T96: 500 | U96: 28.58587476 | V96: 18.52492431 | Y96: 1700
A97: 5.5 | B97: 30 | C97: 458.3333333 | D97: 07:50:00 | E97: 500 | F97: 29.14517539 | G97: 17.87759446 | J97: 500 | K97: 29.14517539 | L97: 17.87759446 | O97: 500 | P97: 29.14517539 | Q97: 17.87759446 | T97: 500 | U97: 29.14517539 | V97: 17.87759446 | Y97: 1700
A98: 5.5 | B98: 30 | C98: 458.3333333 | D98: 07:55:00 | E98: 500 | F98: 29.45880561 | G98: 17.52538292 | J98: 500 | K98: 29.45880561 | L98: 17.52538292 | O98: 500 | P98: 29.45880561 | Q98: 17.52538292 | T98: 500 | U98: 29.45880561 | V98: 17.52538292 | Y98: 1700
A99: 5.4 | B99: 30 | C99: 458.3333333 | D99: 08:00:00 | E99: 1118.684461 | F99: 35.47191097 | G99: 16.15388275 | J99: 964.013346 | K99: 34.012602 | L99: 16.50991777 | O99: 809.3422307 | P99: 32.55329303 | Q99: 16.82396123 | T99: 654.6711153 | U99: 31.09398406 | V99: 17.08466847 | Y99: 1700
A100: 5.4 | B100: 20 | C100: 458.3333333 | D100: 08:05:00 | E100: 1467.050799 | F100: 34.49256018 | G100: 19.23965978 | J100: 1225.2881 | K100: 32.21493747 | L100: 20.12349543 | O100: 983.5253997 | P100: 29.93731475 | Q100: 20.93145774 | T100: 741.7626998 | U100: 27.65969204 | V100: 21.61887366 | Y100: 1700
A101: 5.5 | B101: 20 | C101: 458.3333333 | D101: 08:10:00 | E101: 1663.207504 | F101: 33.94338504 | G101: 21.14465868 | J101: 1372.405628 | K101: 31.20688939 | L101: 22.46346667 | O101: 1081.603752 | P101: 28.47039374 | Q101: 23.70070884 | T101: 790.8018761 | U101: 25.73389809 | V101: 24.77816716 | Y101: 1700
A102: 5.5 | B102: 20 | C102: 458.3333333 | D102: 08:15:00 | E102: 1773.658627 | F102: 33.63543273 | G102: 22.2598513 | J102: 1455.24397 | K102: 30.64162212 | L102: 23.87146569 | O102: 1136.829313 | P102: 27.64781151 | Q102: 25.40652664 | T102: 818.4146566 | U102: 24.6540009 | V102: 26.76232956 | Y102: 1700
A103: 5.5 | B103: 20 | C103: 458.3333333 | D103: 08:20:00 | E103: 1835.850997 | F103: 33.46274715 | G103: 22.90121436 | J103: 1501.888247 | K103: 30.32464608 | L103: 24.69356851 | O103: 1167.925498 | P103: 27.18654501 | Q103: 26.4156156 | T103: 833.9627492 | U103: 24.04844393 | V103: 27.94898249 | Y103: 1700
A104: 5.5 | B104: 20 | C104: 458.3333333 | D104: 08:25:00 | E104: 1870.870024 | F104: 33.36591298 | G104: 23.26642808 | J104: 1528.152518 | K104: 30.14690041 | L104: 25.1655339 | O104: 1185.435012 | P104: 26.92788784 | Q104: 26.99906127 | T104: 842.717506 | U104: 23.70887528 | V104: 28.63920886 | Y104: 1700
A105: 5.4 | B105: 20 | C105: 458.3333333 | D105: 08:30:00 | E105: 1890.588396 | F105: 33.3116128 | G105: 23.43107633 | J105: 1542.941297 | K105: 30.04722876 | L105: 25.38303393 | O105: 1195.294198 | P105: 26.78284473 | Q105: 27.27037706 | T105: 847.647099 | U105: 23.5184607 | V105: 28.95923908 | Y105: 1700
A106: 5.4 | B106: 20 | C106: 458.3333333 | D106: 08:35:00 | E106: 1901.691337 | F106: 33.28116374 | G106: 23.52397468 | J106: 1551.268503 | K106: 29.99133746 | L106: 25.50594239 | O106: 1200.845669 | P106: 26.70151119 | Q106: 27.42388749 | T106: 850.4228343 | U106: 23.41168491 | V106: 29.14044244 | Y106: 1700
A107: 5.3 | B107: 20 | C107: 458.3333333 | D107: 08:40:00 | E107: 1907.943136 | F107: 33.2640893 | G107: 23.53429139 | J107: 1555.957352 | K107: 29.95999618 | L107: 25.52437345 | O107: 1203.971568 | P107: 26.65590305 | Q107: 27.44863558 | T107: 851.985784 | U107: 23.35180993 | V107: 29.16712484 | Y107: 1700
A108: 5.3 | B108: 20 | C108: 458.3333333 | D108: 08:45:00 | E108: 1911.463374 | F108: 33.25451474 | G108: 23.54004833 | J108: 1558.59753 | K108: 29.94242142 | L108: 25.53464151 | O108: 1205.731687 | P108: 26.6303281 | Q108: 27.46238019 | T108: 852.8658434 | U108: 23.31823478 | V108: 29.18183917 | Y108: 1700
A109: 5.2 | B109: 20 | C109: 458.3333333 | D109: 08:50:00 | E109: 1913.445535 | F109: 33.24914576 | G109: 23.50147461 | J109: 1560.084151 | K109: 29.9325663 | L109: 25.48976498 | O109: 1206.722767 | P109: 26.61598683 | Q109: 27.408463 | T109: 853.3613837 | U109: 23.29940737 | V109: 29.11471752 | Y109: 1700
A110: 5.2 | B110: 20 | C110: 458.3333333 | D110: 08:55:00 | E110: 1914.561642 | F110: 33.24613508 | G110: 23.47972619 | J110: 1560.921232 | K110: 29.92703999 | L110: 25.46443557 | O110: 1207.280821 | P110: 26.60794491 | Q110: 27.37800003 | T110: 853.6404105 | U110: 23.28884982 | V110: 29.07676137 | Y110: 1700
A111: 5.2 | B111: 20 | C111: 458.3333333 | D111: 09:00:00 | E111: 1915.190095 | F111: 33.24444683 | G111: 23.46746715 | J111: 1561.392571 | K111: 29.9239411 | L111: 25.45014585 | O111: 1207.595048 | P111: 26.60343536 | Q111: 27.36080118 | T111: 853.7975238 | U111: 23.28292962 | V111: 29.05531927 | Y111: 1700
A112: 5.2 | B112: 20 | C112: 458.3333333 | D112: 09:05:00 | E112: 1915.543962 | F112: 33.24350014 | G112: 23.460558 | J112: 1561.657972 | K112: 29.92220338 | L112: 25.44208641 | O112: 1207.771981 | P112: 26.60090661 | Q112: 27.35109503 | T112: 853.8859905 | U112: 23.27960985 | V112: 29.04321308 | Y112: 1700
A113: 5.2 | B113: 20 | C113: 458.3333333 | D113: 09:10:00 | E113: 1915.743216 | F113: 33.24296928 | G113: 23.45666435 | J113: 1561.807412 | K113: 29.92122894 | L113: 25.43754156 | O113: 1207.871608 | P113: 26.59948861 | Q113: 27.34561868 | T113: 853.935804 | U113: 23.27774828 | V113: 29.03638015 | Y113: 1700
A114: 5.2 | B114: 20 | C114: 458.3333333 | D114: 09:15:00 | E114: 1915.855411 | F114: 33.24267159 | G114: 23.45447018 | J114: 1561.891558 | K114: 29.92068252 | L114: 25.43497888 | O114: 1207.927706 | P114: 26.59869346 | Q114: 27.34252926 | T114: 853.9638528 | U114: 23.27670439 | V114: 29.03252424 | Y114: 1700
A115: 5.2 | B115: 20 | C115: 458.3333333 | D115: 09:20:00 | E115: 1915.918585 | F115: 33.24250467 | G115: 23.45323374 | J115: 1561.938939 | K115: 29.92037612 | L115: 25.43353395 | O115: 1207.959293 | P115: 26.59824757 | Q115: 27.34078654 | T115: 853.9796464 | U115: 23.27611902 | V115: 29.03034854 | Y115: 1700
A116: 5.2 | B116: 20 | C116: 458.3333333 | D116: 09:25:00 | E116: 1915.954157 | F116: 33.24241106 | G116: 23.45253701 | J116: 1561.965618 | K116: 29.9202043 | L116: 25.43271928 | O116: 1207.977079 | P116: 26.59799754 | Q116: 27.33980354 | T116: 853.9885394 | U116: 23.27579078 | V116: 29.02912098 | Y116: 1700
A117: 5.2 | B117: 20 | C117: 458.3333333 | D117: 09:30:00 | E117: 1915.974187 | F117: 33.24235857 | G117: 23.45214441 | J117: 1561.98064 | K117: 29.92010795 | L117: 25.43225996 | O117: 1207.987094 | P117: 26.59785733 | Q117: 27.33924908 | T117: 853.9935468 | U117: 23.27560671 | V117: 29.0284284 | Y117: 1700
A118: 5.2 | B118: 20 | C118: 458.3333333 | D118: 09:35:00 | E118: 1915.985465 | F118: 33.24232914 | G118: 23.45192318 | J118: 1561.989099 | K118: 29.92005392 | L118: 25.432001 | O118: 1207.992733 | P118: 26.59777871 | Q118: 27.33893635 | T118: 853.9963664 | U118: 23.2755035 | V118: 29.02803767 | Y118: 1700
A119: 5.1 | B119: 20 | C119: 458.3333333 | D119: 09:40:00 | E119: 1915.991816 | F119: 33.24231263 | G119: 23.41025336 | J119: 1561.993862 | K119: 29.92002363 | L119: 25.38153214 | O119: 1207.995908 | P119: 26.59773462 | Q119: 27.2775176 | T119: 853.997954 | U119: 23.27544562 | V119: 28.95292149 | Y119: 1700
A120: 5.1 | B120: 20 | C120: 458.3333333 | D120: 09:45:00 | E120: 1915.995392 | F120: 33.24230338 | G120: 23.38678921 | J120: 1561.996544 | K120: 29.92000664 | L120: 25.3531132 | O120: 1207.997696 | P120: 26.5977099 | Q120: 27.24293271 | T120: 853.9988479 | U120: 23.27541316 | V120: 28.91062349 | Y120: 1700
A121: 5.1 | B121: 20 | C121: 458.3333333 | D121: 09:50:00 | E121: 1915.997405 | F121: 33.24229819 | G121: 23.37357683 | J121: 1561.998054 | K121: 29.91999711 | L121: 25.33711079 | O121: 1207.998703 | P121: 26.59769604 | Q121: 27.22345828 | T121: 853.9993513 | U121: 23.27539496 | V121: 28.88680584 | Y121: 1700
A122: 5.1 | B122: 20 | C122: 458.3333333 | D122: 09:55:00 | E122: 1915.998539 | F122: 33.24229528 | G122: 23.36613715 | J122: 1561.998904 | K122: 29.91999177 | L122: 25.32810008 | O122: 1207.999269 | P122: 26.59768826 | Q122: 27.21249252 | T122: 853.9996347 | U122: 23.27538476 | V122: 28.87339446 | Y122: 1700
A123: 5.2 | B123: 20 | C123: 458.3333333 | D123: 10:00:00 | E123: 1915.999177 | F123: 33.24229364 | G123: 23.40349529 | J123: 1561.999383 | K123: 29.91998878 | L123: 25.3733518 | O123: 1207.999589 | P123: 26.59768391 | Q123: 27.26756349 | T123: 853.9997943 | U123: 23.27537904 | V123: 28.94074252 | Y123: 1700
A124: 5.2 | B124: 20 | C124: 458.3333333 | D124: 10:05:00 | E124: 1915.999537 | F124: 33.24229273 | G124: 23.42453013 | J124: 1561.999653 | K124: 29.9199871 | L124: 25.39883118 | O124: 1207.999768 | P124: 26.59768146 | Q124: 27.29857169 | T124: 853.9998842 | U124: 23.27537583 | V124: 28.97866344 | Y124: 1700
A125: 5.3 | B125: 20 | C125: 458.3333333 | D125: 10:10:00 | E125: 1915.999739 | F125: 33.24229222 | G125: 23.4781794 | J125: 1561.999804 | K125: 29.91998615 | L125: 25.46381573 | O125: 1207.99987 | P125: 26.59768009 | Q125: 27.37765726 | T125: 853.9999348 | U125: 23.27537403 | V125: 29.0753803 | Y125: 1700
A126: 5.3 | B126: 20 | C126: 458.3333333 | D126: 10:15:00 | E126: 1915.999853 | F126: 33.24229193 | G126: 23.50838671 | J126: 1561.99989 | K126: 29.91998563 | L126: 25.50040538 | O126: 1207.999927 | P126: 26.59767932 | Q126: 27.42218652 | T126: 853.9999633 | U126: 23.27537302 | V126: 29.12983689 | Y126: 1700
A127: 5.5 | B127: 20 | C127: 458.3333333 | D127: 10:20:00 | E127: 1915.999917 | F127: 33.24229177 | G127: 23.60978556 | J127: 1561.999938 | K127: 29.91998533 | L127: 25.62322802 | O127: 1207.999959 | P127: 26.59767889 | Q127: 27.57166043 | T127: 853.9999793 | U127: 23.27537245 | V127: 29.31263465 | Y127: 1700
A128: 5.5 | B128: 20 | C128: 458.3333333 | D128: 10:25:00 | E128: 1915.999953 | F128: 33.24229168 | G128: 23.66687616 | J128: 1561.999965 | K128: 29.91998516 | L128: 25.69238085 | O128: 1207.999977 | P128: 26.59767865 | Q128: 27.65581872 | T128: 853.9999884 | U128: 23.27537214 | V128: 29.41555526 | Y128: 1700
A129: 5.8 | B129: 20 | C129: 458.3333333 | D129: 10:30:00 | E129: 1915.999974 | F129: 33.24229163 | G129: 23.82757538 | J129: 1561.99998 | K129: 29.91998507 | L129: 25.88703289 | O129: 1207.999987 | P129: 26.59767851 | Q129: 27.89270822 | T129: 853.9999934 | U129: 23.27537196 | V129: 29.70525713 | Y129: 1700
A130: 5.8 | B130: 20 | C130: 458.3333333 | D130: 10:35:00 | E130: 1915.999985 | F130: 33.2422916 | G130: 23.91804955 | J130: 1561.999989 | K130: 29.91998502 | L130: 25.99662259 | O130: 1207.999993 | P130: 26.59767844 | Q130: 28.02607772 | T130: 853.9999963 | U130: 23.27537186 | V130: 29.86836012 | Y130: 1700
A131: 6.1 | B131: 20 | C131: 458.3333333 | D131: 10:40:00 | E131: 1915.999992 | F131: 33.24229158 | G131: 24.09993619 | J131: 1561.999994 | K131: 29.91998499 | L131: 26.21693848 | O131: 1207.999996 | P131: 26.5976784 | Q131: 28.29419977 | T131: 853.9999979 | U131: 23.2753718 | V131: 30.19625745 | Y131: =CO2Lim -> 1700
A132: 6.1 | B132: 20 | C132: 458.3333333 | D132: 10:45:00 | E132: 1915.999995 | F132: 33.24229157 | G132: 24.20233719 | J132: 1561.999996 | K132: 29.91998497 | L132: 26.34097488 | O132: 1207.999998 | P132: 26.59767837 | Q132: 28.4451507 | T132: 853.9999988 | U132: 23.27537177 | V132: 30.38086143 | Y132: 1700
A133: 6.4 | B133: 20 | C133: 458.3333333 | D133: 10:50:00 | E133: 1915.999997 | F133: 33.24229157 | G133: 24.3933667 | J133: 1561.999998 | K133: 29.91998496 | L133: 26.57236526 | O133: 1207.999999 | P133: 26.59767836 | Q133: 28.72675018 | T133: 853.9999993 | U133: 23.27537175 | V133: 30.72524074 | Y133: 1700
A134: 6.4 | B134: 20 | C134: 458.3333333 | D134: 10:55:00 | E134: 1915.999999 | F134: 33.24229156 | G134: 24.50091428 | J134: 1561.999999 | K134: 29.91998496 | L134: 26.70263557 | O134: 1207.999999 | P134: 26.59767835 | Q134: 28.88528765 | T134: 853.9999996 | U134: 23.27537174 | V134: 30.91912253 | Y134: 1700
A135: 6.6 | B135: 20 | C135: 458.3333333 | D135: 11:00:00 | E135: 1915.999999 | F135: 33.24229156 | G135: 24.65174798 | J135: 1561.999999 | K135: 29.91998495 | L135: 26.88533748 | O135: 1208 | P135: 26.59767835 | Q135: 29.10763373 | T135: 853.9999998 | U135: 23.27537174 | V135: 31.19103838 | Y135: 1700
A136: 6.6 | B136: 20 | C136: 458.3333333 | D136: 11:05:00 | E136: 1916 | F136: 33.24229156 | G136: 24.7366685 | J136: 1562 | K136: 29.91998495 | L136: 26.98820003 | O136: 1208 | P136: 26.59767834 | Q136: 29.23281622 | T136: 853.9999999 | U136: 23.27537173 | V136: 31.344129 | Y136: 1700
A137: 6.9 | B137: 20 | C137: 458.3333333 | D137: 11:10:00 | E137: 1916 | F137: 33.24229156 | G137: 24.9219858 | J137: 1562 | K137: 29.91998495 | L137: 27.21267117 | O137: 1208 | P137: 26.59767834 | Q137: 29.50599489 | T137: 853.9999999 | U137: 23.27537173 | V137: 31.67820992 | Y137: 1700
A138: 6.9 | B138: 20 | C138: 458.3333333 | D138: 11:15:00 | E138: 1916 | F138: 33.24229156 | G138: 25.02631795 | J138: 1562 | K138: 29.91998495 | L138: 27.3390466 | O138: 1208 | P138: 26.59767834 | Q138: 29.65979222 | T138: 854 | U138: 23.27537173 | V138: 31.86629469 | Y138: 1700
A139: 7 | B139: 20 | C139: 458.3333333 | D139: 11:20:00 | E139: 1916 | F139: 33.24229156 | G139: 25.13145284 | J139: 1562 | K139: 29.91998495 | L139: 27.46639435 | O139: 1208 | P139: 26.59767834 | Q139: 29.81477285 | T139: 854 | U139: 23.27537173 | V139: 32.05582653 | Y139: 1700
A140: 7 | B140: 20 | C140: 458.3333333 | D140: 11:25:00 | E140: 1916 | F140: 33.24229156 | G140: 25.19064676 | J140: 1562 | K140: 29.91998495 | L140: 27.53809474 | O140: 1208 | P140: 26.59767834 | Q140: 29.90203131 | T140: 854 | U140: 23.27537173 | V140: 32.16253829 | Y140: 1700
A141: 7.2 | B141: 20 | C141: 458.3333333 | D141: 11:30:00 | E141: 1916 | F141: 33.24229156 | G141: 25.31761082 | J141: 1562 | K141: 29.91998495 | L141: 27.69188368 | O141: 1208 | P141: 26.59767834 | Q141: 30.08919048 | T141: 854 | U141: 23.27537173 | V141: 32.39142248 | Y141: 1700
A142: 7.2 | B142: 20 | C142: 458.3333333 | D142: 11:35:00 | E142: 1916 | F142: 33.24229156 | G142: 25.38909391 | J142: 1562 | K142: 29.91998495 | L142: 27.77846967 | O142: 1208 | P142: 26.59767834 | Q142: 30.19456452 | T142: 854 | U142: 23.27537173 | V142: 32.52028844 | Y142: 1700
A143: 7.4 | B143: 20 | C143: 458.3333333 | D143: 11:40:00 | E143: 1916 | F143: 33.24229156 | G143: 25.52412032 | J143: 1562 | K143: 29.91998495 | L143: 27.94202433 | O143: 1208 | P143: 26.59767834 | Q143: 30.3936084 | T143: 854 | U143: 23.27537173 | V143: 32.76370683 | Y143: 1700
A144: 7.4 | B144: 20 | C144: 458.3333333 | D144: 11:45:00 | E144: 1916 | F144: 33.24229156 | G144: 25.60014218 | J144: 1562 | K144: 29.91998495 | L144: 28.034108 | O144: 1208 | P144: 26.59767834 | Q144: 30.50567301 | T144: 854 | U144: 23.27537173 | V144: 32.90075491 | Y144: 1700
A145: 7.6 | B145: 20 | C145: 458.3333333 | D145: 11:50:00 | E145: 1916 | F145: 33.24229156 | G145: 25.7388787 | J145: 1562 | K145: 29.91998495 | L145: 28.2021566 | O145: 1208 | P145: 26.59767834 | Q145: 30.7101859 | T145: 854 | U145: 23.27537173 | V145: 33.15086149 | Y145: 1700
A146: 7.6 | B146: 20 | C146: 458.3333333 | D146: 11:55:00 | E146: 1916 | F146: 33.24229156 | G146: 25.81698917 | J146: 1562 | K146: 29.91998495 | L146: 28.29677014 | O146: 1208 | P146: 26.59767834 | Q146: 30.82532929 | T146: 854 | U146: 23.27537173 | V146: 33.2916747 | Y146: 1700
A147: 7.6 | B147: 20 | C147: 458.3333333 | D147: 12:00:00 | E147: 1916 | F147: 33.24229156 | G147: 25.86096853 | J147: 1562 | K147: 29.91998495 | L147: 28.3500414 | O147: 1208 | P147: 26.59767834 | Q147: 30.89015967 | T147: 854 | U147: 23.27537173 | V147: 33.37095823 | Y147: 1700
A148: 7.6 | B148: 20 | C148: 458.3333333 | D148: 12:05:00 | E148: 1297.315539 | F148: 27.40505568 | G148: 30.33923191 | J148: 1097.986654 | K148: 25.54205804 | L148: 31.75676023 | O148: 898.6577693 | P148: 23.6790604 | Q148: 33.14092979 | T148: 699.3288847 | U148: 21.81606276 | V148: 34.45938962 | Y148: 1700
A149: 7.7 | B149: 20 | C149: 458.3333333 | D149: 12:10:00 | E149: 948.9492006 | F149: 24.1318007 | G149: 32.93730294 | J149: 836.7119005 | K149: 23.0871168 | L149: 33.69957185 | O149: 724.4746003 | P149: 22.04243291 | Q149: 34.43741977 | T149: 612.2373002 | U149: 20.99774901 | V149: 35.1433452 | Y149: 1700
A150: 7.7 | B150: 20 | C150: 458.3333333 | D150: 12:15:00 | E150: 752.7924956 | F150: 22.29630897 | G150: 34.34145366 | J150: 689.5943717 | K150: 21.71049801 | L150: 34.74575719 | O150: 626.3962478 | P150: 21.12468704 | Q150: 35.13908777 | T150: 563.1981239 | U150: 20.53887608 | V150: 35.51989984 | Y150: 1700
A151: 7.8 | B151: 20 | C151: 458.3333333 | D151: 12:20:00 | E151: 642.3413734 | F151: 21.26704913 | G151: 35.19241151 | J151: 606.7560301 | K151: 20.93855313 | L151: 35.41033008 | O151: 571.1706867 | P151: 20.61005712 | Q151: 35.62413752 | T151: 535.5853434 | U151: 20.28156112 | V151: 35.83353661 | Y151: 1700
A152: 7.8 | B152: 20 | C152: 458.3333333 | D152: 12:25:00 | E152: 580.1490034 | F152: 20.68988727 | G152: 35.65885376 | J152: 560.1117525 | K152: 20.50568173 | L152: 35.77724933 | O152: 540.0745017 | P152: 20.3214762 | Q152: 35.89421365 | T152: 520.0372508 | U152: 20.13727066 | V152: 36.00969147 | Y152: 1700
A153: 7.8 | B153: 20 | C153: 458.3333333 | D153: 12:30:00 | E153: 545.1299759 | F153: 20.36624129 | G153: 35.91549988 | J153: 533.8474819 | K153: 20.26294725 | L153: 35.98028346 | O153: 522.5649879 | P153: 20.15965321 | Q153: 36.04458749 | T153: 511.282494 | U153: 20.05635916 | V153: 36.1084019 | Y153: 1700
A154: 7.8 | B154: 20 | C154: 458.3333333 | D154: 12:35:00 | E154: 525.4116038 | F154: 20.18475543 | G154: 36.05723938 | J154: 519.0587029 | K154: 20.12683285 | L154: 36.09286605 | O154: 512.7058019 | P154: 20.06891027 | Q154: 36.12833532 | T154: 506.352901 | U154: 20.0109877 | V154: 36.1636454 | Y154: 1700
A155: 7.8 | B155: 20 | C155: 458.3333333 | D155: 12:40:00 | E155: 514.3086628 | F155: 20.08298645 | G155: 36.13573006 | J155: 510.7314971 | K155: 20.05050612 | L155: 36.15538478 | O155: 507.1543314 | P155: 20.01802579 | Q155: 36.17498844 | T155: 503.5771657 | U155: 19.98554545 | V155: 36.1945407 | Y155: 1700
A156: 7.8 | B156: 20 | C156: 458.3333333 | D156: 12:45:00 | E156: 508.0568639 | F156: 20.02591906 | G156: 36.17927056 | J156: 506.0426479 | K156: 20.00770558 | L156: 36.19013425 | O156: 504.0284319 | P156: 19.98949209 | Q156: 36.20098147 | T156: 502.014216 | U156: 19.97127861 | V156: 36.21181218 | Y156: 1700
A157: 7.8 | B157: 20 | C157: 458.3333333 | D157: 12:50:00 | E157: 504.5366262 | F157: 19.99391828 | G157: 36.20344818 | J157: 503.4024697 | K157: 19.98370499 | L157: 36.20945916 | O157: 502.2683131 | P157: 19.9734917 | Q157: 36.21546485 | T157: 501.1341566 | U157: 19.96327841 | V157: 36.22146525 | Y157: 1700
A158: 7.8 | B158: 20 | C158: 458.3333333 | D158: 12:55:00 | E158: 502.5544651 | F158: 19.9759737 | G158: 36.21688148 | J158: 501.9158488 | K158: 19.97024656 | L158: 36.22020922 | O158: 501.2772326 | P158: 19.96451941 | Q158: 36.22353526 | T158: 500.6386163 | U158: 19.95879227 | V158: 36.22685961 | Y158: 1700
A159: 7.8 | B159: 20 | C159: 458.3333333 | D159: 13:00:00 | E159: 501.4383579 | F159: 19.96591121 | G159: 36.22434735 | J159: 501.0787684 | K159: 19.96269968 | L159: 36.22619005 | O159: 500.7191789 | P159: 19.95948816 | Q159: 36.22803221 | T159: 500.3595895 | U159: 19.95627664 | V159: 36.22987383 | Y159: 1700
A160: 7.8 | B160: 20 | C160: 458.3333333 | D160: 13:05:00 | E160: 500.8099047 | F160: 19.96026862 | G160: 36.22849722 | J160: 500.6074285 | K160: 19.95846774 | L160: 36.22951765 | O160: 500.4049524 | P160: 19.95666687 | Q160: 36.2305379 | T160: 500.2024762 | U160: 19.95486599 | V160: 36.23155798 | Y160: 1700
A161: 7.8 | B161: 20 | C161: 458.3333333 | D161: 13:10:00 | E161: 500.4560379 | F161: 19.95710451 | G161: 36.23080396 | J161: 500.3420284 | K161: 19.95609466 | L161: 36.23136901 | O161: 500.2280189 | P161: 19.95508482 | Q161: 36.231934 | T161: 500.1140095 | U161: 19.95407497 | V161: 36.23249894 | Y161: 1700
A162: 7.8 | B162: 20 | C162: 458.3333333 | D162: 13:15:00 | E162: 500.2567839 | F162: 19.95533023 | G162: 36.23208615 | J162: 500.192588 | K162: 19.95476395 | L162: 36.232399 | O162: 500.128392 | P162: 19.95419767 | Q162: 36.23271183 | T162: 500.064196 | U162: 19.9536314 | V162: 36.23302464 | Y162: 1700
A163: 7.8 | B163: 20 | C163: 458.3333333 | D163: 13:20:00 | E163: 500.1445889 | F163: 19.95433529 | G163: 36.2327988 | J163: 500.1084416 | K163: 19.95401775 | L163: 36.23297198 | O163: 500.0722944 | P163: 19.9537002 | Q163: 36.23314516 | T163: 500.0361472 | U163: 19.95338266 | V163: 36.23331834 | Y163: 1700
A164: 7.8 | B164: 20 | C164: 458.3333333 | D164: 13:25:00 | E164: 500.0814145 | F164: 19.95377737 | G164: 36.23319486 | J164: 500.0610609 | K164: 19.95359931 | L164: 36.23329071 | O164: 500.0407073 | P164: 19.95342125 | Q164: 36.23338656 | T164: 500.0203536 | U164: 19.95324318 | V164: 36.23348241 | Y164: 1700
A165: 7.9 | B165: 20 | C165: 458.3333333 | D165: 13:30:00 | E165: 1118.730304 | F165: 25.7907004 | G165: 31.97649735 | J165: 964.047728 | K165: 24.33129158 | L165: 33.12397712 | O165: 809.365152 | P165: 22.87188276 | Q165: 34.24590316 | T165: 654.682576 | U165: 21.41247394 | V165: 35.32545934 | Y165: 1700
A166: 7.9 | B166: 20 | C166: 458.3333333 | D166: 13:35:00 | E166: 1467.076612 | F166: 29.06377995 | G166: 29.42415517 | J166: 1225.307459 | K166: 26.78610124 | L166: 31.23716784 | O166: 983.5383061 | P166: 24.50842253 | Q166: 33.04000934 | T166: 741.769153 | U166: 22.23074383 | V166: 34.78421282 | Y166: 1700
A167: 8 | B167: 20 | C167: 458.3333333 | D167: 13:40:00 | E167: 1663.222039 | F167: 30.8991733 | G167: 28.06424221 | J167: 1372.416529 | K167: 28.16264626 | L167: 30.23625719 | O167: 1081.61102 | P167: 25.42611921 | Q167: 32.42720732 | T167: 790.8055098 | U167: 22.68959217 | V167: 34.56577818 | Y167: 1700
A168: 8 | B168: 20 | C168: 458.3333333 | D168: 13:45:00 | E168: 1773.666811 | F168: 31.92837798 | G168: 27.30969068 | J168: 1455.250108 | K168: 28.93454976 | L168: 29.67307217 | O168: 1136.833405 | P168: 25.94072155 | Q168: 32.07817501 | T168: 818.4167027 | U168: 22.94689333 | V168: 34.43994686 | Y168: 1700
A169: 7.8 | B169: 20 | C169: 458.3333333 | D169: 13:50:00 | E169: 1835.855605 | F169: 32.5055089 | G169: 26.78842935 | J169: 1501.891704 | K169: 29.36739795 | L169: 29.2351339 | O169: 1167.927802 | P169: 26.22928701 | Q169: 31.73359102 | T169: 833.9639012 | U169: 23.09117607 | V169: 34.18964716 | Y169: 1700
A170: 7.8 | B170: 20 | C170: 458.3333333 | D170: 13:55:00 | E170: 1870.872619 | F170: 32.82913753 | G170: 26.50078009 | J170: 1528.154464 | K170: 29.61011943 | L170: 28.99274316 | O170: 1185.436309 | P170: 26.39110133 | Q170: 31.54239563 | T170: 842.7181547 | U170: 23.17208322 | V170: 34.050313 | Y170: 1700
A171: 7.7 | B171: 20 | C171: 458.3333333 | D171: 14:00:00 | E171: 1890.589857 | F171: 33.01061367 | G171: 26.29179008 | J171: 1542.942393 | K171: 29.74622653 | L171: 28.79840414 | O171: 1195.294929 | P171: 26.4818394 | Q171: 31.36365788 | T171: 847.6474643 | U171: 23.21745226 | V171: 33.88444565 | Y171: 1700
A172: 7.7 | B172: 20 | C172: 458.3333333 | D172: 14:05:00 | E172: 1901.69216 | F172: 33.11237719 | G172: 26.17555274 | J172: 1551.26912 | K172: 29.82254918 | L172: 28.69015645 | O172: 1200.84608 | P172: 26.53272116 | Q172: 31.2638991 | T172: 850.42304 | U172: 23.24289314 | V172: 33.79156622 | Y172: 1700
A173: 7.6 | B173: 20 | C173: 458.3333333 | D173: 14:10:00 | E173: 1907.943599 | F173: 33.16944152 | G173: 26.06210892 | J173: 1555.9577 | K173: 29.86534742 | L173: 28.57089613 | O173: 1203.9718 | P173: 26.56125332 | Q173: 31.13660602 | T173: 851.9858998 | U173: 23.25715922 | V173: 33.65214336 | Y173: 1700
A174: 7.6 | B174: 20 | C174: 458.3333333 | D174: 14:15:00 | E174: 1911.463635 | F174: 33.20144059 | G174: 25.99864205 | J174: 1558.597726 | K174: 29.88934672 | L174: 28.50409786 | O174: 1205.731817 | P174: 26.57725286 | Q174: 31.06520494 | T174: 852.8659087 | U174: 23.26515899 | V174: 33.57379835 | Y174: 1700
A175: 7.6 | B175: 20 | C175: 458.3333333 | D175: 14:20:00 | E175: 1913.445682 | F175: 33.21938421 | G175: 25.96308199 | J175: 1560.084261 | K175: 29.90280443 | L175: 28.46663688 | O175: 1206.722841 | P175: 26.58622466 | Q175: 31.02511698 | T175: 853.3614204 | U175: 23.26964489 | V175: 33.52975128 | Y175: 1700
A176: 7.6 | B176: 20 | C176: 458.3333333 | D176: 14:25:00 | E176: 1914.561725 | F176: 33.22944616 | G176: 25.94314119 | J176: 1560.921294 | K176: 29.9103509 | L176: 28.44561365 | O176: 1207.280862 | P176: 26.59125564 | Q176: 31.00259775 | T176: 853.6404312 | U176: 23.27216038 | V176: 33.50497985 | Y176: 1700
A177: 7.7 | B177: 20 | C177: 458.3333333 | D177: 14:30:00 | E177: 1915.190142 | F177: 33.23508845 | G177: 25.98037215 | J177: 1561.392606 | K177: 29.91458262 | L177: 28.49245313 | O177: 1207.595071 | P177: 26.59407678 | Q177: 31.06130383 | T177: 853.7975355 | U177: 23.27357095 | V177: 33.57830602 | Y177: 1700
A178: 7.7 | B178: 20 | C178: 458.3333333 | D178: 14:35:00 | E178: 1915.543988 | F178: 33.23825239 | G178: 26.00134283 | J178: 1561.657991 | K178: 29.91695557 | L178: 28.51883168 | O178: 1207.771994 | P178: 26.59565875 | Q178: 31.09436165 | T178: 853.8859971 | U178: 23.27436194 | V178: 33.61959382 | Y178: 1700
A179: 7.8 | B179: 20 | C179: 458.3333333 | D179: 14:40:00 | E179: 1915.743231 | F179: 33.24002658 | G179: 26.0618569 | J179: 1561.807423 | K179: 29.91828621 | L179: 28.59267657 | O179: 1207.871615 | P179: 26.59654585 | Q179: 31.18476264 | T179: 853.9358077 | U179: 23.27480548 | V179: 33.73062719 | Y179: 1700
A180: 7.8 | B180: 20 | C180: 458.3333333 | D180: 14:45:00 | E180: 1915.855419 | F180: 33.24102146 | G180: 26.09592975 | J180: 1561.891565 | K180: 29.91903238 | L180: 28.63425473 | O180: 1207.92771 | P180: 26.59704329 | Q180: 31.23566225 | T180: 853.9638549 | U180: 23.27505421 | V180: 33.79314372 | Y180: 1700
A181: 7.8 | B181: 20 | C181: 458.3333333 | D181: 14:50:00 | E181: 1915.91859 | F181: 33.24157935 | G181: 26.11511646 | J181: 1561.938943 | K181: 29.91945079 | L181: 28.65766698 | O181: 1207.959295 | P181: 26.59732223 | Q181: 31.26432257 | T181: 853.9796475 | U181: 23.27519368 | V181: 33.82834463 | Y181: 1700
A182: 7.8 | B182: 20 | C182: 458.3333333 | D182: 14:55:00 | E182: 1915.95416 | F182: 33.24189218 | G182: 26.12592122 | J182: 1561.96562 | K182: 29.91968542 | L182: 28.67085074 | O182: 1207.97708 | P182: 26.59747865 | Q182: 31.28046103 | T182: 853.98854 | U182: 23.27527189 | V182: 33.84816549 | Y182: 1700
A183: 7.9 | B183: 20 | C183: 458.3333333 | D183: 15:00:00 | E183: 1915.974189 | F183: 33.24206761 | G183: 26.1809936 | J183: 1561.980641 | K183: 29.91981699 | L183: 28.73761234 | O183: 1207.987094 | P183: 26.59756636 | Q183: 31.3617613 | T183: 853.9935472 | U183: 23.27531574 | V183: 33.94763758 | Y183: 1700
A184: 7.8 | B184: 20 | C184: 458.3333333 | D184: 15:05:00 | E184: 1915.985466 | F184: 33.24216598 | G184: 26.16301647 | J184: 1561.9891 | K184: 29.91989076 | L184: 28.71586726 | O184: 1207.992733 | P184: 26.59761555 | Q184: 31.33532738 | T184: 853.9963666 | U184: 23.27534033 | V184: 33.91533712 | Y184: 1700
A185: 7.8 | B185: 20 | C185: 458.3333333 | D185: 15:10:00 | E185: 1915.991816 | F185: 33.24222114 | G185: 26.15289425 | J185: 1561.993862 | K185: 29.91993214 | L185: 28.70362331 | O185: 1207.995908 | P185: 26.59764313 | Q185: 31.32044314 | T185: 853.9979541 | U185: 23.27535413 | V185: 33.8971494 | Y185: 1700
A186: 7.8 | B186: 20 | C186: 458.3333333 | D186: 15:15:00 | E186: 1915.995392 | F186: 33.24225207 | G186: 26.14719485 | J186: 1561.996544 | K186: 29.91995533 | L186: 28.69672917 | O186: 1207.997696 | P186: 26.5976586 | Q186: 31.31206225 | T186: 853.998848 | U186: 23.27536186 | V186: 33.88690834 | Y186: 1700
A187: 7.8 | B187: 20 | C187: 458.3333333 | D187: 15:20:00 | E187: 1915.997405 | F187: 33.24226942 | G187: 26.14398575 | J187: 1561.998054 | K187: 29.91996834 | L187: 28.69284732 | O187: 1207.998703 | P187: 26.59766727 | Q187: 31.30734323 | T187: 853.9993513 | U187: 23.27536619 | V187: 33.88114185 | Y187: 1700
A188: 7.9 | B188: 20 | C188: 458.3333333 | D188: 15:25:00 | E188: 1915.998539 | F188: 33.24227914 | G188: 26.19116537 | J188: 1561.998904 | K188: 29.91997564 | L188: 28.74999789 | O188: 1207.99927 | P188: 26.59767213 | Q188: 31.37689751 | T188: 853.9996348 | U188: 23.27536863 | V188: 33.96620491 | Y188: 1700
A189: 8 | B189: 20 | C189: 458.3333333 | D189: 15:30:00 | E189: 1915.999177 | F189: 33.2422846 | G189: 26.2670146 | J189: 1561.999383 | K189: 29.91997973 | L189: 28.84187402 | O189: 1207.999589 | P189: 26.59767486 | Q189: 31.48871104 | T189: 853.9997943 | U189: 23.27536999 | V189: 34.10294725 | Y189: 1700
A190: 8 | B190: 20 | C190: 458.3333333 | D190: 15:35:00 | E190: 1915.999537 | F190: 33.24228766 | G190: 26.30972087 | J190: 1561.999653 | K190: 29.91998202 | L190: 28.8936041 | O190: 1207.999768 | P190: 26.59767639 | Q190: 31.55166669 | T190: 853.9998842 | U190: 23.27537075 | V190: 34.17993884 | Y190: 1700
A191: 8.1 | B191: 20 | C191: 458.3333333 | D191: 15:40:00 | E191: 1915.999739 | F191: 33.24228937 | G191: 26.38334895 | J191: 1561.999804 | K191: 29.91998331 | L191: 28.98278866 | O191: 1207.99987 | P191: 26.59767725 | Q191: 31.66020352 | T191: 853.9999348 | U191: 23.27537118 | V191: 34.31267298 | Y191: 1700
A192: 8.1 | B192: 20 | C192: 458.3333333 | D192: 15:45:00 | E192: 1915.999853 | F192: 33.24229033 | G192: 26.42480469 | J192: 1561.99989 | K192: 29.91998403 | L192: 29.03300336 | O192: 1207.999927 | P192: 26.59767773 | Q192: 31.72131436 | T192: 853.9999633 | U192: 23.27537142 | V192: 34.38740793 | Y192: 1700
A193: 8.1 | B193: 20 | C193: 458.3333333 | D193: 15:50:00 | E193: 1915.999917 | F193: 33.24229087 | G193: 26.44814664 | J193: 1561.999938 | K193: 29.91998443 | L193: 29.06127711 | O193: 1207.999959 | P193: 26.597678 | Q193: 31.75572325 | T193: 853.9999793 | U193: 23.27537156 | V193: 34.42948797 | Y193: 1700
A194: 8.1 | B194: 20 | C194: 458.3333333 | D194: 15:55:00 | E194: 1915.999953 | F194: 33.24229118 | G194: 26.46128969 | J194: 1561.999965 | K194: 29.91998466 | L194: 29.07719707 | O194: 1207.999977 | P194: 26.59767815 | Q194: 31.77509771 | T194: 853.9999884 | U194: 23.27537163 | V194: 34.45318179 | Y194: 1700
A195: 8.1 | B195: 20 | C195: 458.3333333 | D195: 16:00:00 | E195: 1915.999974 | F195: 33.24229134 | G195: 26.46869014 | J195: 1561.99998 | K195: 29.91998479 | L195: 29.08616113 | O195: 1207.999987 | P195: 26.59767823 | Q195: 31.78600688 | T195: 853.9999934 | U195: 23.27537168 | V195: 34.46652306 | Y195: =CO2Lim -> 1700
A196: 8.1 | B196: 20 | C196: 458.3333333 | D196: 16:05:00 | E196: 1915.999985 | F196: 33.24229144 | G196: 26.47285714 | J196: 1561.999989 | K196: 29.91998486 | L196: 29.09120854 | O196: 1207.999993 | P196: 26.59767828 | Q196: 31.79214954 | T196: 853.9999963 | U196: 23.2753717 | V196: 34.47403517 | Y196: 1700
A197: 8.1 | B197: 20 | C197: 458.3333333 | D197: 16:10:00 | E197: 1915.999992 | F197: 33.24229149 | G197: 26.47520346 | J197: 1561.999994 | K197: 29.9199849 | L197: 29.09405061 | O197: 1207.999996 | P197: 26.59767831 | Q197: 31.79560831 | T197: 853.9999979 | U197: 23.27537171 | V197: 34.47826504 | Y197: 1700
A198: 8.1 | B198: 20 | C198: 458.3333333 | D198: 16:15:00 | E198: 1915.999995 | F198: 33.24229152 | G198: 26.47652462 | J198: 1561.999996 | K198: 29.91998492 | L198: 29.09565091 | O198: 1207.999998 | P198: 26.59767832 | Q198: 31.79755586 | T198: 853.9999988 | U198: 23.27537172 | V198: 34.48064677 | Y198: 1700
A199: 8 | B199: 20 | C199: 458.3333333 | D199: 16:20:00 | E199: 1915.999997 | F199: 33.24229154 | G199: 26.42769131 | J199: 1561.999998 | K199: 29.91998494 | L199: 29.03650022 | O199: 1207.999999 | P199: 26.59767833 | Q199: 31.72557034 | T199: 853.9999993 | U199: 23.27537173 | V199: 34.39261304 | Y199: 1700
A200: 8 | B200: 20 | C200: 458.3333333 | D200: 16:25:00 | E200: 1915.999999 | F200: 33.24229155 | G200: 26.40019336 | J200: 1561.999999 | K200: 29.91998494 | L200: 29.00319258 | O200: 1207.999999 | P200: 26.59767833 | Q200: 31.68503542 | T200: 853.9999996 | U200: 23.27537173 | V200: 34.3430414 | Y200: 1700
... 90 more rows

Sheet Résultats expérience
C4: occupation 100%
A5: augmentation débit % | B5: débit m3/h | C5: CO2 ppm | D5: T °C | E5: HR %
A6: =((B6-$B$6)/$B$6) -> 0 | B6: 5500 | C6: 1880 | D6: 33.4 | E6: 15.3
A7: =((B7-$B$6)/$B$6) -> 0.09090909091 | B7: 6000 | C7: 1790 | D7: 32.2 | E7: 15.4
A8: =((B8-$B$6)/$B$6) -> 0.1818181818 | B8: 6500 | C8: 1680 | D8: 31.3 | E8: 15.5
A9: =((B9-$B$6)/$B$6) -> 0.2272727273 | B9: 6750 | C9: 1643 | D9: 30.9 | E9: 15.5
A10: =((B10-$B$6)/$B$6) -> 0.2727272727 | B10: 7000 | C10: 1606 | D10: 30.5 | E10: 15.5

Sheet bilan
C2: =MAX(C4:C291) ->  | D2: =MAX(D4:D291) ->  | E2: =MAX(E4:E291) ->  | F2: =MAX(F4:F291) -> 
B3: ='debit réf'!C24 -> Heure | C3: Taux d'occupation 100% | D3: Taux d'occupation 75% | E3: Taux d'occupation 50% | F3: Taux d'occupation 25% | G3: taux reglementaire
B4: ='debit réf'!C25 -> 00:00:00 | C4: ='debit réf'!#REF! ->  | D4: ='debit réf'!#REF! ->  | E4: ='debit réf'!#REF! ->  | F4: ='debit réf'!#REF! ->  | G4: =CO2Lim -> 1700
B5: ='debit réf'!C26 -> 00:10:00 | C5: ='debit réf'!#REF! ->  | D5: ='debit réf'!#REF! ->  | E5: ='debit réf'!#REF! ->  | F5: ='debit réf'!#REF! ->  | G5: 1700
B6: ='debit réf'!C27 -> 00:20:00 | C6: ='debit réf'!#REF! ->  | D6: ='debit réf'!#REF! ->  | E6: ='debit réf'!#REF! ->  | F6: ='debit réf'!#REF! ->  | G6: 1700
B7: ='debit réf'!C28 -> 00:30:00 | C7: ='debit réf'!#REF! ->  | D7: ='debit réf'!#REF! ->  | E7: ='debit réf'!#REF! ->  | F7: ='debit réf'!#REF! ->  | G7: 1700
B8: ='debit réf'!C29 -> 00:40:00 | C8: ='debit réf'!#REF! ->  | D8: ='debit réf'!#REF! ->  | E8: ='debit réf'!#REF! ->  | F8: ='debit réf'!#REF! ->  | G8: 1700
B9: ='debit réf'!C30 -> 00:50:00 | C9: ='debit réf'!#REF! ->  | D9: ='debit réf'!#REF! ->  | E9: ='debit réf'!#REF! ->  | F9: ='debit réf'!#REF! ->  | G9: 1700
B10: ='debit réf'!C31 -> 01:00:00 | C10: ='debit réf'!#REF! ->  | D10: ='debit réf'!#REF! ->  | E10: ='debit réf'!#REF! ->  | F10: ='debit réf'!#REF! ->  | G10: 1700
B11: ='debit réf'!C32 -> 01:10:00 | C11: ='debit réf'!#REF! ->  | D11: ='debit réf'!#REF! ->  | E11: ='debit réf'!#REF! ->  | F11: ='debit réf'!#REF! ->  | G11: 1700
B12: ='debit réf'!C33 -> 01:20:00 | C12: ='debit réf'!#REF! ->  | D12: ='debit réf'!#REF! ->  | E12: ='debit réf'!#REF! ->  | F12: ='debit réf'!#REF! ->  | G12: 1700
B13: ='debit réf'!C34 -> 01:30:00 | C13: ='debit réf'!#REF! ->  | D13: ='debit réf'!#REF! ->  | E13: ='debit réf'!#REF! ->  | F13: ='debit réf'!#REF! ->  | G13: 1700
B14: ='debit réf'!C35 -> 01:40:00 | C14: ='debit réf'!#REF! ->  | D14: ='debit réf'!#REF! ->  | E14: ='debit réf'!#REF! ->  | F14: ='debit réf'!#REF! ->  | G14: 1700
B15: ='debit réf'!C36 -> 01:50:00 | C15: ='debit réf'!#REF! ->  | D15: ='debit réf'!#REF! ->  | E15: ='debit réf'!#REF! ->  | F15: ='debit réf'!#REF! ->  | G15: 1700
B16: ='debit réf'!C37 -> 02:00:00 | C16: ='debit réf'!#REF! ->  | D16: ='debit réf'!#REF! ->  | E16: ='debit réf'!#REF! ->  | F16: ='debit réf'!#REF! ->  | G16: 1700
B17: ='debit réf'!C38 -> 02:10:00 | C17: ='debit réf'!#REF! ->  | D17: ='debit réf'!#REF! ->  | E17: ='debit réf'!#REF! ->  | F17: ='debit réf'!#REF! ->  | G17: 1700
B18: ='debit réf'!C39 -> 02:20:00 | C18: ='debit réf'!#REF! ->  | D18: ='debit réf'!#REF! ->  | E18: ='debit réf'!#REF! ->  | F18: ='debit réf'!#REF! ->  | G18: 1700
B19: ='debit réf'!C40 -> 02:30:00 | C19: ='debit réf'!#REF! ->  | D19: ='debit réf'!#REF! ->  | E19: ='debit réf'!#REF! ->  | F19: ='debit réf'!#REF! ->  | G19: 1700
B20: ='debit réf'!C41 -> 02:40:00 | C20: ='debit réf'!#REF! ->  | D20: ='debit réf'!#REF! ->  | E20: ='debit réf'!#REF! ->  | F20: ='debit réf'!#REF! ->  | G20: 1700
B21: ='debit réf'!C42 -> 02:50:00 | C21: ='debit réf'!#REF! ->  | D21: ='debit réf'!#REF! ->  | E21: ='debit réf'!#REF! ->  | F21: ='debit réf'!#REF! ->  | G21: 1700
B22: ='debit réf'!C43 -> 03:00:00 | C22: ='debit réf'!#REF! ->  | D22: ='debit réf'!#REF! ->  | E22: ='debit réf'!#REF! ->  | F22: ='debit réf'!#REF! ->  | G22: 1700
B23: ='debit réf'!C44 -> 03:10:00 | C23: ='debit réf'!#REF! ->  | D23: ='debit réf'!#REF! ->  | E23: ='debit réf'!#REF! ->  | F23: ='debit réf'!#REF! ->  | G23: 1700
B24: ='debit réf'!C45 -> 03:20:00 | C24: ='debit réf'!#REF! ->  | D24: ='debit réf'!#REF! ->  | E24: ='debit réf'!#REF! ->  | F24: ='debit réf'!#REF! ->  | G24: 1700
B25: ='debit réf'!C46 -> 03:30:00 | C25: ='debit réf'!#REF! ->  | D25: ='debit réf'!#REF! ->  | E25: ='debit réf'!#REF! ->  | F25: ='debit réf'!#REF! ->  | G25: 1700
B26: ='debit réf'!C47 -> 03:40:00 | C26: ='debit réf'!#REF! ->  | D26: ='debit réf'!#REF! ->  | E26: ='debit réf'!#REF! ->  | F26: ='debit réf'!#REF! ->  | G26: 1700
B27: ='debit réf'!C48 -> 03:50:00 | C27: ='debit réf'!#REF! ->  | D27: ='debit réf'!#REF! ->  | E27: ='debit réf'!#REF! ->  | F27: ='debit réf'!#REF! ->  | G27: 1700
B28: ='debit réf'!C49 -> 04:00:00 | C28: ='debit réf'!#REF! ->  | D28: ='debit réf'!#REF! ->  | E28: ='debit réf'!#REF! ->  | F28: ='debit réf'!#REF! ->  | G28: 1700
B29: ='debit réf'!C50 -> 04:10:00 | C29: ='debit réf'!#REF! ->  | D29: ='debit réf'!#REF! ->  | E29: ='debit réf'!#REF! ->  | F29: ='debit réf'!#REF! ->  | G29: 1700
B30: ='debit réf'!C51 -> 04:20:00 | C30: ='debit réf'!#REF! ->  | D30: ='debit réf'!#REF! ->  | E30: ='debit réf'!#REF! ->  | F30: ='debit réf'!#REF! ->  | G30: 1700
B31: ='debit réf'!C52 -> 04:30:00 | C31: ='debit réf'!#REF! ->  | D31: ='debit réf'!#REF! ->  | E31: ='debit réf'!#REF! ->  | F31: ='debit réf'!#REF! ->  | G31: 1700
B32: ='debit réf'!C53 -> 04:40:00 | C32: ='debit réf'!#REF! ->  | D32: ='debit réf'!#REF! ->  | E32: ='debit réf'!#REF! ->  | F32: ='debit réf'!#REF! ->  | G32: 1700
B33: ='debit réf'!C54 -> 04:50:00 | C33: ='debit réf'!#REF! ->  | D33: ='debit réf'!#REF! ->  | E33: ='debit réf'!#REF! ->  | F33: ='debit réf'!#REF! ->  | G33: 1700
B34: ='debit réf'!C55 -> 05:00:00 | C34: ='debit réf'!#REF! ->  | D34: ='debit réf'!#REF! ->  | E34: ='debit réf'!#REF! ->  | F34: ='debit réf'!#REF! ->  | G34: 1700
B35: ='debit réf'!C56 -> 05:10:00 | C35: ='debit réf'!#REF! ->  | D35: ='debit réf'!#REF! ->  | E35: ='debit réf'!#REF! ->  | F35: ='debit réf'!#REF! ->  | G35: 1700
B36: ='debit réf'!C57 -> 05:20:00 | C36: ='debit réf'!#REF! ->  | D36: ='debit réf'!#REF! ->  | E36: ='debit réf'!#REF! ->  | F36: ='debit réf'!#REF! ->  | G36: 1700
B37: ='debit réf'!C58 -> 05:30:00 | C37: ='debit réf'!#REF! ->  | D37: ='debit réf'!#REF! ->  | E37: ='debit réf'!#REF! ->  | F37: ='debit réf'!#REF! ->  | G37: 1700
B38: ='debit réf'!C59 -> 05:40:00 | C38: ='debit réf'!#REF! ->  | D38: ='debit réf'!#REF! ->  | E38: ='debit réf'!#REF! ->  | F38: ='debit réf'!#REF! ->  | G38: 1700
B39: ='debit réf'!C60 -> 05:50:00 | C39: ='debit réf'!#REF! ->  | D39: ='debit réf'!#REF! ->  | E39: ='debit réf'!#REF! ->  | F39: ='debit réf'!#REF! ->  | G39: 1700
B40: ='debit réf'!C61 -> 06:00:00 | C40: ='debit réf'!#REF! ->  | D40: ='debit réf'!#REF! ->  | E40: ='debit réf'!#REF! ->  | F40: ='debit réf'!#REF! ->  | G40: 1700
B41: ='debit réf'!C62 -> 06:10:00 | C41: ='debit réf'!#REF! ->  | D41: ='debit réf'!#REF! ->  | E41: ='debit réf'!#REF! ->  | F41: ='debit réf'!#REF! ->  | G41: 1700
B42: ='debit réf'!C63 -> 06:20:00 | C42: ='debit réf'!#REF! ->  | D42: ='debit réf'!#REF! ->  | E42: ='debit réf'!#REF! ->  | F42: ='debit réf'!#REF! ->  | G42: 1700
B43: ='debit réf'!C64 -> 06:30:00 | C43: ='debit réf'!#REF! ->  | D43: ='debit réf'!#REF! ->  | E43: ='debit réf'!#REF! ->  | F43: ='debit réf'!#REF! ->  | G43: 1700
B44: ='debit réf'!C65 -> 06:40:00 | C44: ='debit réf'!#REF! ->  | D44: ='debit réf'!#REF! ->  | E44: ='debit réf'!#REF! ->  | F44: ='debit réf'!#REF! ->  | G44: 1700
B45: ='debit réf'!C66 -> 06:50:00 | C45: ='debit réf'!#REF! ->  | D45: ='debit réf'!#REF! ->  | E45: ='debit réf'!#REF! ->  | F45: ='debit réf'!#REF! ->  | G45: 1700
B46: ='debit réf'!C67 -> 07:00:00 | C46: ='debit réf'!#REF! ->  | D46: ='debit réf'!#REF! ->  | E46: ='debit réf'!#REF! ->  | F46: ='debit réf'!#REF! ->  | G46: 1700
B47: ='debit réf'!C68 -> 07:10:00 | C47: ='debit réf'!#REF! ->  | D47: ='debit réf'!#REF! ->  | E47: ='debit réf'!#REF! ->  | F47: ='debit réf'!#REF! ->  | G47: 1700
B48: ='debit réf'!C69 -> 07:20:00 | C48: ='debit réf'!#REF! ->  | D48: ='debit réf'!#REF! ->  | E48: ='debit réf'!#REF! ->  | F48: ='debit réf'!#REF! ->  | G48: 1700
B49: ='debit réf'!C70 -> 07:30:00 | C49: ='debit réf'!#REF! ->  | D49: ='debit réf'!#REF! ->  | E49: ='debit réf'!#REF! ->  | F49: ='debit réf'!#REF! ->  | G49: 1700
B50: ='debit réf'!C71 -> 07:40:00 | C50: ='debit réf'!#REF! ->  | D50: ='debit réf'!#REF! ->  | E50: ='debit réf'!#REF! ->  | F50: ='debit réf'!#REF! ->  | G50: 1700
B51: ='debit réf'!C72 -> 07:50:00 | C51: ='debit réf'!#REF! ->  | D51: ='debit réf'!#REF! ->  | E51: ='debit réf'!#REF! ->  | F51: ='debit réf'!#REF! ->  | G51: 1700
B52: ='debit réf'!C73 -> 08:00:00 | C52: ='debit réf'!#REF! ->  | D52: ='debit réf'!#REF! ->  | E52: ='debit réf'!#REF! ->  | F52: ='debit réf'!#REF! ->  | G52: 1700
B53: ='debit réf'!C74 -> 08:10:00 | C53: ='debit réf'!#REF! ->  | D53: ='debit réf'!#REF! ->  | E53: ='debit réf'!#REF! ->  | F53: ='debit réf'!#REF! ->  | G53: 1700
B54: ='debit réf'!C75 -> 08:20:00 | C54: ='debit réf'!#REF! ->  | D54: ='debit réf'!#REF! ->  | E54: ='debit réf'!#REF! ->  | F54: ='debit réf'!#REF! ->  | G54: 1700
B55: ='debit réf'!C76 -> 08:30:00 | C55: ='debit réf'!#REF! ->  | D55: ='debit réf'!#REF! ->  | E55: ='debit réf'!#REF! ->  | F55: ='debit réf'!#REF! ->  | G55: 1700
B56: ='debit réf'!C77 -> 08:40:00 | C56: ='debit réf'!#REF! ->  | D56: ='debit réf'!#REF! ->  | E56: ='debit réf'!#REF! ->  | F56: ='debit réf'!#REF! ->  | G56: 1700
B57: ='debit réf'!C78 -> 08:50:00 | C57: ='debit réf'!#REF! ->  | D57: ='debit réf'!#REF! ->  | E57: ='debit réf'!#REF! ->  | F57: ='debit réf'!#REF! ->  | G57: 1700
B58: ='debit réf'!C79 -> 09:00:00 | C58: ='debit réf'!#REF! ->  | D58: ='debit réf'!#REF! ->  | E58: ='debit réf'!#REF! ->  | F58: ='debit réf'!#REF! ->  | G58: 1700
B59: ='debit réf'!C80 -> 09:10:00 | C59: ='debit réf'!#REF! ->  | D59: ='debit réf'!#REF! ->  | E59: ='debit réf'!#REF! ->  | F59: ='debit réf'!#REF! ->  | G59: 1700
B60: ='debit réf'!C81 -> 09:20:00 | C60: ='debit réf'!#REF! ->  | D60: ='debit réf'!#REF! ->  | E60: ='debit réf'!#REF! ->  | F60: ='debit réf'!#REF! ->  | G60: 1700
B61: ='debit réf'!C82 -> 09:30:00 | C61: ='debit réf'!#REF! ->  | D61: ='debit réf'!#REF! ->  | E61: ='debit réf'!#REF! ->  | F61: ='debit réf'!#REF! ->  | G61: 1700
B62: ='debit réf'!C83 -> 09:40:00 | C62: ='debit réf'!#REF! ->  | D62: ='debit réf'!#REF! ->  | E62: ='debit réf'!#REF! ->  | F62: ='debit réf'!#REF! ->  | G62: 1700
B63: ='debit réf'!C84 -> 09:50:00 | C63: ='debit réf'!#REF! ->  | D63: ='debit réf'!#REF! ->  | E63: ='debit réf'!#REF! ->  | F63: ='debit réf'!#REF! ->  | G63: 1700
B64: ='debit réf'!C85 -> 10:00:00 | C64: ='debit réf'!#REF! ->  | D64: ='debit réf'!#REF! ->  | E64: ='debit réf'!#REF! ->  | F64: ='debit réf'!#REF! ->  | G64: 1700
B65: ='debit réf'!C86 -> 10:10:00 | C65: ='debit réf'!#REF! ->  | D65: ='debit réf'!#REF! ->  | E65: ='debit réf'!#REF! ->  | F65: ='debit réf'!#REF! ->  | G65: 1700
B66: ='debit réf'!C87 -> 10:20:00 | C66: ='debit réf'!#REF! ->  | D66: ='debit réf'!#REF! ->  | E66: ='debit réf'!#REF! ->  | F66: ='debit réf'!#REF! ->  | G66: 1700
B67: ='debit réf'!C88 -> 10:30:00 | C67: ='debit réf'!#REF! ->  | D67: ='debit réf'!#REF! ->  | E67: ='debit réf'!#REF! ->  | F67: ='debit réf'!#REF! ->  | G67: 1700
B68: ='debit réf'!C89 -> 10:40:00 | C68: ='debit réf'!#REF! ->  | D68: ='debit réf'!#REF! ->  | E68: ='debit réf'!#REF! ->  | F68: ='debit réf'!#REF! ->  | G68: =CO2Lim -> 1700
B69: ='debit réf'!C90 -> 10:50:00 | C69: ='debit réf'!#REF! ->  | D69: ='debit réf'!#REF! ->  | E69: ='debit réf'!#REF! ->  | F69: ='debit réf'!#REF! ->  | G69: 1700
B70: ='debit réf'!C91 -> 11:00:00 | C70: ='debit réf'!#REF! ->  | D70: ='debit réf'!#REF! ->  | E70: ='debit réf'!#REF! ->  | F70: ='debit réf'!#REF! ->  | G70: 1700
B71: ='debit réf'!C92 -> 11:10:00 | C71: ='debit réf'!#REF! ->  | D71: ='debit réf'!#REF! ->  | E71: ='debit réf'!#REF! ->  | F71: ='debit réf'!#REF! ->  | G71: 1700
B72: ='debit réf'!C93 -> 11:20:00 | C72: ='debit réf'!#REF! ->  | D72: ='debit réf'!#REF! ->  | E72: ='debit réf'!#REF! ->  | F72: ='debit réf'!#REF! ->  | G72: 1700
B73: ='debit réf'!C94 -> 11:30:00 | C73: ='debit réf'!#REF! ->  | D73: ='debit réf'!#REF! ->  | E73: ='debit réf'!#REF! ->  | F73: ='debit réf'!#REF! ->  | G73: 1700
B74: ='debit réf'!C95 -> 11:40:00 | C74: ='debit réf'!#REF! ->  | D74: ='debit réf'!#REF! ->  | E74: ='debit réf'!#REF! ->  | F74: ='debit réf'!#REF! ->  | G74: 1700
B75: ='debit réf'!C96 -> 11:50:00 | C75: ='debit réf'!#REF! ->  | D75: ='debit réf'!#REF! ->  | E75: ='debit réf'!#REF! ->  | F75: ='debit réf'!#REF! ->  | G75: 1700
B76: ='debit réf'!C97 -> 12:00:00 | C76: ='debit réf'!#REF! ->  | D76: ='debit réf'!#REF! ->  | E76: ='debit réf'!#REF! ->  | F76: ='debit réf'!#REF! ->  | G76: 1700
B77: ='debit réf'!C98 -> 12:10:00 | C77: ='debit réf'!#REF! ->  | D77: ='debit réf'!#REF! ->  | E77: ='debit réf'!#REF! ->  | F77: ='debit réf'!#REF! ->  | G77: 1700
B78: ='debit réf'!C99 -> 12:20:00 | C78: ='debit réf'!#REF! ->  | D78: ='debit réf'!#REF! ->  | E78: ='debit réf'!#REF! ->  | F78: ='debit réf'!#REF! ->  | G78: 1700
B79: ='debit réf'!C100 -> 12:30:00 | C79: ='debit réf'!#REF! ->  | D79: ='debit réf'!#REF! ->  | E79: ='debit réf'!#REF! ->  | F79: ='debit réf'!#REF! ->  | G79: 1700
B80: ='debit réf'!C101 -> 12:40:00 | C80: ='debit réf'!#REF! ->  | D80: ='debit réf'!#REF! ->  | E80: ='debit réf'!#REF! ->  | F80: ='debit réf'!#REF! ->  | G80: 1700
B81: ='debit réf'!C102 -> 12:50:00 | C81: ='debit réf'!#REF! ->  | D81: ='debit réf'!#REF! ->  | E81: ='debit réf'!#REF! ->  | F81: ='debit réf'!#REF! ->  | G81: 1700
B82: ='debit réf'!C103 -> 13:00:00 | C82: ='debit réf'!#REF! ->  | D82: ='debit réf'!#REF! ->  | E82: ='debit réf'!#REF! ->  | F82: ='debit réf'!#REF! ->  | G82: 1700
B83: ='debit réf'!C104 -> 13:10:00 | C83: ='debit réf'!#REF! ->  | D83: ='debit réf'!#REF! ->  | E83: ='debit réf'!#REF! ->  | F83: ='debit réf'!#REF! ->  | G83: 1700
B84: ='debit réf'!C105 -> 13:20:00 | C84: ='debit réf'!#REF! ->  | D84: ='debit réf'!#REF! ->  | E84: ='debit réf'!#REF! ->  | F84: ='debit réf'!#REF! ->  | G84: 1700
B85: ='debit réf'!C106 -> 13:30:00 | C85: ='debit réf'!#REF! ->  | D85: ='debit réf'!#REF! ->  | E85: ='debit réf'!#REF! ->  | F85: ='debit réf'!#REF! ->  | G85: 1700
B86: ='debit réf'!C107 -> 13:40:00 | C86: ='debit réf'!#REF! ->  | D86: ='debit réf'!#REF! ->  | E86: ='debit réf'!#REF! ->  | F86: ='debit réf'!#REF! ->  | G86: 1700
B87: ='debit réf'!C108 -> 13:50:00 | C87: ='debit réf'!#REF! ->  | D87: ='debit réf'!#REF! ->  | E87: ='debit réf'!#REF! ->  | F87: ='debit réf'!#REF! ->  | G87: 1700
B88: ='debit réf'!C109 -> 14:00:00 | C88: ='debit réf'!#REF! ->  | D88: ='debit réf'!#REF! ->  | E88: ='debit réf'!#REF! ->  | F88: ='debit réf'!#REF! ->  | G88: 1700
B89: ='debit réf'!C110 -> 14:10:00 | C89: ='debit réf'!#REF! ->  | D89: ='debit réf'!#REF! ->  | E89: ='debit réf'!#REF! ->  | F89: ='debit réf'!#REF! ->  | G89: 1700
B90: ='debit réf'!C111 -> 14:20:00 | C90: ='debit réf'!#REF! ->  | D90: ='debit réf'!#REF! ->  | E90: ='debit réf'!#REF! ->  | F90: ='debit réf'!#REF! ->  | G90: 1700
B91: ='debit réf'!C112 -> 14:30:00 | C91: ='debit réf'!#REF! ->  | D91: ='debit réf'!#REF! ->  | E91: ='debit réf'!#REF! ->  | F91: ='debit réf'!#REF! ->  | G91: 1700
B92: ='debit réf'!C113 -> 14:40:00 | C92: ='debit réf'!#REF! ->  | D92: ='debit réf'!#REF! ->  | E92: ='debit réf'!#REF! ->  | F92: ='debit réf'!#REF! ->  | G92: 1700
B93: ='debit réf'!C114 -> 14:50:00 | C93: ='debit réf'!#REF! ->  | D93: ='debit réf'!#REF! ->  | E93: ='debit réf'!#REF! ->  | F93: ='debit réf'!#REF! ->  | G93: 1700
B94: ='debit réf'!C115 -> 15:00:00 | C94: ='debit réf'!#REF! ->  | D94: ='debit réf'!#REF! ->  | E94: ='debit réf'!#REF! ->  | F94: ='debit réf'!#REF! ->  | G94: 1700
B95: ='debit réf'!C116 -> 15:10:00 | C95: ='debit réf'!#REF! ->  | D95: ='debit réf'!#REF! ->  | E95: ='debit réf'!#REF! ->  | F95: ='debit réf'!#REF! ->  | G95: 1700
B96: ='debit réf'!C117 -> 15:20:00 | C96: ='debit réf'!#REF! ->  | D96: ='debit réf'!#REF! ->  | E96: ='debit réf'!#REF! ->  | F96: ='debit réf'!#REF! ->  | G96: 1700
B97: ='debit réf'!C118 -> 15:30:00 | C97: ='debit réf'!#REF! ->  | D97: ='debit réf'!#REF! ->  | E97: ='debit réf'!#REF! ->  | F97: ='debit réf'!#REF! ->  | G97: 1700
B98: ='debit réf'!C119 -> 15:40:00 | C98: ='debit réf'!#REF! ->  | D98: ='debit réf'!#REF! ->  | E98: ='debit réf'!#REF! ->  | F98: ='debit réf'!#REF! ->  | G98: 1700
B99: ='debit réf'!C120 -> 15:50:00 | C99: ='debit réf'!#REF! ->  | D99: ='debit réf'!#REF! ->  | E99: ='debit réf'!#REF! ->  | F99: ='debit réf'!#REF! ->  | G99: 1700
B100: ='debit réf'!C121 -> 16:00:00 | C100: ='debit réf'!#REF! ->  | D100: ='debit réf'!#REF! ->  | E100: ='debit réf'!#REF! ->  | F100: ='debit réf'!#REF! ->  | G100: 1700
B101: ='debit réf'!C122 -> 16:10:00 | C101: ='debit réf'!#REF! ->  | D101: ='debit réf'!#REF! ->  | E101: ='debit réf'!#REF! ->  | F101: ='debit réf'!#REF! ->  | G101: 1700
B102: ='debit réf'!C123 -> 16:20:00 | C102: ='debit réf'!#REF! ->  | D102: ='debit réf'!#REF! ->  | E102: ='debit réf'!#REF! ->  | F102: ='debit réf'!#REF! ->  | G102: 1700
B103: ='debit réf'!C124 -> 16:30:00 | C103: ='debit réf'!#REF! ->  | D103: ='debit réf'!#REF! ->  | E103: ='debit réf'!#REF! ->  | F103: ='debit réf'!#REF! ->  | G103: 1700
B104: ='debit réf'!C125 -> 16:40:00 | C104: ='debit réf'!#REF! ->  | D104: ='debit réf'!#REF! ->  | E104: ='debit réf'!#REF! ->  | F104: ='debit réf'!#REF! ->  | G104: 1700
B105: ='debit réf'!C126 -> 16:50:00 | C105: ='debit réf'!#REF! ->  | D105: ='debit réf'!#REF! ->  | E105: ='debit réf'!#REF! ->  | F105: ='debit réf'!#REF! ->  | G105: 1700
B106: ='debit réf'!C127 -> 17:00:00 | C106: ='debit réf'!#REF! ->  | D106: ='debit réf'!#REF! ->  | E106: ='debit réf'!#REF! ->  | F106: ='debit réf'!#REF! ->  | G106: 1700
B107: ='debit réf'!C128 -> 17:10:00 | C107: ='debit réf'!#REF! ->  | D107: ='debit réf'!#REF! ->  | E107: ='debit réf'!#REF! ->  | F107: ='debit réf'!#REF! ->  | G107: 1700
B108: ='debit réf'!C129 -> 17:20:00 | C108: ='debit réf'!#REF! ->  | D108: ='debit réf'!#REF! ->  | E108: ='debit réf'!#REF! ->  | F108: ='debit réf'!#REF! ->  | G108: 1700
B109: ='debit réf'!C130 -> 17:30:00 | C109: ='debit réf'!#REF! ->  | D109: ='debit réf'!#REF! ->  | E109: ='debit réf'!#REF! ->  | F109: ='debit réf'!#REF! ->  | G109: 1700
B110: ='debit réf'!C131 -> 17:40:00 | C110: ='debit réf'!#REF! ->  | D110: ='debit réf'!#REF! ->  | E110: ='debit réf'!#REF! ->  | F110: ='debit réf'!#REF! ->  | G110: 1700
B111: ='debit réf'!C132 -> 17:50:00 | C111: ='debit réf'!#REF! ->  | D111: ='debit réf'!#REF! ->  | E111: ='debit réf'!#REF! ->  | F111: ='debit réf'!#REF! ->  | G111: 1700
B112: ='debit réf'!C133 -> 18:00:00 | C112: ='debit réf'!#REF! ->  | D112: ='debit réf'!#REF! ->  | E112: ='debit réf'!#REF! ->  | F112: ='debit réf'!#REF! ->  | G112: 1700
B113: ='debit réf'!C134 -> 18:10:00 | C113: ='debit réf'!#REF! ->  | D113: ='debit réf'!#REF! ->  | E113: ='debit réf'!#REF! ->  | F113: ='debit réf'!#REF! ->  | G113: 1700
B114: ='debit réf'!C135 -> 18:20:00 | C114: ='debit réf'!#REF! ->  | D114: ='debit réf'!#REF! ->  | E114: ='debit réf'!#REF! ->  | F114: ='debit réf'!#REF! ->  | G114: 1700
B115: ='debit réf'!C136 -> 18:30:00 | C115: ='debit réf'!#REF! ->  | D115: ='debit réf'!#REF! ->  | E115: ='debit réf'!#REF! ->  | F115: ='debit réf'!#REF! ->  | G115: 1700
B116: ='debit réf'!C137 -> 18:40:00 | C116: ='debit réf'!#REF! ->  | D116: ='debit réf'!#REF! ->  | E116: ='debit réf'!#REF! ->  | F116: ='debit réf'!#REF! ->  | G116: 1700
B117: ='debit réf'!C138 -> 18:50:00 | C117: ='debit réf'!#REF! ->  | D117: ='debit réf'!#REF! ->  | E117: ='debit réf'!#REF! ->  | F117: ='debit réf'!#REF! ->  | G117: 1700
B118: ='debit réf'!C139 -> 19:00:00 | C118: ='debit réf'!#REF! ->  | D118: ='debit réf'!#REF! ->  | E118: ='debit réf'!#REF! ->  | F118: ='debit réf'!#REF! ->  | G118: 1700
B119: ='debit réf'!C140 -> 19:10:00 | C119: ='debit réf'!#REF! ->  | D119: ='debit réf'!#REF! ->  | E119: ='debit réf'!#REF! ->  | F119: ='debit réf'!#REF! ->  | G119: 1700
B120: ='debit réf'!C141 -> 19:20:00 | C120: ='debit réf'!#REF! ->  | D120: ='debit réf'!#REF! ->  | E120: ='debit réf'!#REF! ->  | F120: ='debit réf'!#REF! ->  | G120: 1700
B121: ='debit réf'!C142 -> 19:30:00 | C121: ='debit réf'!#REF! ->  | D121: ='debit réf'!#REF! ->  | E121: ='debit réf'!#REF! ->  | F121: ='debit réf'!#REF! ->  | G121: 1700
B122: ='debit réf'!C143 -> 19:40:00 | C122: ='debit réf'!#REF! ->  | D122: ='debit réf'!#REF! ->  | E122: ='debit réf'!#REF! ->  | F122: ='debit réf'!#REF! ->  | G122: 1700
B123: ='debit réf'!C144 -> 19:50:00 | C123: ='debit réf'!#REF! ->  | D123: ='debit réf'!#REF! ->  | E123: ='debit réf'!#REF! ->  | F123: ='debit réf'!#REF! ->  | G123: 1700
B124: ='debit réf'!C145 -> 20:00:00 | C124: ='debit réf'!#REF! ->  | D124: ='debit réf'!#REF! ->  | E124: ='debit réf'!#REF! ->  | F124: ='debit réf'!#REF! ->  | G124: 1700
B125: ='debit réf'!C146 -> 20:10:00 | C125: ='debit réf'!#REF! ->  | D125: ='debit réf'!#REF! ->  | E125: ='debit réf'!#REF! ->  | F125: ='debit réf'!#REF! ->  | G125: 1700
B126: ='debit réf'!C147 -> 20:20:00 | C126: ='debit réf'!#REF! ->  | D126: ='debit réf'!#REF! ->  | E126: ='debit réf'!#REF! ->  | F126: ='debit réf'!#REF! ->  | G126: 1700
B127: ='debit réf'!C148 -> 20:30:00 | C127: ='debit réf'!#REF! ->  | D127: ='debit réf'!#REF! ->  | E127: ='debit réf'!#REF! ->  | F127: ='debit réf'!#REF! ->  | G127: 1700
B128: ='debit réf'!C149 -> 20:40:00 | C128: ='debit réf'!#REF! ->  | D128: ='debit réf'!#REF! ->  | E128: ='debit réf'!#REF! ->  | F128: ='debit réf'!#REF! ->  | G128: 1700
B129: ='debit réf'!C150 -> 20:50:00 | C129: ='debit réf'!#REF! ->  | D129: ='debit réf'!#REF! ->  | E129: ='debit réf'!#REF! ->  | F129: ='debit réf'!#REF! ->  | G129: 1700
B130: ='debit réf'!C151 -> 21:00:00 | C130: ='debit réf'!#REF! ->  | D130: ='debit réf'!#REF! ->  | E130: ='debit réf'!#REF! ->  | F130: ='debit réf'!#REF! ->  | G130: 1700
B131: ='debit réf'!C152 -> 21:10:00 | C131: ='debit réf'!#REF! ->  | D131: ='debit réf'!#REF! ->  | E131: ='debit réf'!#REF! ->  | F131: ='debit réf'!#REF! ->  | G131: 1700
B132: ='debit réf'!C153 -> 21:20:00 | C132: ='debit réf'!#REF! ->  | D132: ='debit réf'!#REF! ->  | E132: ='debit réf'!#REF! ->  | F132: ='debit réf'!#REF! ->  | G132: =CO2Lim -> 1700
B133: ='debit réf'!C154 -> 21:30:00 | C133: ='debit réf'!#REF! ->  | D133: ='debit réf'!#REF! ->  | E133: ='debit réf'!#REF! ->  | F133: ='debit réf'!#REF! ->  | G133: 1700
B134: ='debit réf'!C155 -> 21:40:00 | C134: ='debit réf'!#REF! ->  | D134: ='debit réf'!#REF! ->  | E134: ='debit réf'!#REF! ->  | F134: ='debit réf'!#REF! ->  | G134: 1700
B135: ='debit réf'!C156 -> 21:50:00 | C135: ='debit réf'!#REF! ->  | D135: ='debit réf'!#REF! ->  | E135: ='debit réf'!#REF! ->  | F135: ='debit réf'!#REF! ->  | G135: 1700
B136: ='debit réf'!C157 -> 22:00:00 | C136: ='debit réf'!#REF! ->  | D136: ='debit réf'!#REF! ->  | E136: ='debit réf'!#REF! ->  | F136: ='debit réf'!#REF! ->  | G136: 1700
B137: ='debit réf'!C158 -> 22:10:00 | C137: ='debit réf'!#REF! ->  | D137: ='debit réf'!#REF! ->  | E137: ='debit réf'!#REF! ->  | F137: ='debit réf'!#REF! ->  | G137: 1700
B138: ='debit réf'!C159 -> 22:20:00 | C138: ='debit réf'!#REF! ->  | D138: ='debit réf'!#REF! ->  | E138: ='debit réf'!#REF! ->  | F138: ='debit réf'!#REF! ->  | G138: 1700
B139: ='debit réf'!C160 -> 22:30:00 | C139: ='debit réf'!#REF! ->  | D139: ='debit réf'!#REF! ->  | E139: ='debit réf'!#REF! ->  | F139: ='debit réf'!#REF! ->  | G139: 1700
B140: ='debit réf'!C161 -> 22:40:00 | C140: ='debit réf'!#REF! ->  | D140: ='debit réf'!#REF! ->  | E140: ='debit réf'!#REF! ->  | F140: ='debit réf'!#REF! ->  | G140: 1700
B141: ='debit réf'!C162 -> 22:50:00 | C141: ='debit réf'!#REF! ->  | D141: ='debit réf'!#REF! ->  | E141: ='debit réf'!#REF! ->  | F141: ='debit réf'!#REF! ->  | G141: 1700
B142: ='debit réf'!C163 -> 23:00:00 | C142: ='debit réf'!#REF! ->  | D142: ='debit réf'!#REF! ->  | E142: ='debit réf'!#REF! ->  | F142: ='debit réf'!#REF! ->  | G142: 1700
B143: ='debit réf'!C164 -> 23:10:00 | C143: ='debit réf'!#REF! ->  | D143: ='debit réf'!#REF! ->  | E143: ='debit réf'!#REF! ->  | F143: ='debit réf'!#REF! ->  | G143: 1700
B144: ='debit réf'!C165 -> 23:20:00 | C144: ='debit réf'!#REF! ->  | D144: ='debit réf'!#REF! ->  | E144: ='debit réf'!#REF! ->  | F144: ='debit réf'!#REF! ->  | G144: 1700
B145: ='debit réf'!C166 -> 23:30:00 | C145: ='debit réf'!#REF! ->  | D145: ='debit réf'!#REF! ->  | E145: ='debit réf'!#REF! ->  | F145: ='debit réf'!#REF! ->  | G145: 1700
B146: ='debit réf'!C167 -> 23:40:00 | C146: ='debit réf'!#REF! ->  | D146: ='debit réf'!#REF! ->  | E146: ='debit réf'!#REF! ->  | F146: ='debit réf'!#REF! ->  | G146: 1700
B147: ='debit réf'!C168 -> 23:50:00 | C147: ='debit réf'!#REF! ->  | D147: ='debit réf'!#REF! ->  | E147: ='debit réf'!#REF! ->  | F147: ='debit réf'!#REF! ->  | G147: 1700
B148: ='debit réf'!C169 -> 00:00:00 | C148: ='debit réf'!#REF! ->  | D148: ='debit réf'!#REF! ->  | E148: ='debit réf'!#REF! ->  | F148: ='debit réf'!#REF! ->  | G148: 1700
B149: ='debit réf'!C170 -> 00:10:00 | C149: ='debit réf'!#REF! ->  | D149: ='debit réf'!#REF! ->  | E149: ='debit réf'!#REF! ->  | F149: ='debit réf'!#REF! ->  | G149: 1700
B150: ='debit réf'!C171 -> 00:20:00 | C150: ='debit réf'!#REF! ->  | D150: ='debit réf'!#REF! ->  | E150: ='debit réf'!#REF! ->  | F150: ='debit réf'!#REF! ->  | G150: 1700
B151: ='debit réf'!C172 -> 00:30:00 | C151: ='debit réf'!#REF! ->  | D151: ='debit réf'!#REF! ->  | E151: ='debit réf'!#REF! ->  | F151: ='debit réf'!#REF! ->  | G151: 1700
B152: ='debit réf'!C173 -> 00:40:00 | C152: ='debit réf'!#REF! ->  | D152: ='debit réf'!#REF! ->  | E152: ='debit réf'!#REF! ->  | F152: ='debit réf'!#REF! ->  | G152: 1700
B153: ='debit réf'!C174 -> 00:50:00 | C153: ='debit réf'!#REF! ->  | D153: ='debit réf'!#REF! ->  | E153: ='debit réf'!#REF! ->  | F153: ='debit réf'!#REF! ->  | G153: 1700
B154: ='debit réf'!C175 -> 01:00:00 | C154: ='debit réf'!#REF! ->  | D154: ='debit réf'!#REF! ->  | E154: ='debit réf'!#REF! ->  | F154: ='debit réf'!#REF! ->  | G154: 1700
B155: ='debit réf'!C176 -> 01:10:00 | C155: ='debit réf'!#REF! ->  | D155: ='debit réf'!#REF! ->  | E155: ='debit réf'!#REF! ->  | F155: ='debit réf'!#REF! ->  | G155: 1700
B156: ='debit réf'!C177 -> 01:20:00 | C156: ='debit réf'!#REF! ->  | D156: ='debit réf'!#REF! ->  | E156: ='debit réf'!#REF! ->  | F156: ='debit réf'!#REF! ->  | G156: 1700
B157: ='debit réf'!C178 -> 01:30:00 | C157: ='debit réf'!#REF! ->  | D157: ='debit réf'!#REF! ->  | E157: ='debit réf'!#REF! ->  | F157: ='debit réf'!#REF! ->  | G157: 1700
B158: ='debit réf'!C179 -> 01:40:00 | C158: ='debit réf'!#REF! ->  | D158: ='debit réf'!#REF! ->  | E158: ='debit réf'!#REF! ->  | F158: ='debit réf'!#REF! ->  | G158: 1700
B159: ='debit réf'!C180 -> 01:50:00 | C159: ='debit réf'!#REF! ->  | D159: ='debit réf'!#REF! ->  | E159: ='debit réf'!#REF! ->  | F159: ='debit réf'!#REF! ->  | G159: 1700
B160: ='debit réf'!C181 -> 02:00:00 | C160: ='debit réf'!#REF! ->  | D160: ='debit réf'!#REF! ->  | E160: ='debit réf'!#REF! ->  | F160: ='debit réf'!#REF! ->  | G160: 1700
B161: ='debit réf'!C182 -> 02:10:00 | C161: ='debit réf'!#REF! ->  | D161: ='debit réf'!#REF! ->  | E161: ='debit réf'!#REF! ->  | F161: ='debit réf'!#REF! ->  | G161: 1700
B162: ='debit réf'!C183 -> 02:20:00 | C162: ='debit réf'!#REF! ->  | D162: ='debit réf'!#REF! ->  | E162: ='debit réf'!#REF! ->  | F162: ='debit réf'!#REF! ->  | G162: 1700
B163: ='debit réf'!C184 -> 02:30:00 | C163: ='debit réf'!#REF! ->  | D163: ='debit réf'!#REF! ->  | E163: ='debit réf'!#REF! ->  | F163: ='debit réf'!#REF! ->  | G163: 1700
B164: ='debit réf'!C185 -> 02:40:00 | C164: ='debit réf'!#REF! ->  | D164: ='debit réf'!#REF! ->  | E164: ='debit réf'!#REF! ->  | F164: ='debit réf'!#REF! ->  | G164: 1700
B165: ='debit réf'!C186 -> 02:50:00 | C165: ='debit réf'!#REF! ->  | D165: ='debit réf'!#REF! ->  | E165: ='debit réf'!#REF! ->  | F165: ='debit réf'!#REF! ->  | G165: 1700
B166: ='debit réf'!C187 -> 03:00:00 | C166: ='debit réf'!#REF! ->  | D166: ='debit réf'!#REF! ->  | E166: ='debit réf'!#REF! ->  | F166: ='debit réf'!#REF! ->  | G166: 1700
B167: ='debit réf'!C188 -> 03:10:00 | C167: ='debit réf'!#REF! ->  | D167: ='debit réf'!#REF! ->  | E167: ='debit réf'!#REF! ->  | F167: ='debit réf'!#REF! ->  | G167: 1700
B168: ='debit réf'!C189 -> 03:20:00 | C168: ='debit réf'!#REF! ->  | D168: ='debit réf'!#REF! ->  | E168: ='debit réf'!#REF! ->  | F168: ='debit réf'!#REF! ->  | G168: 1700
B169: ='debit réf'!C190 -> 03:30:00 | C169: ='debit réf'!#REF! ->  | D169: ='debit réf'!#REF! ->  | E169: ='debit réf'!#REF! ->  | F169: ='debit réf'!#REF! ->  | G169: 1700
B170: ='debit réf'!C191 -> 03:40:00 | C170: ='debit réf'!#REF! ->  | D170: ='debit réf'!#REF! ->  | E170: ='debit réf'!#REF! ->  | F170: ='debit réf'!#REF! ->  | G170: 1700
B171: ='debit réf'!C192 -> 03:50:00 | C171: ='debit réf'!#REF! ->  | D171: ='debit réf'!#REF! ->  | E171: ='debit réf'!#REF! ->  | F171: ='debit réf'!#REF! ->  | G171: 1700
B172: ='debit réf'!C193 -> 04:00:00 | C172: ='debit réf'!#REF! ->  | D172: ='debit réf'!#REF! ->  | E172: ='debit réf'!#REF! ->  | F172: ='debit réf'!#REF! ->  | G172: 1700
B173: ='debit réf'!C194 -> 04:10:00 | C173: ='debit réf'!#REF! ->  | D173: ='debit réf'!#REF! ->  | E173: ='debit réf'!#REF! ->  | F173: ='debit réf'!#REF! ->  | G173: 1700
B174: ='debit réf'!C195 -> 04:20:00 | C174: ='debit réf'!#REF! ->  | D174: ='debit réf'!#REF! ->  | E174: ='debit réf'!#REF! ->  | F174: ='debit réf'!#REF! ->  | G174: 1700
B175: ='debit réf'!C196 -> 04:30:00 | C175: ='debit réf'!#REF! ->  | D175: ='debit réf'!#REF! ->  | E175: ='debit réf'!#REF! ->  | F175: ='debit réf'!#REF! ->  | G175: 1700
B176: ='debit réf'!C197 -> 04:40:00 | C176: ='debit réf'!#REF! ->  | D176: ='debit réf'!#REF! ->  | E176: ='debit réf'!#REF! ->  | F176: ='debit réf'!#REF! ->  | G176: 1700
B177: ='debit réf'!C198 -> 04:50:00 | C177: ='debit réf'!#REF! ->  | D177: ='debit réf'!#REF! ->  | E177: ='debit réf'!#REF! ->  | F177: ='debit réf'!#REF! ->  | G177: 1700
B178: ='debit réf'!C199 -> 05:00:00 | C178: ='debit réf'!#REF! ->  | D178: ='debit réf'!#REF! ->  | E178: ='debit réf'!#REF! ->  | F178: ='debit réf'!#REF! ->  | G178: 1700
B179: ='debit réf'!C200 -> 05:10:00 | C179: ='debit réf'!#REF! ->  | D179: ='debit réf'!#REF! ->  | E179: ='debit réf'!#REF! ->  | F179: ='debit réf'!#REF! ->  | G179: 1700
B180: ='debit réf'!C201 -> 05:20:00 | C180: ='debit réf'!#REF! ->  | D180: ='debit réf'!#REF! ->  | E180: ='debit réf'!#REF! ->  | F180: ='debit réf'!#REF! ->  | G180: 1700
B181: ='debit réf'!C202 -> 05:30:00 | C181: ='debit réf'!#REF! ->  | D181: ='debit réf'!#REF! ->  | E181: ='debit réf'!#REF! ->  | F181: ='debit réf'!#REF! ->  | G181: 1700
B182: ='debit réf'!C203 -> 05:40:00 | C182: ='debit réf'!#REF! ->  | D182: ='debit réf'!#REF! ->  | E182: ='debit réf'!#REF! ->  | F182: ='debit réf'!#REF! ->  | G182: 1700
B183: ='debit réf'!C204 -> 05:50:00 | C183: ='debit réf'!#REF! ->  | D183: ='debit réf'!#REF! ->  | E183: ='debit réf'!#REF! ->  | F183: ='debit réf'!#REF! ->  | G183: 1700
B184: ='debit réf'!C205 -> 06:00:00 | C184: ='debit réf'!#REF! ->  | D184: ='debit réf'!#REF! ->  | E184: ='debit réf'!#REF! ->  | F184: ='debit réf'!#REF! ->  | G184: 1700
B185: ='debit réf'!C206 -> 06:10:00 | C185: ='debit réf'!#REF! ->  | D185: ='debit réf'!#REF! ->  | E185: ='debit réf'!#REF! ->  | F185: ='debit réf'!#REF! ->  | G185: 1700
B186: ='debit réf'!C207 -> 06:20:00 | C186: ='debit réf'!#REF! ->  | D186: ='debit réf'!#REF! ->  | E186: ='debit réf'!#REF! ->  | F186: ='debit réf'!#REF! ->  | G186: 1700
B187: ='debit réf'!C208 -> 06:30:00 | C187: ='debit réf'!#REF! ->  | D187: ='debit réf'!#REF! ->  | E187: ='debit réf'!#REF! ->  | F187: ='debit réf'!#REF! ->  | G187: 1700
B188: ='debit réf'!C209 -> 06:40:00 | C188: ='debit réf'!#REF! ->  | D188: ='debit réf'!#REF! ->  | E188: ='debit réf'!#REF! ->  | F188: ='debit réf'!#REF! ->  | G188: 1700
B189: ='debit réf'!C210 -> 06:50:00 | C189: ='debit réf'!#REF! ->  | D189: ='debit réf'!#REF! ->  | E189: ='debit réf'!#REF! ->  | F189: ='debit réf'!#REF! ->  | G189: 1700
B190: ='debit réf'!C211 -> 07:00:00 | C190: ='debit réf'!#REF! ->  | D190: ='debit réf'!#REF! ->  | E190: ='debit réf'!#REF! ->  | F190: ='debit réf'!#REF! ->  | G190: 1700
B191: ='debit réf'!C212 -> 07:10:00 | C191: ='debit réf'!#REF! ->  | D191: ='debit réf'!#REF! ->  | E191: ='debit réf'!#REF! ->  | F191: ='debit réf'!#REF! ->  | G191: 1700
B192: ='debit réf'!C213 -> 07:20:00 | C192: ='debit réf'!#REF! ->  | D192: ='debit réf'!#REF! ->  | E192: ='debit réf'!#REF! ->  | F192: ='debit réf'!#REF! ->  | G192: 1700
B193: ='debit réf'!C214 -> 07:30:00 | C193: ='debit réf'!#REF! ->  | D193: ='debit réf'!#REF! ->  | E193: ='debit réf'!#REF! ->  | F193: ='debit réf'!#REF! ->  | G193: 1700
B194: ='debit réf'!C215 -> 07:40:00 | C194: ='debit réf'!#REF! ->  | D194: ='debit réf'!#REF! ->  | E194: ='debit réf'!#REF! ->  | F194: ='debit réf'!#REF! ->  | G194: 1700
B195: ='debit réf'!C216 -> 07:50:00 | C195: ='debit réf'!#REF! ->  | D195: ='debit réf'!#REF! ->  | E195: ='debit réf'!#REF! ->  | F195: ='debit réf'!#REF! ->  | G195: 1700
B196: ='debit réf'!C217 -> 08:00:00 | C196: ='debit réf'!#REF! ->  | D196: ='debit réf'!#REF! ->  | E196: ='debit réf'!#REF! ->  | F196: ='debit réf'!#REF! ->  | G196: =CO2Lim -> 1700
B197: ='debit réf'!C218 -> 08:10:00 | C197: ='debit réf'!#REF! ->  | D197: ='debit réf'!#REF! ->  | E197: ='debit réf'!#REF! ->  | F197: ='debit réf'!#REF! ->  | G197: 1700
B198: ='debit réf'!C219 -> 08:20:00 | C198: ='debit réf'!#REF! ->  | D198: ='debit réf'!#REF! ->  | E198: ='debit réf'!#REF! ->  | F198: ='debit réf'!#REF! ->  | G198: 1700
B199: ='debit réf'!C220 -> 08:30:00 | C199: ='debit réf'!#REF! ->  | D199: ='debit réf'!#REF! ->  | E199: ='debit réf'!#REF! ->  | F199: ='debit réf'!#REF! ->  | G199: 1700
B200: ='debit réf'!C221 -> 08:40:00 | C200: ='debit réf'!#REF! ->  | D200: ='debit réf'!#REF! ->  | E200: ='debit réf'!#REF! ->  | F200: ='debit réf'!#REF! ->  | G200: 1700
B201: ='debit réf'!C222 -> 08:50:00 | C201: ='debit réf'!#REF! ->  | D201: ='debit réf'!#REF! ->  | E201: ='debit réf'!#REF! ->  | F201: ='debit réf'!#REF! ->  | G201: 1700
... 90 more rows

Sheet Bilan GRAPH

Sheet Sources
B3: http://www.cap-sciences.net/upload/Eau_p24_26.pdf
B4: L'eau rejetée :
B5: . respiration (0,5 L/jour)
B6: . perspiration et transpiration : 0,9L
B7: (plus en cas de transpiration due à la
B8: chaleur)
B9: . urine (1,5L/jour)
B10: . selles (0,1L)
B12: http://www.energieplus-lesite.be/index.php?id=15348#c19671
B13: Tableau A.9 – Béton lourd normal
B15: La chaleur massique vaut 1 000 J/(kg.K)
B17: Béton lourd normal | D17: λUi | E17: λUe | F17: Masse volumique ρ (kg/m³)
D18: W/(m.K) | E18: W/(m.K)
B19: Armé | D19: 1.70 | E19: 2.20 | F19: 2 400
B20: Non armé | D20: 1.30 | E20: 1.70 | F20: 2 400
B23: λU,i : Conductivité thermique utilisée pour un matériau dans une paroi intérieure ou dans une paroi extérieure, à condition que ce matériau soit protégé contre l'humidité due à la pluie ou à la condensation.
B24: λU,e : Conductivité thermique utilisée pour un matériau dans une paroi extérieure qui n'est pas protégé contre l'humidité due à la pluie ou à la condensation.

Sheet Formules utilisées
A2: CO2
A4: TauxCO2ppm=MCO2I,n*1000000/Mamphi
A6: Avec
A7: Mamphi | B7: masse d'air contenue dans l'amphithéâtre
A8: MCO2I,n | B8: Masse de CO2 dans l'amphi au moment n
A10: MCO2I,n=MCO2I,(n-1)+MCO2Entrant,n+MCO2Occ,n-MCO2Sortant,n
A12: MCO2I,(n-1) | B12: Masse de CO2 dans l'amphi au moment n-1, soit 5 min plus tôt
A13: MCO2Entrant,n | B13: Masse de CO2 soufflée par la ventilation au moment n
A14: MCO2Sortant,n | B14: Masse de CO2 reprise par la ventilation au moment n
A15: MCO2Occ,n | B15: Masse de CO2 produite par les occupants au moment n
A22: Températures
A24: Ti,n=DTocc,n+(Mamphi*Ti,(n-1)+Mentrant*Tsoufflage,n-Msortant*Treprise,n)/Mamphi
A26: Avec
A28: Ti,n | B28: Température intérieure au moment n
A29: Ti,(n-1) | B29: Température intérieure au moment n-1, soit 5 minutes plus tôt
A30: Tsoufflage,n | B30: Température de soufflage au moment n
A31: Treprise,n | B31: Température de reprise au moment n, Treprise,n=Ti,(n-1)
A32: DTocc,n | B32: Elévation de température due aux occupants au moment n
A34: DTocc,n=Pocc*5min/(CpAir*Mamphi)
A35: Pocc | B35: Puissance totale apportée par les occupants
A38: Mamphi | B38: masse d'air contenue dans l'amphithéâtre
A39: Mentrant | B39: masse d'air soufflée
A40: Msortant | B40: masse d'air reprise
A41: Mentrant=Msortant=rhoair*DébitVolumique*5min
A48: Equipements
A50: Puissance batterie
A52: Pbatterie,n=0,34*débit(m3/h)*(Tsoufflage,n-Textérieure,n)
A55: Débit batterie eau chaude
A56: Qv,n=Pbatterie,n/(CpEau*(TEauEntrée,n-TeauSortie,n)
A58: Avec
A59: Qv,n | B59: débit volumique au moment n
A60: TEauEntrée | B60: Température de l'eau à l'entrée de l'échangeur, température aller
A61: TEauSortie | B61: Température de l'eau à la sortie de l'échangeur, température retour
A62: CpEau | B62: Capacité calorifique de l'eau
A68: Hygrométrie
A70: hygrométrie,n=MEauI,n/Mamphi
A72: Avec
A73: MEauI,n | B73: Masse d'eau intérieur au moment n
A74: Mamphi | B74: masse d'air contenue dans l'amphithéâtre
A76: MEauI,n=MEauI,(n-1)+MEauEntrant,n+MEauOcc,n-MEauSortant,n
A77: MEauI,(n-1) | B77: Masse d'eau intérieur au moment n-1, soit 5min plus tôt
A78: MEauEntrant,n | B78: Masse d'eau soufflée par la ventilation au moment n
A79: MEauSortant,n | B79: Masse d'eau reprise par la ventilation au moment n
A80: MEauOcc,n | B80: Masse d'eau produite par les occupants au moment n
A85: mélange
A88: debit variable

Sheet liste déroulante
B2: heure | D2: oui
B3: 00:00:00 | D3: non
B4: 00:10:00
B5: 00:20:00
B6: 00:30:00
B7: 00:40:00
B8: 00:50:00
B9: 01:00:00
B10: 01:10:00
B11: 01:20:00
B12: 01:30:00
B13: 01:40:00
B14: 01:50:00
B15: 02:00:00
B16: 02:10:00
B17: 02:20:00
B18: 02:30:00
B19: 02:40:00
B20: 02:50:00
B21: 03:00:00
B22: 03:10:00
B23: 03:20:00
B24: 03:30:00
B25: 03:40:00
B26: 03:50:00
B27: 04:00:00
B28: 04:10:00
B29: 04:20:00
B30: 04:30:00
B31: 04:40:00
B32: 04:50:00
B33: 05:00:00
B34: 05:10:00
B35: 05:20:00
B36: 05:30:00
B37: 05:40:00
B38: 05:50:00
B39: 06:00:00
B40: 06:10:00
B41: 06:20:00
B42: 06:30:00
B43: 06:40:00
B44: 06:50:00
B45: 07:00:00
B46: 07:10:00
B47: 07:20:00
B48: 07:30:00
B49: 07:40:00
B50: 07:50:00
B51: 08:00:00
B52: 08:10:00
B53: 08:20:00
B54: 08:30:00
B55: 08:40:00
B56: 08:50:00
B57: 09:00:00
B58: 09:10:00
B59: 09:20:00
B60: 09:30:00
B61: 09:40:00
B62: 09:50:00
B63: 10:00:00
B64: 10:10:00
B65: 10:20:00
B66: 10:30:00
B67: 10:40:00
B68: 10:50:00
B69: 11:00:00
B70: 11:10:00
B71: 11:20:00
B72: 11:30:00
B73: 11:40:00
B74: 11:50:00
B75: 12:00:00
B76: 12:10:00
B77: 12:20:00
B78: 12:30:00
B79: 12:40:00
B80: 12:50:00
B81: 13:00:00
B82: 13:10:00
B83: 13:20:00
B84: 13:30:00
B85: 13:40:00
B86: 13:50:00
B87: 14:00:00
B88: 14:10:00
B89: 14:20:00
B90: 14:30:00
B91: 14:40:00
B92: 14:50:00
B93: 15:00:00
B94: 15:10:00
B95: 15:20:00
B96: 15:30:00
B97: 15:40:00
B98: 15:50:00
B99: 16:00:00
B100: 16:10:00
B101: 16:20:00
B102: 16:30:00
B103: 16:40:00
B104: 16:50:00
B105: 17:00:00
B106: 17:10:00
B107: 17:20:00
B108: 17:30:00
B109: 17:40:00
B110: 17:50:00
B111: 18:00:00
B112: 18:10:00
B113: 18:20:00
B114: 18:30:00
B115: 18:40:00
B116: 18:50:00
B117: 19:00:00
B118: 19:10:00
B119: 19:20:00
B120: 19:30:00
B121: 19:40:00
B122: 19:50:00
B123: 20:00:00
B124: 20:10:00
B125: 20:20:00
B126: 20:30:00
B127: 20:40:00
B128: 20:50:00
B129: 21:00:00
B130: 21:10:00
B131: 21:20:00
B132: 21:30:00
B133: 21:40:00
B134: 21:50:00
B135: 22:00:00
B136: 22:10:00
B137: 22:20:00
B138: 22:30:00
B139: 22:40:00
B140: 22:50:00
B141: 23:00:00
B142: 23:10:00
B143: 23:20:00
B144: 23:30:00
B145: 23:40:00
B146: 23:50:00
B147: 1

Sheet Feuil1
I1: numerateur | J1: =C5-D5-H5*E5 -> 388.3063235
I2: deno | J2: =((B5-D5)/1000000)*G5*H5 -> -0.09532888465
B4: c02an | C4: co2l | D4: co2l-1 | E4: co2prod | F4: debit | G4: roair | H4: a | I4: q
B5: 600 | C5: 1700 | D5: 700 | E5: 0.77 | G5: =roair -> 1.2 | H5: =1000000/masseair -> 794.4073721 | I5: =$J$1/$J$2 -> -4073.333333
B6: 600 | C6: 1700 | D6: 4000 | E6: 0.77 | G6: 1.2 | H6: 794.4073721 | I6: =$J$1/$J$2 -> -4073.333333
B7: 600 | C7: 1700 | D7: 1800 | E7: 0.77 | G7: 1.2 | H7: 794.4073721 | I7: =$J$1/$J$2 -> -4073.333333
B8: 600 | C8: 1700 | D8: 1800 | E8: 0.77 | G8: 1.2 | H8: 794.4073721 | I8: -4073.333333
B9: 600 | C9: 1700 | D9: 1800 | E9: 0.77 | G9: 1.2 | H9: 794.4073721 | I9: -4073.333333
B10: 600 | C10: 1700 | D10: 1800 | E10: 0.77 | G10: 1.2 | H10: 794.4073721 | I10: -4073.333333
B11: 600 | C11: 1700 | D11: 1800 | E11: 0.77 | G11: 1.2 | H11: 794.4073721 | I11: -4073.333333
B12: 600 | C12: 1700 | D12: 1800 | E12: 0.77 | G12: 1.2 | H12: 794.4073721 | I12: -4073.333333
B13: 600 | C13: 1700 | D13: 1800 | E13: 0.77 | G13: 1.2 | H13: 794.4073721 | I13: -4073.333333
B14: 600 | C14: 1700 | D14: 1800 | E14: 0.77 | G14: 1.2 | H14: 794.4073721 | I14: -4073.333333

Sheet Feuil2
G4: temperature du 12 mai
C6: 2014-05-12 | G6: 10.6
C7: 2014-05-12T00:10:00 | G7: 10.6
C8: 2014-05-12T00:20:00 | G8: 10.6
C9: 2014-05-12T00:30:00 | G9: 10.6
C10: 2014-05-12T00:40:00 | G10: 10.6
C11: 2014-05-12T00:50:00 | G11: 10.6
C12: 2014-05-12T01:00:00 | G12: 10.6
C13: 2014-05-12T01:10:00 | G13: 10.6
C14: 2014-05-12T01:20:00 | G14: 10.5
C15: 2014-05-12T01:30:00 | G15: 10.5
C16: 2014-05-12T01:40:00 | G16: 10.4
C17: 2014-05-12T01:50:00 | G17: 10.4
C18: 2014-05-12T02:00:00 | G18: 10.33333333
C19: 2014-05-12T02:10:00 | G19: 10.28333333
C20: 2014-05-12T02:20:00 | G20: 10.23333333
C21: 2014-05-12T02:30:00 | G21: 10.18333333
C22: 2014-05-12T02:40:00 | G22: 10.2
C23: 2014-05-12T02:50:00 | G23: 10.2
C24: 2014-05-12T03:00:00 | G24: 10.2
C25: 2014-05-12T03:10:00 | G25: 10.2
C26: 2014-05-12T03:20:00 | G26: 10.2
C27: 2014-05-12T03:30:00 | G27: 10.2
C28: 2014-05-12T03:40:00 | G28: 10.1
C29: 2014-05-12T03:50:00 | G29: 10.1
C30: 2014-05-12T04:00:00 | G30: 10
C31: 2014-05-12T04:10:00 | G31: 10
C32: 2014-05-12T04:20:00 | G32: 9.9
C33: 2014-05-12T04:30:00 | G33: 9.9
C34: 2014-05-12T04:40:00 | G34: 9.9
C35: 2014-05-12T04:50:00 | G35: 9.9
C36: 2014-05-12T05:00:00 | G36: 9.8
C37: 2014-05-12T05:10:00 | G37: 9.8
C38: 2014-05-12T05:20:00 | G38: 9.8
C39: 2014-05-12T05:30:00 | G39: 9.8
C40: 2014-05-12T05:40:00 | G40: 9.8
C41: 2014-05-12T05:50:00 | G41: 9.8
C42: 2014-05-12T06:00:00 | G42: 9.8
C43: 2014-05-12T06:10:00 | G43: 9.8
C44: 2014-05-12T06:20:00 | G44: 9.7
C45: 2014-05-12T06:30:00 | G45: 9.7
C46: 2014-05-12T06:40:00 | G46: 9.7
C47: 2014-05-12T06:50:00 | G47: 9.7
C48: 2014-05-12T07:00:00 | G48: 9.5
C49: 2014-05-12T07:10:00 | G49: 9.5
C50: 2014-05-12T07:20:00 | G50: 9.5
C51: 2014-05-12T07:30:00 | G51: 9.5
C52: 2014-05-12T07:40:00 | G52: 9.4
C53: 2014-05-12T07:50:00 | G53: 9.4
C54: 2014-05-12T08:00:00 | G54: 9.3
C55: 2014-05-12T08:10:00 | G55: 9.3
C56: 2014-05-12T08:20:00 | G56: 9.1
C57: 2014-05-12T08:30:00 | G57: 9.1
C58: 2014-05-12T08:40:00 | G58: 9.1
C59: 2014-05-12T08:50:00 | G59: 9.1
C60: 2014-05-12T09:00:00 | G60: 9
C61: 2014-05-12T09:10:00 | G61: 9
C62: 2014-05-12T09:20:00 | G62: 9
C63: 2014-05-12T09:30:00 | G63: 9
C64: 2014-05-12T09:40:00 | G64: 9
C65: 2014-05-12T09:50:00 | G65: 9
C66: 2014-05-12T10:00:00 | G66: 9
C67: 2014-05-12T10:10:00 | G67: 9
C68: 2014-05-12T10:20:00 | G68: 9
C69: 2014-05-12T10:30:00 | G69: 9
C70: 2014-05-12T10:40:00 | G70: 9.1
C71: 2014-05-12T10:50:00 | G71: 9.1
C72: 2014-05-12T11:00:00 | G72: 9.2
C73: 2014-05-12T11:10:00 | G73: 9.2
C74: 2014-05-12T11:20:00 | G74: 9.2
C75: 2014-05-12T11:30:00 | G75: 9.2
C76: 2014-05-12T11:40:00 | G76: 9.1
C77: 2014-05-12T11:50:00 | G77: 9.1
C78: 2014-05-12T12:00:00 | G78: 9
C79: 2014-05-12T12:10:00 | G79: 9
C80: 2014-05-12T12:20:00 | G80: 9.2
C81: 2014-05-12T12:30:00 | G81: 9.2
C82: 2014-05-12T12:40:00 | G82: 9.2
C83: 2014-05-12T12:50:00 | G83: 9.2
C84: 2014-05-12T13:00:00 | G84: 9.3
C85: 2014-05-12T13:10:00 | G85: 9.3
C86: 2014-05-12T13:20:00 | G86: 9.4
C87: 2014-05-12T13:30:00 | G87: 9.4
C88: 2014-05-12T13:40:00 | G88: 9.5
C89: 2014-05-12T13:50:00 | G89: 9.5
C90: 2014-05-12T14:00:00 | G90: 9.5
C91: 2014-05-12T14:10:00 | G91: 9.5
C92: 2014-05-12T14:20:00 | G92: 9.6
C93: 2014-05-12T14:30:00 | G93: 9.6
C94: 2014-05-12T14:40:00 | G94: 9.6
C95: 2014-05-12T14:50:00 | G95: 9.6
C96: 2014-05-12T15:00:00 | G96: 9.6
C97: 2014-05-12T15:10:00 | G97: 9.6
C98: 2014-05-12T15:20:00 | G98: 9.7
C99: 2014-05-12T15:30:00 | G99: 9.7
C100: 2014-05-12T15:40:00 | G100: 9.9
C101: 2014-05-12T15:50:00 | G101: 9.9
C102: 2014-05-12T16:00:00 | G102: 10.2
C103: 2014-05-12T16:10:00 | G103: 10.2
C104: 2014-05-12T16:20:00 | G104: 10.2
C105: 2014-05-12T16:30:00 | G105: 10.2
C106: 2014-05-12T16:40:00 | G106: 10.2
C107: 2014-05-12T16:50:00 | G107: 10.2
C108: 2014-05-12T17:00:00 | G108: 10.4
C109: 2014-05-12T17:10:00 | G109: 10.4
C110: 2014-05-12T17:20:00 | G110: 10.5
C111: 2014-05-12T17:30:00 | G111: 10.5
C112: 2014-05-12T17:40:00 | G112: 10.7
C113: 2014-05-12T17:50:00 | G113: 10.7
C114: 2014-05-12T18:00:00 | G114: 11
C115: 2014-05-12T18:10:00 | G115: 11
C116: 2014-05-12T18:20:00 | G116: 11.3
C117: 2014-05-12T18:30:00 | G117: 11.3
C118: 2014-05-12T18:40:00 | G118: 11.3
C119: 2014-05-12T18:50:00 | G119: 11.3
C120: 2014-05-12T19:00:00 | G120: 11.3
C121: 2014-05-12T19:10:00 | G121: 11.3
C122: 2014-05-12T19:20:00 | G122: 11.3
C123: 2014-05-12T19:30:00 | G123: 11.3
C124: 2014-05-12T19:40:00 | G124: 11.7
C125: 2014-05-12T19:50:00 | G125: 11.7
C126: 2014-05-12T20:00:00 | G126: 12.1
C127: 2014-05-12T20:10:00 | G127: 12.1
C128: 2014-05-12T20:20:00 | G128: 13
C129: 2014-05-12T20:30:00 | G129: 13
C130: 2014-05-12T20:40:00 | G130: 13.2
C131: 2014-05-12T20:50:00 | G131: 13.2
C132: 2014-05-12T21:00:00 | G132: 13.3
C133: 2014-05-12T21:10:00 | G133: 13.3
C134: 2014-05-12T21:20:00 | G134: 13.5
C135: 2014-05-12T21:30:00 | G135: 13.5
C136: 2014-05-12T21:40:00 | G136: 13.8
C137: 2014-05-12T21:50:00 | G137: 13.8
C138: 2014-05-12T22:00:00 | G138: 14.3
C139: 2014-05-12T22:10:00 | G139: 14.3
C140: 2014-05-12T22:20:00 | G140: 14.9
C141: 2014-05-12T22:30:00 | G141: 14.9
C142: 2014-05-12T22:40:00 | G142: 14.7
C143: 2014-05-12T22:50:00 | G143: 14.7
C144: 2014-05-12T23:00:00 | G144: 14.5
C145: 2014-05-12T23:10:00 | G145: 14.5
C146: 2014-05-12T23:20:00 | G146: 13.8
C147: 2014-05-12T23:30:00 | G147: 13.8
C148: 2014-05-12T23:40:00 | G148: 13.7
G149: 13.7
G150: 13.2
G151: 13.2
G152: 12.7
G153: 12.7
G154: 12.8
G155: 12.8
G156: 13.6
G157: 13.6
G158: 15
G159: 15
G160: 15.2
G161: 15.2
G162: 15.5
G163: 15.5
G164: 15.7
G165: 15.7
G166: 16
G167: 16
G168: 15
G169: 15
G170: 15.4
G171: 15.4
G172: 16
G173: 16
G174: 15.5
G175: 15.5
G176: 15.5
G177: 15.5
G178: 15.9
G179: 15.9
G180: 15.9
G181: 15.9
G182: 15.5
G183: 15.5
G184: 15.4
G185: 15.4
G186: 15.6
G187: 15.6
G188: 16
G189: 16
G190: 16.1
G191: 16.1
G192: 16.4
G193: 16.4
G194: 16.1
G195: 16.1
G196: 16.2
G197: 16.2
G198: 16.3
G199: 16.3
G200: 16.3
G201: 16.3
G202: 16.4
G203: 16.4
G204: 16.4
... 87 more rows
